Workbook

Sheet INTRODUCTION
B2: NCHRP 19-11
B4: Applying Risk Analysis, Value Engineering, and other Innovative Solutions for Project Delivery
B6: VALUE MANAGEMENT SYSTEM TOOL
H8: Requested by
H9: National Cooperative Highway Research Program (NCHRP)
H11: Prepared by:
H12: Value Management Strategies, Inc.
H13: Robert B. Stewart, CVS-Life, FSAVE, PMP, PMI-RMP
H14: Greg Brink, CVS, PMP, PMI-RMP, ENV-SP, CCE/A
H15: Mark E. Watson, PE, CVS-Life, PMP, PMI-RMP
H16: April Hiller, CVS, ENV-SP
H17: Portland State University, Department of Engineering and Technology Management
H18: Dr. Tugrul Daim, PMP
H19: Rafaa Khalifa
H21: Portland, OR
H22: January 2017
C24: The information contained in this tool was prepared as part of the National Cooperative Research Program (NCHRP) Project 19-11 - Applying Risk Analysis, Value Engineering, and other Innovative Solutions for Project Delivery. Special Note: This tool IS NOT an official publication of the NCHRP, the Transportation Research Board or the National Academies. The opinions and conclusions expressed or implied are those of the research agency that performed the research and are not necessarily those of the TransportatioNResearch Board or its sponsoring agencies. This tool has not been reviewed or accepted by the Transportation Research Board Executive Committee or the Governing Board of the National Research Council.

Sheet Main Menu
B3: Project Scope, Cost, and Schedule | C3: OFF
B4: Stakeholder Analysis | C4: OFF
B5: Decision Analysis | C5: OFF
B6: Risk Analysis | C6: OFF
B7: Constructability Review | C7: OFF
B8: Value Engineering | C8: OFF
B9: Project Delivery Method Selection | C9: OFF
B11: WARNING: Do not add or delete columns or rows to this workbook!
B20: NCHRP 19-11
B21: Applying Risk Analysis, Value Engineering & Other Innovative Solutions for Project Delivery

Sheet Decision Dashboard (hidden)
C1: ='Project Scope'!C6 -> Davis Road Bridge Replacement
N2: CLICK NEXT TAB!
C9: ALTERNATIVE TITLES
C10: Baseline Concept
C11: VE Alternative 1
C12: VE Alternative 2
C13: VE Alternative 3
C14: VE Alternative 4

Sheet 1. Identify Participants (hidden)
E1: ='Project Scope'!C6 -> Davis Road Bridge Replacement
I3: CLICK NEXT TAB!
B8: No. | C8: First Name | D8: Last Name | E8: Expertise/Title | F8: Organization | G8: Project Role | H8: Email | I8: Phone
B9: 1 | C9: Enrique | D9: Sanchez | E9: Director of Public Works | F9: Monterey County
B10: 2 | C10: Hank | D10: Mellon | E10: Sr. Transportation Planner | F10: TAMC
B11: 3 | C11: Peter | D11: Sajack | E11: Project Director | F11: FORA
B12: 4 | C12: Reinie | D12: James | E12: Design Coordinator | F12: Caltrans
B13: 5
B14: 6
B15: 7
B16: 8
B17: 9
B18: 10

Sheet 2. Define Alternatives (hidden)
B1: ='Project Scope'!C6 -> Davis Road Bridge Replacement
E3: CLICK NEXT TAB!
B5: Alt. # | C5: Alternative Title | D5: Estimated Project Cost ($M) | E5: Estimated Project Schedule (months) | G5: Note: If this is a comparative analysis relative to a baseline (e.g., VE comparison), enter the baseline as the first alternative (in highlighted row).
B6: 1 | C6: Baseline Concept | D6: 59039000 | E6: 53
B7: 2 | C7: VE Alternative 1 | D7: =D6-'VE Alt. Summary'!C6 -> 57011000 | E7: =E6+'VE Alt. Summary'!E6 -> 53
B8: 3 | C8: VE Alternative 2 | D8: =D6-'VE Alt. Summary'!C7 -> 58962950 | E8: =E6+'VE Alt. Summary'!E7 -> 53
B9: 4 | C9: VE Alternative 3 | D9: =D6-'VE Alt. Summary'!C8 -> 52972647.5 | E9: =E6+'VE Alt. Summary'!E8 -> 50
B10: 5 | C10: VE Alternative 4 | D10: =D6-'VE Alt. Summary'!C9 -> 59600340 | E10: =E6+'VE Alt. Summary'!E9 -> 53
B11: 6
B12: 7
B13: 8
B14: 9
B15: 10
B16: 11
B17: 12
B18: 13
B19: 14
B20: 15
B21: 16
B22: 17
B23: 18
B24: 19
B25: 20

Sheet 3. Pre-Screen Alternatives (hidden)
C1: ='Project Scope'!C6 -> Davis Road Bridge Replacement
V3: CLICK NEXT TAB!
B7: A performance requirement reflects an aspect of performance that is essential to the project objective and must be met.
B9: Performance Requirement | D9: Definition | E9: =IF('2. Define Alternatives'!C6="","",'2. Define Alternatives'!C6) -> Baseline Concept | F9: =IF('2. Define Alternatives'!C7="","",'2. Define Alternatives'!C7) -> VE Alternative 1 | G9: =IF('2. Define Alternatives'!C8="","",'2. Define Alternatives'!C8) -> VE Alternative 2 | H9: =IF('2. Define Alternatives'!C9="","",'2. Define Alternatives'!C9) -> VE Alternative 3 | I9: =IF('2. Define Alternatives'!C10="","",'2. Define Alternatives'!C10) -> VE Alternative 4 | J9: =IF('2. Define Alternatives'!C11="","",'2. Define Alternatives'!C11) ->  | K9: =IF('2. Define Alternatives'!C12="","",'2. Define Alternatives'!C12) ->  | L9: =IF('2. Define Alternatives'!C13="","",'2. Define Alternatives'!C13) ->  | M9: =IF('2. Define Alternatives'!C14="","",'2. Define Alternatives'!C14) ->  | N9: =IF('2. Define Alternatives'!C15="","",'2. Define Alternatives'!C15) ->  | O9: =IF('2. Define Alternatives'!C16="","",'2. Define Alternatives'!C16) ->  | P9: =IF('2. Define Alternatives'!C17="","",'2. Define Alternatives'!C17) ->  | Q9: =IF('2. Define Alternatives'!C18="","",'2. Define Alternatives'!C18) ->  | R9: =IF('2. Define Alternatives'!C19="","",'2. Define Alternatives'!C19) ->  | S9: =IF('2. Define Alternatives'!C20="","",'2. Define Alternatives'!C20) ->  | T9: =IF('2. Define Alternatives'!C21="","",'2. Define Alternatives'!C21) ->  | U9: =IF('2. Define Alternatives'!C22="","",'2. Define Alternatives'!C22) ->  | V9: =IF('2. Define Alternatives'!C23="","",'2. Define Alternatives'!C23) ->  | W9: =IF('2. Define Alternatives'!C24="","",'2. Define Alternatives'!C24) ->  | X9: =IF('2. Define Alternatives'!C25="","",'2. Define Alternatives'!C25) -> 
B10: A | C10: Number of Lanes | D10: Alternative must have 4 lanes - no more, no less | E10: Yes | F10: Yes | G10: Yes | H10: Yes | I10: Yes
B11: B | C11: Shoulders | D11: Alternative must have 8 foot shoulders | E11: Yes | F11: Yes | G11: Yes | H11: Yes | I11: Yes
B12: C | AN12: Yes | AO12: No
B13: D | AN13: √
B14: E
B15: F
B16: G
B17: H
B18: I
B19: J
B20: K
B21: L
C22: Alternatives to be considered for further evaluation: | E22: Yes | F22: Yes | G22: Yes | H22: Yes | I22: Yes

Sheet 4. Performance Ratings (hidden)
F1: ='Project Scope'!C6 -> Davis Road Bridge Replacement
A5: 1 | B5: Mainline Operations | C5: NO | G5: CLICK NEXT TAB!
B6: Definition: | C6: An assessment of traffic operations and safety on the mainline facility(s), including off-ramps, and collector-distributor roads. Operational considerations include level of service relative to the 20-year traffic projections, as well as geometric considerations such as design speed, sight distance, lane widths, and shoulder widths.
B8: Ideal | C8: Very Good | D8: Good | E8: Fair | F8: Poor | G8: Unacceptable
B9: 1 | C9: 0.8 | D9: 0.6 | E9: 0.4 | F9: 0.2 | G9: 0
B10: Mainline operations equivalent to LOS A during peak hour. Highest level of traffic operations. Meets or exceeds all design standards. | C10: Mainline operations equivalent to LOS B during peak hour. High level of traffic operations. Meets all mandatory design standards. Meets all or most advisory design standards. | D10: Mainline operations equivalent to LOS C during peak hour. Good level of traffic operations. Meets all or most design standards. | E10: Mainline operations equivalent to LOS D during peak hour. Fair level of traffic operations. May require some design exceptions. | F10: Mainline operations equivalent to LOS E during peak hour. Poor level of traffic operations. May require multiple design exceptions. | G10: Mainline operations equivalent to LOS F during peak hour. Very poor level of traffic operations. May require multiple design exceptions.
B12: Alternative Title | C12: Rating Score | D12: Rating Rationale | X12: Acceptable
B13: =IF('Decision Dashboard'!C10="","",'Decision Dashboard'!C10) -> Baseline Concept
B14: =IF('Decision Dashboard'!C11="","",'Decision Dashboard'!C11) -> VE Alternative 1
B15: =IF('Decision Dashboard'!C12="","",'Decision Dashboard'!C12) -> VE Alternative 2
B16: =IF('Decision Dashboard'!C13="","",'Decision Dashboard'!C13) -> VE Alternative 3
B17: =IF('Decision Dashboard'!C14="","",'Decision Dashboard'!C14) -> VE Alternative 4
B18: =IF('Decision Dashboard'!C15="","",'Decision Dashboard'!C15) -> 
B19: =IF('Decision Dashboard'!C16="","",'Decision Dashboard'!C16) -> 
B20: =IF('Decision Dashboard'!C17="","",'Decision Dashboard'!C17) -> 
B21: =IF('Decision Dashboard'!C18="","",'Decision Dashboard'!C18) -> 
B22: =IF('Decision Dashboard'!C19="","",'Decision Dashboard'!C19) -> 
B23: =IF('Decision Dashboard'!C20="","",'Decision Dashboard'!C20) ->  | X23: Unacceptable | Z23: 1
B24: =IF('Decision Dashboard'!C21="","",'Decision Dashboard'!C21) ->  | Z24: 0.9
B25: =IF('Decision Dashboard'!C22="","",'Decision Dashboard'!C22) ->  | Z25: 0.8
B26: =IF('Decision Dashboard'!C23="","",'Decision Dashboard'!C23) ->  | Z26: 0.7
B27: =IF('Decision Dashboard'!C24="","",'Decision Dashboard'!C24) ->  | Z27: 0.6
B28: =IF('Decision Dashboard'!C25="","",'Decision Dashboard'!C25) ->  | Z28: 0.5
B29: =IF('Decision Dashboard'!C26="","",'Decision Dashboard'!C26) ->  | Z29: 0.4
B30: =IF('Decision Dashboard'!C27="","",'Decision Dashboard'!C27) ->  | Z30: 0.3
B31: =IF('Decision Dashboard'!C28="","",'Decision Dashboard'!C28) ->  | Z31: 0.2
B32: =IF('Decision Dashboard'!C29="","",'Decision Dashboard'!C29) ->  | Z32: 0.1
A35: 2 | B35: Local Operations | C35: YES
B36: Definition: | C36: An assessment of traffic operations and safety on the local roadway infrastructure, including on-ramps and frontage roads. Operational considerations include level of service relative to the 20-year traffic projections; geometric considerations such as design speed, sight distance, lane widths; bicycle and pedestrian operations and access.
B38: Ideal | C38: Very Good | D38: Good | E38: Fair | F38: Poor | G38: Unacceptable
B39: 1 | C39: 0.8 | D39: 0.6 | E39: 0.4 | F39: 0.2 | G39: 0
B40: Local operations equivalent to LOS A during peak hour. Highest level of traffic operations. Significantly maintains or improves upon existing local access. Meets or exceeds all design standards. | C40: Local operations equivalent to LOS B during peak hour. High level of traffic operations. Maintains or improves existing local access. Meets all mandatory design standards. Meets all or most advisory design standards. | D40: Local operations equivalent to LOS C during peak hour. Good level of traffic operations. Maintains existing local access. Meets all or most design standards. | F40: Local operations equivalent to LOS E during peak hour. Poor level of traffic operations. Significantly impacts existing local access. May require multiple design exceptions. | G40: Local operations equivalent to LOS F during peak hour. Very poor level of traffic operations. Severely impacts existing local access. May require multiple design exceptions.
B42: Alternative Title | C42: Rating Score | D42: Rating Rationale | X42: Acceptable
B43: =B13 -> Baseline Concept | C43: 0.8 | D43: The operations at the Davis Rd./Reservation Rd. intersection are good given the two-lane cross-section of Reservation Rd. west of Davis Rd. However, there are opportunities for further enhancing traffic operations at this intersection for the interim condition (e.g., before Reservation Rd. is widened to four lanes west of Davis Rd.).
B44: =B14 -> VE Alternative 1 | C44: 0.8 | D44: No significant change compared to Baseline Concept.
B45: VE Alternative 2 | C45: 0.8 | D45: No significant change compared to Baseline Concept.
B46: VE Alternative 3 | C46: 0.8 | D46: No significant change compared to Baseline Concept.
B47: VE Alternative 4 | C47: 0.95 | D47: Improved operations by changing turn movements into through movements between Davis Rd. and Reservation Rd. west of Davis Rd. The new configuration should improve the LOS significantly and provides an improved interim solution prior to the future widening of Reservation Rd. to four lanes. Improves horizontal sight distance.
X53: Unacceptable | Z53: 1
Z54: 0.9
Z55: 0.8
Z56: 0.7
Z57: 0.6
Z58: 0.5
Z59: 0.4
Z60: 0.3
Z61: 0.2
Z62: 0.1
A65: 3 | B65: Environmental Impacts | C65: YES
B66: Definition: | C66: An assessment of the permanent impacts to the environment including socio-economic, cultural, and biological. [NOTE: Sometimes it is desirable to split the standard attribute “Environmental Impacts” into multiple, free-standing attributes. This is in recognition that sometimes socioeconomic, cultural, and natural resources are in conflict with one another.]
B68: Ideal | C68: Very Good | D68: Good | E68: Fair | F68: Poor | G68: Unacceptable
B69: 1 | C69: 0.8 | D69: 0.6 | E69: 0.4 | F69: 0.2 | G69: 0
B70: The project improves upon the existing environmental conditions while introducing no new impacts. | C70: The project introduces no new environmental impacts. | D70: The project introduces some new environmental impacts that can be addressed through standard and accepted mitigation approaches. | E70: The project introduces many new environmental impacts that will require extensive mitigation. | F70: The project introduces environmental impacts that are both significant in number and impact that require extensive mitigation. | G70: The environmental impacts are severe and the project does not comply with state and/or federal environmental laws.
B72: Alternative Title | C72: Rating Score | D72: Rating Rationale | X72: Acceptable
B73: =B43 -> Baseline Concept | C73: 0.85 | D73: Environmental impacts are relatively minor given the scope of the project.
B74: =B44 -> VE Alternative 1 | C74: 0.85 | D74: No significant change compared to Baseline Concept.
B75: VE Alternative 2 | C75: 0.85 | D75: No significant change compared to Baseline Concept.
B76: VE Alternative 3 | C76: 0.85 | D76: No significant change compared to Baseline Concept.
B77: VE Alternative 4 | C77: 0.8 | D77: Reduced performance relative to the Baseline Concept. Increased farmland impacts due to additional right of way need; may require re-evaluation.
X83: Unacceptable | Z83: 1
Z84: 0.9
Z85: 0.8
Z86: 0.7
Z87: 0.6
Z88: 0.5
Z89: 0.4
Z90: 0.3
Z91: 0.2
Z92: 0.1
A95: 4 | B95: Construction Impacts | C95: YES
B96: Definition: | C96: An assessment of the temporary impacts to the public during construction related to traffic disruptions, detours, and delays; impacts to businesses and residents relative to access, visual, noise, vibration, dust, and construction traffic; environmental impacts related to water quality, air quality, soil erosion, and local flora and fauna.
B98: Ideal | C98: Very Good | D98: Good | E98: Fair | F98: Poor | G98: Unacceptable
B99: 1 | C99: 0.8 | D99: 0.6 | E99: 0.4 | F99: 0.2 | G99: 0
B100: There will be no temporary traffic or environmental impacts during construction. | C100: There will be some minor temporary traffic and/or environmental impacts expected during construction. Impacts will be less than typical. | D100: There will be some night-time lane closures and/or temporary ramp closures are anticipated. There will be some minor to moderate temporary environmental impacts. Impacts will be fairly "typical" for this type of project and can be handled through normal processes and procedures. | E100: Temporary traffic impacts will be significant and be much greater than what would normally be anticipated for similar projects. Temporary environmental impacts will be more significant in nature and require greater mitigation measures and/or inconveniences to the public. | F100: Temporary traffic impacts will be extensive, lengthy, and very disruptive. Temporary environmental impacts will require extraordinary mitigation measures and create major inconveniences to the public. | G100: Temporary traffic and/or environmental impacts will be severe and create impacts that are unacceptable to the public.
B102: Alternative Title | C102: Rating Score | D102: Rating Rationale | X102: Acceptable
B103: =B73 -> Baseline Concept | C103: 0.75 | D103: The current plan is to close Davis Rd. south of Foster Rd. and construct the project in one stage. This will minimize the duration of the impacts and this approach has been generally met with approval by the community.
B104: =B74 -> VE Alternative 1 | C104: 0.78 | D104: Improved performance relative to the Baseline Concept. Due to oscillator/rotator method of pile construction not requiring impact or vibratory pile driving, vibration and noise impacts would be reduced during construction.
B105: VE Alternative 2 | C105: 0.75 | D105: No significant change compared to Baseline Concept.
B106: VE Alternative 3 | C106: 0.78 | D106: Improved performance relative to the Baseline Concept. Reduced impact duration due to shorter schedule.
B107: VE Alternative 4 | C107: 0.75 | D107: No significant change compared to Baseline Concept.
X113: Unacceptable | Z113: 1
Z114: 0.9
Z115: 0.8
Z116: 0.7
Z117: 0.6
Z118: 0.5
Z119: 0.4
Z120: 0.3
Z121: 0.2
Z122: 0.1
A125: 5 | B125: Maintainability | C125: YES
B126: Definition: | C126: An assessment of the long-term maintainability of the transportation facility(s). Maintenance considerations include the overall durability, longevity, and maintainability of pavements, structures, and systems; ease of maintenance; accessibility and safety considerations for maintenance personnel.
B128: Ideal | C128: Very Good | D128: Good | E128: Fair | F128: Poor | G128: Unacceptable
B129: 1 | C129: 0.8 | D129: 0.6 | E129: 0.4 | F129: 0.2 | G129: 0
B130: The project provides the highest possible level of maintainability and far exceeds expectations when compared to comparable facilities statewide. Examples are the use of long-life pavement, low-maintenance water quality facilities, low-maintenance structures, etc. | C130: The project provides a high level of maintainability. The facility utilizes many low-maintenance features and is better than average in terms of expected maintenance. | D130: The project provides a satisfactory level of maintainability and is typical of a highway facility of this kind statewide. | E130: The highway facility is expected to require greater than normal maintenance due to existing site conditions or materials selection. | F130: The project is expected require maintenance that far exceeds the norm for a facility of its kind. | G130: The anticipated level of maintenance for the project will be extreme and unacceptably high.
B132: Alternative Title | C132: Rating Score | D132: Rating Rationale | X132: Acceptable
B133: =B103 -> Baseline Concept | C133: 0.9 | D133: The project is delivering transportation facilities that are relatively low maintenance and are fairly well optimized.
B134: =B104 -> VE Alternative 1 | C134: 0.9 | D134: No significant change compared to Baseline Concept.
B135: VE Alternative 2 | C135: 0.9 | D135: No significant change compared to Baseline Concept.
B136: VE Alternative 3 | C136: 0.9 | D136: Negligible difference. Increased headroom at approach structures results in easier inspection and more room for cleanup after a flood.
B137: VE Alternative 4 | C137: 0.85 | D137: Small reduction compared to the Baseline Concept. Increase in annual energy and maintenance cost for additional signal.
X143: Unacceptable | Z143: 1
Z144: 0.9
Z145: 0.8
Z146: 0.7
Z147: 0.6
Z148: 0.5
Z149: 0.4
Z150: 0.3
Z151: 0.2
Z152: 0.1
A155: 6 | B155: Phaseability | C155: NO
B156: Definition: | C156: An assessment of how easily a transportation facility can be improved or expanded upon at some future date. This attribute considers the degree of “throwaway work” involved, as well as future traffic and public impacts when the planned future improvements are made.
B158: Ideal | C158: Very Good | D158: Good | E158: Fair | F158: Poor | G158: Unacceptable
B159: 1 | C159: 0.8 | D159: 0.6 | E159: 0.4 | F159: 0.2 | G159: 0
B160: The project can be easily built in multiple phases while providing interim benefits that will require little or no “throwaway” work. | C160: The project can be built in multiple phases while providing interim benefits that will require some “throwaway” work. | D160: The project can be built in multiple phases while providing some interim benefits, however, moderate “throwaway” work will be required. | E160: The project can be built in multiple phases, however, the interim benefits will be limited in nature and/or significant “throwaway” work will be required. | F160: Constructing the project in multiple phases is possible, but faces severe challenges. Interim benefits may be negligible. | G160: It is not possible for the project to be built in phases.
B162: Alternative Title | C162: Rating Score | D162: Rating Rationale | X162: Acceptable
B163: =B133 -> Baseline Concept
B164: =B134 -> VE Alternative 1
B165: VE Alternative 2
B166: VE Alternative 3
B167: VE Alternative 4
X173: Unacceptable | Z173: 1
Z174: 0.9
Z175: 0.8
Z176: 0.7
Z177: 0.6
Z178: 0.5
Z179: 0.4
Z180: 0.3
Z181: 0.2
Z182: 0.1
A185: 7 | B185: Land-Use Compatibility | C185: NO
B186: Definition: | C186: An assessment of the overall compatibility of transportation facilities with existing and planned land uses. This attribute considers how a transportation facility will directly affect the quality and viability of the land uses around it. [NOTE: This attribute is often used for projects that involve significant right-of-way acquisition and that will have significant impacts to municipalities and/or private entities.]
B188: Ideal | C188: Very Good | D188: Good | E188: Fair | F188: Poor | G188: Unacceptable
B189: 1 | C189: 0.8 | D189: 0.6 | E189: 0.4 | F189: 0.2 | G189: 0
B190: The project provides the highest possible level of compatibility with both existing and planned land uses. | C190: The project is highly compatible with both existing and planned land uses. | D190: The project provides a satisfactory level of compatibility with both existing and planned land uses. | E190: The highway facility is only partially compatible with existing and/or planned land uses. | F190: The project is highly incompatible with both existing and planned land uses but would still be acceptable to project stakeholders. | G190: The project is completely incompatible with both existing and planned land uses and is unacceptable to project stakeholders.
B192: Alternative Title | C192: Rating Score | D192: Rating Rationale | X192: Acceptable
B193: =B163 -> Baseline Concept
B194: =B164 -> VE Alternative 1
B195: VE Alternative 2
B196: VE Alternative 3
B197: VE Alternative 4
X203: Unacceptable | Z203: 1
Z204: 0.9
Z205: 0.8
Z206: 0.7
Z207: 0.6
Z208: 0.5
Z209: 0.4
Z210: 0.3
Z211: 0.2
Z212: 0.1
A215: 8 | B215: Cultural Impacts | C215: NO
B216: Definition: | C216: An assessment of the permanent impacts to cultural, recreational, archaeological, and historic resources. [NOTE: Sometimes it is desirable to split the standard attribute “Cultural Impacts” into multiple, free-standing attributes. This is in recognition that sometimes different cultural resources are in conflict with one another.]
B218: Ideal | C218: Very Good | D218: Good | E218: Fair | F218: Poor | G218: Unacceptable
B219: 1 | C219: 0.8 | D219: 0.6 | E219: 0.4 | F219: 0.2 | G219: 0
B220: The project improves upon existing cultural resources while introducing no new impacts. | C220: The project introduces no new impacts to existing cultural resources. | D220: The project introduces some new impacts that can be addressed through standard and accepted mitigation approaches. | E220: The project introduces many new impacts that will require extensive mitigation. | F220: The project introduces impacts that are both significant in number and impact that require extensive mitigation. | G220: The impacts to cultural resources are severe and the project does not comply with state and/or federal environmental laws.
B222: Alternative Title | C222: Rating Score | D222: Rating Rationale | X222: Acceptable
B223: =B193 -> Baseline Concept | C223: 0.5
B224: =B194 -> VE Alternative 1 | C224: 0.4
B225: VE Alternative 2 | C225: 0.6
B226: VE Alternative 3
B227: VE Alternative 4
X233: Unacceptable | Z233: 1
Z234: 0.9
Z235: 0.8
Z236: 0.7
Z237: 0.6
Z238: 0.5
Z239: 0.4
Z240: 0.3
Z241: 0.2
Z242: 0.1
A245: 9 | B245: Ecological Impacts | C245: NO
B246: Definition: | C246: An assessment of the permanent impacts to the ecological resources including flora, fauna, air quality, and water quality. [NOTE: Sometimes it is desirable to split the standard attribute “Ecological Impacts” into multiple, free-standing attributes. This is in recognition that sometimes different ecological resources are in conflict with one another.]
B248: Ideal | C248: Very Good | D248: Good | E248: Fair | F248: Poor | G248: Unacceptable
B249: 1 | C249: 0.8 | D249: 0.6 | E249: 0.4 | F249: 0.2 | G249: 0
B250: The project improves upon the existing ecological conditions while introducing no new impacts. | C250: The project introduces no new ecological impacts. | D250: The project introduces some new ecological impacts that can be addressed through standard and accepted mitigation approaches. | E250: The project introduces many new ecological impacts that will require extensive mitigation. | F250: The project introduces ecological impacts that are both significant in number and impact that require extensive mitigation. | G250: The ecological impacts are severe and the project does not comply with state and/or federal environmental laws.
B252: Alternative Title | C252: Rating Score | D252: Rating Rationale | X252: Acceptable
B253: =B223 -> Baseline Concept
B254: =B224 -> VE Alternative 1
B255: VE Alternative 2
B256: VE Alternative 3
B257: VE Alternative 4
X263: Unacceptable | Z263: 1
Z264: 0.9
Z265: 0.8
Z266: 0.7
Z267: 0.6
Z268: 0.5
Z269: 0.4
Z270: 0.3
Z271: 0.2
Z272: 0.1
A275: 10 | B275: Socio-Economic Impacts | C275: NO
B276: Definition: | C276: An assessment of the permanent impacts to cultural, recreational, archaeological, and historic resources. [NOTE: Sometimes it is desirable to split the standard attribute "Socio-Economic Impacts” into multiple, free-standing attributes. This is in recognition that sometimes different socio-economic resources are in conflict with one another.]
B278: Ideal | C278: Very Good | D278: Good | E278: Fair | F278: Poor | G278: Unacceptable
B279: 1 | C279: 0.8 | D279: 0.6 | E279: 0.4 | F279: 0.2 | G279: 0
B280: The project improves upon existing socio-economic conditions while introducing no new impacts. | C280: The project introduces no new impacts to existing socio-economic conditions. | D280: The project introduces some new impacts that can be addressed through standard and accepted mitigation approaches. | E280: The project introduces many new impacts that will require extensive mitigation. | F280: The project introduces impacts that are both significant in number and impact that require extensive mitigation. | G280: The impacts to socio-economic conditions are severe and the project does not comply with state and/or federal environmental laws.
... 157 more rows

Sheet 5. Attribute Prioritization (hidden)
D1: ='Project Scope'!C6 -> Davis Road Bridge Replacement
L2: WEIGHT | M2: DESCRIPTION
L3: 9 | M3: Extremely more important
L4: 8
B5: Which of the attributes is more important relative to meeting the decision goal? Using the scale to the right, select which attribute is more important to each participant, and by what degree. Enter the weight on the side of the more important attribute. If both attributes are equally important, either leave the entry blank or enter a 1 on each attribute. Make sure to perform the comparison until all steps containing attributes are complete, then CLICK NEXT TAB! | L5: 7 | M5: Very strongly more important
L6: 6
L7: 5 | M7: Strongly more important
L8: 4
L9: 3 | M9: Moderately more important
L10: 2
L11: 1 | M11: Equally important
A13: Step .1 | B13: Participant | C13: Attribute Comparison | E13: Weight | F13: Step .2 | G13: Participant | H13: Attribute Comparison | J13: Weight | K13: Step .3 | L13: Participant | M13: Attribute Comparison | O13: Weight
C14: Local Operations | D14: Environmental Impacts | H14: Local Operations | I14: Construction Impacts | M14: Local Operations | N14: Maintainability
B15: =IF('1. Identify Participants'!C9="","",'1. Identify Participants'!C9) -> Enrique | C15: 2 | E15: =IF(B15="","",IF(C15="",1,C15)/IF(D15="",1,D15)) -> 2 | G15: =IF('1. Identify Participants'!C9="","",'1. Identify Participants'!C9) -> Enrique | H15: 5 | J15: =IF(G15="","",IF(H15="",1,H15)/IF(I15="",1,I15)) -> 5 | L15: =IF('1. Identify Participants'!C9="","",'1. Identify Participants'!C9) -> Enrique | M15: 3 | O15: =IF(L15="","",IF(M15="",1,M15)/IF(N15="",1,N15)) -> 3
B16: =IF('1. Identify Participants'!C10="","",'1. Identify Participants'!C10) -> Hank | C16: 6 | E16: =IF(B16="","",IF(C16="",1,C16)/IF(D16="",1,D16)) -> 6 | G16: =IF('1. Identify Participants'!C10="","",'1. Identify Participants'!C10) -> Hank | H16: 6 | J16: =IF(G16="","",IF(H16="",1,H16)/IF(I16="",1,I16)) -> 6 | L16: =IF('1. Identify Participants'!C10="","",'1. Identify Participants'!C10) -> Hank | M16: 2 | O16: =IF(L16="","",IF(M16="",1,M16)/IF(N16="",1,N16)) -> 2 | AD16: 1 | AE16: 9
B17: =IF('1. Identify Participants'!C11="","",'1. Identify Participants'!C11) -> Peter | C17: 4 | E17: 4 | G17: =IF('1. Identify Participants'!C11="","",'1. Identify Participants'!C11) -> Peter | H17: 9 | J17: 9 | L17: =IF('1. Identify Participants'!C11="","",'1. Identify Participants'!C11) -> Peter | M17: 9 | O17: 9 | AE17: 8
B18: =IF('1. Identify Participants'!C12="","",'1. Identify Participants'!C12) -> Reinie | C18: 9 | E18: 9 | G18: =IF('1. Identify Participants'!C12="","",'1. Identify Participants'!C12) -> Reinie | H18: 4 | J18: 4 | L18: =IF('1. Identify Participants'!C12="","",'1. Identify Participants'!C12) -> Reinie | M18: 4 | O18: 4 | AE18: 7
B19: =IF('1. Identify Participants'!C13="","",'1. Identify Participants'!C13) ->  | G19: =IF('1. Identify Participants'!C13="","",'1. Identify Participants'!C13) ->  | L19: =IF('1. Identify Participants'!C13="","",'1. Identify Participants'!C13) ->  | AE19: 6
B20: =IF('1. Identify Participants'!C14="","",'1. Identify Participants'!C14) ->  | G20: =IF('1. Identify Participants'!C14="","",'1. Identify Participants'!C14) ->  | L20: =IF('1. Identify Participants'!C14="","",'1. Identify Participants'!C14) ->  | AE20: 5
B21: =IF('1. Identify Participants'!C15="","",'1. Identify Participants'!C15) ->  | G21: =IF('1. Identify Participants'!C15="","",'1. Identify Participants'!C15) ->  | L21: =IF('1. Identify Participants'!C15="","",'1. Identify Participants'!C15) ->  | AE21: 4
B22: =IF('1. Identify Participants'!C16="","",'1. Identify Participants'!C16) ->  | G22: =IF('1. Identify Participants'!C16="","",'1. Identify Participants'!C16) ->  | L22: =IF('1. Identify Participants'!C16="","",'1. Identify Participants'!C16) ->  | AE22: 3
B23: =IF('1. Identify Participants'!C17="","",'1. Identify Participants'!C17) ->  | G23: =IF('1. Identify Participants'!C17="","",'1. Identify Participants'!C17) ->  | L23: =IF('1. Identify Participants'!C17="","",'1. Identify Participants'!C17) ->  | AE23: 2
B24: =IF('1. Identify Participants'!C18="","",'1. Identify Participants'!C18) ->  | G24: =IF('1. Identify Participants'!C18="","",'1. Identify Participants'!C18) ->  | L24: =IF('1. Identify Participants'!C18="","",'1. Identify Participants'!C18) ->  | AE24: 1
A27: Step .4 | B27: Participant | C27: Attribute Comparison | E27: Weight | F27: Step .5 | G27: Participant | H27: Attribute Comparison | J27: Weight | K27: Step .6 | L27: Participant | M27: Attribute Comparison | O27: Weight
C28: Local Operations | D28: Hydrological Impacts | H28: Environmental Impacts | I28: Construction Impacts | M28: Environmental Impacts | N28: Maintainability
B29: =IF('1. Identify Participants'!C9="","",'1. Identify Participants'!C9) -> Enrique | C29: 2 | E29: =IF(B29="","",IF(C29="",1,C29)/IF(D29="",1,D29)) -> 2 | G29: =IF('1. Identify Participants'!C9="","",'1. Identify Participants'!C9) -> Enrique | H29: 5 | J29: =IF(G29="","",IF(H29="",1,H29)/IF(I29="",1,I29)) -> 5 | L29: =IF('1. Identify Participants'!C9="","",'1. Identify Participants'!C9) -> Enrique | N29: 4 | O29: =IF(L29="","",IF(M29="",1,M29)/IF(N29="",1,N29)) -> 0.25
B30: =IF('1. Identify Participants'!C10="","",'1. Identify Participants'!C10) -> Hank | D30: 2 | E30: =IF(B30="","",IF(C30="",1,C30)/IF(D30="",1,D30)) -> 0.5 | G30: =IF('1. Identify Participants'!C10="","",'1. Identify Participants'!C10) -> Hank | H30: 3 | J30: =IF(G30="","",IF(H30="",1,H30)/IF(I30="",1,I30)) -> 3 | L30: =IF('1. Identify Participants'!C10="","",'1. Identify Participants'!C10) -> Hank | N30: 5 | O30: =IF(L30="","",IF(M30="",1,M30)/IF(N30="",1,N30)) -> 0.2
B31: =IF('1. Identify Participants'!C11="","",'1. Identify Participants'!C11) -> Peter | D31: 3 | E31: 0.3333333333 | G31: =IF('1. Identify Participants'!C11="","",'1. Identify Participants'!C11) -> Peter | H31: 7 | J31: 7 | L31: =IF('1. Identify Participants'!C11="","",'1. Identify Participants'!C11) -> Peter | N31: 2 | O31: 0.5
B32: =IF('1. Identify Participants'!C12="","",'1. Identify Participants'!C12) -> Reinie | C32: 2 | E32: 2 | G32: =IF('1. Identify Participants'!C12="","",'1. Identify Participants'!C12) -> Reinie | I32: 3 | J32: 0.3333333333 | L32: =IF('1. Identify Participants'!C12="","",'1. Identify Participants'!C12) -> Reinie | M32: 2 | O32: 2
B33: =IF('1. Identify Participants'!C13="","",'1. Identify Participants'!C13) ->  | G33: =IF('1. Identify Participants'!C13="","",'1. Identify Participants'!C13) ->  | L33: =IF('1. Identify Participants'!C13="","",'1. Identify Participants'!C13) -> 
B34: =IF('1. Identify Participants'!C14="","",'1. Identify Participants'!C14) ->  | G34: =IF('1. Identify Participants'!C14="","",'1. Identify Participants'!C14) ->  | L34: =IF('1. Identify Participants'!C14="","",'1. Identify Participants'!C14) -> 
B35: =IF('1. Identify Participants'!C15="","",'1. Identify Participants'!C15) ->  | G35: =IF('1. Identify Participants'!C15="","",'1. Identify Participants'!C15) ->  | L35: =IF('1. Identify Participants'!C15="","",'1. Identify Participants'!C15) -> 
B36: =IF('1. Identify Participants'!C16="","",'1. Identify Participants'!C16) ->  | G36: =IF('1. Identify Participants'!C16="","",'1. Identify Participants'!C16) ->  | L36: =IF('1. Identify Participants'!C16="","",'1. Identify Participants'!C16) -> 
B37: =IF('1. Identify Participants'!C17="","",'1. Identify Participants'!C17) ->  | G37: =IF('1. Identify Participants'!C17="","",'1. Identify Participants'!C17) ->  | L37: =IF('1. Identify Participants'!C17="","",'1. Identify Participants'!C17) -> 
B38: =IF('1. Identify Participants'!C18="","",'1. Identify Participants'!C18) ->  | G38: =IF('1. Identify Participants'!C18="","",'1. Identify Participants'!C18) ->  | L38: =IF('1. Identify Participants'!C18="","",'1. Identify Participants'!C18) -> 
A41: Step .7 | B41: Participant | C41: Attribute Comparison | E41: Weight | F41: Step .8 | G41: Participant | H41: Attribute Comparison | J41: Weight | K41: Step .9 | L41: Participant | M41: Attribute Comparison | O41: Weight
C42: Environmental Impacts | D42: Hydrological Impacts | H42: Construction Impacts | I42: Maintainability | M42: Construction Impacts | N42: Hydrological Impacts
B43: =IF('1. Identify Participants'!C9="","",'1. Identify Participants'!C9) -> Enrique | D43: 4 | E43: =IF(B43="","",IF(C43="",1,C43)/IF(D43="",1,D43)) -> 0.25 | G43: =IF('1. Identify Participants'!C9="","",'1. Identify Participants'!C9) -> Enrique | I43: 6 | J43: =IF(G43="","",IF(H43="",1,H43)/IF(I43="",1,I43)) -> 0.1666666667 | L43: =IF('1. Identify Participants'!C9="","",'1. Identify Participants'!C9) -> Enrique | N43: 5 | O43: =IF(L43="","",IF(M43="",1,M43)/IF(N43="",1,N43)) -> 0.2
B44: =IF('1. Identify Participants'!C10="","",'1. Identify Participants'!C10) -> Hank | D44: 5 | E44: =IF(B44="","",IF(C44="",1,C44)/IF(D44="",1,D44)) -> 0.2 | G44: =IF('1. Identify Participants'!C10="","",'1. Identify Participants'!C10) -> Hank | I44: 6 | J44: =IF(G44="","",IF(H44="",1,H44)/IF(I44="",1,I44)) -> 0.1666666667 | L44: =IF('1. Identify Participants'!C10="","",'1. Identify Participants'!C10) -> Hank | N44: 6 | O44: =IF(L44="","",IF(M44="",1,M44)/IF(N44="",1,N44)) -> 0.1666666667
B45: =IF('1. Identify Participants'!C11="","",'1. Identify Participants'!C11) -> Peter | D45: 7 | E45: 0.1428571429 | G45: =IF('1. Identify Participants'!C11="","",'1. Identify Participants'!C11) -> Peter | I45: 5 | J45: 0.2 | L45: =IF('1. Identify Participants'!C11="","",'1. Identify Participants'!C11) -> Peter | N45: 6 | O45: 0.1666666667
B46: =IF('1. Identify Participants'!C12="","",'1. Identify Participants'!C12) -> Reinie | D46: 3 | E46: 0.3333333333 | G46: =IF('1. Identify Participants'!C12="","",'1. Identify Participants'!C12) -> Reinie | I46: 4 | J46: 0.25 | L46: =IF('1. Identify Participants'!C12="","",'1. Identify Participants'!C12) -> Reinie | N46: 2 | O46: 0.5
B47: =IF('1. Identify Participants'!C13="","",'1. Identify Participants'!C13) ->  | G47: =IF('1. Identify Participants'!C13="","",'1. Identify Participants'!C13) ->  | L47: =IF('1. Identify Participants'!C13="","",'1. Identify Participants'!C13) -> 
B48: =IF('1. Identify Participants'!C14="","",'1. Identify Participants'!C14) ->  | G48: =IF('1. Identify Participants'!C14="","",'1. Identify Participants'!C14) ->  | L48: =IF('1. Identify Participants'!C14="","",'1. Identify Participants'!C14) -> 
B49: =IF('1. Identify Participants'!C15="","",'1. Identify Participants'!C15) ->  | G49: =IF('1. Identify Participants'!C15="","",'1. Identify Participants'!C15) ->  | L49: =IF('1. Identify Participants'!C15="","",'1. Identify Participants'!C15) -> 
B50: =IF('1. Identify Participants'!C16="","",'1. Identify Participants'!C16) ->  | G50: =IF('1. Identify Participants'!C16="","",'1. Identify Participants'!C16) ->  | L50: =IF('1. Identify Participants'!C16="","",'1. Identify Participants'!C16) -> 
B51: =IF('1. Identify Participants'!C17="","",'1. Identify Participants'!C17) ->  | G51: =IF('1. Identify Participants'!C17="","",'1. Identify Participants'!C17) ->  | L51: =IF('1. Identify Participants'!C17="","",'1. Identify Participants'!C17) -> 
B52: =IF('1. Identify Participants'!C18="","",'1. Identify Participants'!C18) ->  | G52: =IF('1. Identify Participants'!C18="","",'1. Identify Participants'!C18) ->  | L52: =IF('1. Identify Participants'!C18="","",'1. Identify Participants'!C18) -> 
A55: Step .10 | B55: Participant | C55: Attribute Comparison | E55: Weight | F55: Step .11 | G55: Participant | H55: Attribute Comparison | J55: Weight | K55: Step .12 | L55: Participant | M55: Attribute Comparison | O55: Weight
C56: Maintainability | D56: Hydrological Impacts
B57: =IF('1. Identify Participants'!C9="","",'1. Identify Participants'!C9) -> Enrique | D57: 2 | E57: =IF(B57="","",IF(C57="",1,C57)/IF(D57="",1,D57)) -> 0.5 | G57: =IF('1. Identify Participants'!C9="","",'1. Identify Participants'!C9) -> Enrique | J57: =IF(G57="","",IF(H57="",1,H57)/IF(I57="",1,I57)) -> 1 | L57: =IF('1. Identify Participants'!C9="","",'1. Identify Participants'!C9) -> Enrique | O57: =IF(L57="","",IF(M57="",1,M57)/IF(N57="",1,N57)) -> 1
B58: =IF('1. Identify Participants'!C10="","",'1. Identify Participants'!C10) -> Hank | E58: =IF(B58="","",IF(C58="",1,C58)/IF(D58="",1,D58)) -> 1 | G58: =IF('1. Identify Participants'!C10="","",'1. Identify Participants'!C10) -> Hank | J58: =IF(G58="","",IF(H58="",1,H58)/IF(I58="",1,I58)) -> 1 | L58: =IF('1. Identify Participants'!C10="","",'1. Identify Participants'!C10) -> Hank | O58: =IF(L58="","",IF(M58="",1,M58)/IF(N58="",1,N58)) -> 1
B59: =IF('1. Identify Participants'!C11="","",'1. Identify Participants'!C11) -> Peter | D59: 2 | E59: 0.5 | G59: =IF('1. Identify Participants'!C11="","",'1. Identify Participants'!C11) -> Peter | J59: 1 | L59: =IF('1. Identify Participants'!C11="","",'1. Identify Participants'!C11) -> Peter | O59: 1
B60: =IF('1. Identify Participants'!C12="","",'1. Identify Participants'!C12) -> Reinie | D60: 3 | E60: 0.3333333333 | G60: =IF('1. Identify Participants'!C12="","",'1. Identify Participants'!C12) -> Reinie | J60: 1 | L60: =IF('1. Identify Participants'!C12="","",'1. Identify Participants'!C12) -> Reinie | O60: 1
B61: =IF('1. Identify Participants'!C13="","",'1. Identify Participants'!C13) ->  | G61: =IF('1. Identify Participants'!C13="","",'1. Identify Participants'!C13) ->  | L61: =IF('1. Identify Participants'!C13="","",'1. Identify Participants'!C13) -> 
B62: =IF('1. Identify Participants'!C14="","",'1. Identify Participants'!C14) ->  | G62: =IF('1. Identify Participants'!C14="","",'1. Identify Participants'!C14) ->  | L62: =IF('1. Identify Participants'!C14="","",'1. Identify Participants'!C14) -> 
B63: =IF('1. Identify Participants'!C15="","",'1. Identify Participants'!C15) ->  | G63: =IF('1. Identify Participants'!C15="","",'1. Identify Participants'!C15) ->  | L63: =IF('1. Identify Participants'!C15="","",'1. Identify Participants'!C15) -> 
B64: =IF('1. Identify Participants'!C16="","",'1. Identify Participants'!C16) ->  | G64: =IF('1. Identify Participants'!C16="","",'1. Identify Participants'!C16) ->  | L64: =IF('1. Identify Participants'!C16="","",'1. Identify Participants'!C16) -> 
B65: =IF('1. Identify Participants'!C17="","",'1. Identify Participants'!C17) ->  | G65: =IF('1. Identify Participants'!C17="","",'1. Identify Participants'!C17) ->  | L65: =IF('1. Identify Participants'!C17="","",'1. Identify Participants'!C17) -> 
B66: =IF('1. Identify Participants'!C18="","",'1. Identify Participants'!C18) ->  | G66: =IF('1. Identify Participants'!C18="","",'1. Identify Participants'!C18) ->  | L66: =IF('1. Identify Participants'!C18="","",'1. Identify Participants'!C18) -> 
A69: Step .13 | B69: Participant | C69: Attribute Comparison | E69: Weight | F69: Step .14 | G69: Participant | H69: Attribute Comparison | J69: Weight | K69: Step .15 | L69: Participant | M69: Attribute Comparison | O69: Weight
B71: =IF('1. Identify Participants'!C9="","",'1. Identify Participants'!C9) -> Enrique | E71: =IF(B71="","",IF(C71="",1,C71)/IF(D71="",1,D71)) -> 1 | G71: =IF('1. Identify Participants'!C9="","",'1. Identify Participants'!C9) -> Enrique | J71: =IF(G71="","",IF(H71="",1,H71)/IF(I71="",1,I71)) -> 1 | L71: =IF('1. Identify Participants'!C9="","",'1. Identify Participants'!C9) -> Enrique | O71: =IF(L71="","",IF(M71="",1,M71)/IF(N71="",1,N71)) -> 1
B72: =IF('1. Identify Participants'!C10="","",'1. Identify Participants'!C10) -> Hank | E72: =IF(B72="","",IF(C72="",1,C72)/IF(D72="",1,D72)) -> 1 | G72: =IF('1. Identify Participants'!C10="","",'1. Identify Participants'!C10) -> Hank | J72: =IF(G72="","",IF(H72="",1,H72)/IF(I72="",1,I72)) -> 1 | L72: =IF('1. Identify Participants'!C10="","",'1. Identify Participants'!C10) -> Hank | O72: =IF(L72="","",IF(M72="",1,M72)/IF(N72="",1,N72)) -> 1
B73: =IF('1. Identify Participants'!C11="","",'1. Identify Participants'!C11) -> Peter | E73: 1 | G73: =IF('1. Identify Participants'!C11="","",'1. Identify Participants'!C11) -> Peter | J73: 1 | L73: =IF('1. Identify Participants'!C11="","",'1. Identify Participants'!C11) -> Peter | O73: 1
B74: =IF('1. Identify Participants'!C12="","",'1. Identify Participants'!C12) -> Reinie | E74: 1 | G74: =IF('1. Identify Participants'!C12="","",'1. Identify Participants'!C12) -> Reinie | J74: 1 | L74: =IF('1. Identify Participants'!C12="","",'1. Identify Participants'!C12) -> Reinie | O74: 1
B75: =IF('1. Identify Participants'!C13="","",'1. Identify Participants'!C13) ->  | G75: =IF('1. Identify Participants'!C13="","",'1. Identify Participants'!C13) ->  | L75: =IF('1. Identify Participants'!C13="","",'1. Identify Participants'!C13) -> 
B76: =IF('1. Identify Participants'!C14="","",'1. Identify Participants'!C14) ->  | G76: =IF('1. Identify Participants'!C14="","",'1. Identify Participants'!C14) ->  | L76: =IF('1. Identify Participants'!C14="","",'1. Identify Participants'!C14) -> 
B77: =IF('1. Identify Participants'!C15="","",'1. Identify Participants'!C15) ->  | G77: =IF('1. Identify Participants'!C15="","",'1. Identify Participants'!C15) ->  | L77: =IF('1. Identify Participants'!C15="","",'1. Identify Participants'!C15) -> 
B78: =IF('1. Identify Participants'!C16="","",'1. Identify Participants'!C16) ->  | G78: =IF('1. Identify Participants'!C16="","",'1. Identify Participants'!C16) ->  | L78: =IF('1. Identify Participants'!C16="","",'1. Identify Participants'!C16) -> 
B79: =IF('1. Identify Participants'!C17="","",'1. Identify Participants'!C17) ->  | G79: =IF('1. Identify Participants'!C17="","",'1. Identify Participants'!C17) ->  | L79: =IF('1. Identify Participants'!C17="","",'1. Identify Participants'!C17) -> 
B80: =IF('1. Identify Participants'!C18="","",'1. Identify Participants'!C18) ->  | G80: =IF('1. Identify Participants'!C18="","",'1. Identify Participants'!C18) ->  | L80: =IF('1. Identify Participants'!C18="","",'1. Identify Participants'!C18) -> 
A83: Step .16 | B83: Participant | C83: Attribute Comparison | E83: Weight | F83: Step .17 | G83: Participant | H83: Attribute Comparison | J83: Weight | K83: Step .18 | L83: Participant | M83: Attribute Comparison | O83: Weight
B85: =IF('1. Identify Participants'!C9="","",'1. Identify Participants'!C9) -> Enrique | E85: =IF(B85="","",IF(C85="",1,C85)/IF(D85="",1,D85)) -> 1 | G85: =IF('1. Identify Participants'!C9="","",'1. Identify Participants'!C9) -> Enrique | J85: =IF(G85="","",IF(H85="",1,H85)/IF(I85="",1,I85)) -> 1 | L85: =IF('1. Identify Participants'!C9="","",'1. Identify Participants'!C9) -> Enrique | O85: =IF(L85="","",IF(M85="",1,M85)/IF(N85="",1,N85)) -> 1
B86: =IF('1. Identify Participants'!C10="","",'1. Identify Participants'!C10) -> Hank | E86: =IF(B86="","",IF(C86="",1,C86)/IF(D86="",1,D86)) -> 1 | G86: =IF('1. Identify Participants'!C10="","",'1. Identify Participants'!C10) -> Hank | J86: =IF(G86="","",IF(H86="",1,H86)/IF(I86="",1,I86)) -> 1 | L86: =IF('1. Identify Participants'!C10="","",'1. Identify Participants'!C10) -> Hank | O86: =IF(L86="","",IF(M86="",1,M86)/IF(N86="",1,N86)) -> 1
B87: =IF('1. Identify Participants'!C11="","",'1. Identify Participants'!C11) -> Peter | E87: 1 | G87: =IF('1. Identify Participants'!C11="","",'1. Identify Participants'!C11) -> Peter | J87: 1 | L87: =IF('1. Identify Participants'!C11="","",'1. Identify Participants'!C11) -> Peter | O87: 1
B88: =IF('1. Identify Participants'!C12="","",'1. Identify Participants'!C12) -> Reinie | E88: 1 | G88: =IF('1. Identify Participants'!C12="","",'1. Identify Participants'!C12) -> Reinie | J88: 1 | L88: =IF('1. Identify Participants'!C12="","",'1. Identify Participants'!C12) -> Reinie | O88: 1
B89: =IF('1. Identify Participants'!C13="","",'1. Identify Participants'!C13) ->  | G89: =IF('1. Identify Participants'!C13="","",'1. Identify Participants'!C13) ->  | L89: =IF('1. Identify Participants'!C13="","",'1. Identify Participants'!C13) -> 
B90: =IF('1. Identify Participants'!C14="","",'1. Identify Participants'!C14) ->  | G90: =IF('1. Identify Participants'!C14="","",'1. Identify Participants'!C14) ->  | L90: =IF('1. Identify Participants'!C14="","",'1. Identify Participants'!C14) -> 
B91: =IF('1. Identify Participants'!C15="","",'1. Identify Participants'!C15) ->  | G91: =IF('1. Identify Participants'!C15="","",'1. Identify Participants'!C15) ->  | L91: =IF('1. Identify Participants'!C15="","",'1. Identify Participants'!C15) -> 
B92: =IF('1. Identify Participants'!C16="","",'1. Identify Participants'!C16) ->  | G92: =IF('1. Identify Participants'!C16="","",'1. Identify Participants'!C16) ->  | L92: =IF('1. Identify Participants'!C16="","",'1. Identify Participants'!C16) -> 
B93: =IF('1. Identify Participants'!C17="","",'1. Identify Participants'!C17) ->  | G93: =IF('1. Identify Participants'!C17="","",'1. Identify Participants'!C17) ->  | L93: =IF('1. Identify Participants'!C17="","",'1. Identify Participants'!C17) -> 
B94: =IF('1. Identify Participants'!C18="","",'1. Identify Participants'!C18) ->  | G94: =IF('1. Identify Participants'!C18="","",'1. Identify Participants'!C18) ->  | L94: =IF('1. Identify Participants'!C18="","",'1. Identify Participants'!C18) -> 
A97: Step .19 | B97: Participant | C97: Attribute Comparison | E97: Weight | F97: Step .20 | G97: Participant | H97: Attribute Comparison | J97: Weight | K97: Step .21 | L97: Participant | M97: Attribute Comparison | O97: Weight
B99: =IF('1. Identify Participants'!C9="","",'1. Identify Participants'!C9) -> Enrique | E99: =IF(B99="","",IF(C99="",1,C99)/IF(D99="",1,D99)) -> 1 | G99: =IF('1. Identify Participants'!C9="","",'1. Identify Participants'!C9) -> Enrique | J99: =IF(G99="","",IF(H99="",1,H99)/IF(I99="",1,I99)) -> 1 | L99: =IF('1. Identify Participants'!C9="","",'1. Identify Participants'!C9) -> Enrique | O99: =IF(L99="","",IF(M99="",1,M99)/IF(N99="",1,N99)) -> 1
B100: =IF('1. Identify Participants'!C10="","",'1. Identify Participants'!C10) -> Hank | E100: =IF(B100="","",IF(C100="",1,C100)/IF(D100="",1,D100)) -> 1 | G100: =IF('1. Identify Participants'!C10="","",'1. Identify Participants'!C10) -> Hank | J100: =IF(G100="","",IF(H100="",1,H100)/IF(I100="",1,I100)) -> 1 | L100: =IF('1. Identify Participants'!C10="","",'1. Identify Participants'!C10) -> Hank | O100: =IF(L100="","",IF(M100="",1,M100)/IF(N100="",1,N100)) -> 1
B101: =IF('1. Identify Participants'!C11="","",'1. Identify Participants'!C11) -> Peter | E101: 1 | G101: =IF('1. Identify Participants'!C11="","",'1. Identify Participants'!C11) -> Peter | J101: 1 | L101: =IF('1. Identify Participants'!C11="","",'1. Identify Participants'!C11) -> Peter | O101: 1
B102: =IF('1. Identify Participants'!C12="","",'1. Identify Participants'!C12) -> Reinie | E102: 1 | G102: =IF('1. Identify Participants'!C12="","",'1. Identify Participants'!C12) -> Reinie | J102: 1 | L102: =IF('1. Identify Participants'!C12="","",'1. Identify Participants'!C12) -> Reinie | O102: 1
B103: =IF('1. Identify Participants'!C13="","",'1. Identify Participants'!C13) ->  | G103: =IF('1. Identify Participants'!C13="","",'1. Identify Participants'!C13) ->  | L103: =IF('1. Identify Participants'!C13="","",'1. Identify Participants'!C13) -> 
B104: =IF('1. Identify Participants'!C14="","",'1. Identify Participants'!C14) ->  | G104: =IF('1. Identify Participants'!C14="","",'1. Identify Participants'!C14) ->  | L104: =IF('1. Identify Participants'!C14="","",'1. Identify Participants'!C14) -> 
B105: =IF('1. Identify Participants'!C15="","",'1. Identify Participants'!C15) ->  | G105: =IF('1. Identify Participants'!C15="","",'1. Identify Participants'!C15) ->  | L105: =IF('1. Identify Participants'!C15="","",'1. Identify Participants'!C15) -> 
B106: =IF('1. Identify Participants'!C16="","",'1. Identify Participants'!C16) ->  | G106: =IF('1. Identify Participants'!C16="","",'1. Identify Participants'!C16) ->  | L106: =IF('1. Identify Participants'!C16="","",'1. Identify Participants'!C16) -> 
B107: =IF('1. Identify Participants'!C17="","",'1. Identify Participants'!C17) ->  | G107: =IF('1. Identify Participants'!C17="","",'1. Identify Participants'!C17) ->  | L107: =IF('1. Identify Participants'!C17="","",'1. Identify Participants'!C17) -> 
B108: =IF('1. Identify Participants'!C18="","",'1. Identify Participants'!C18) ->  | G108: =IF('1. Identify Participants'!C18="","",'1. Identify Participants'!C18) ->  | L108: =IF('1. Identify Participants'!C18="","",'1. Identify Participants'!C18) -> 
A111: Step .22 | B111: Participant | C111: Attribute Comparison | E111: Weight | F111: Step .23 | G111: Participant | H111: Attribute Comparison | J111: Weight | K111: Step .24 | L111: Participant | M111: Attribute Comparison | O111: Weight
B113: =IF('1. Identify Participants'!C9="","",'1. Identify Participants'!C9) -> Enrique | E113: =IF(B113="","",IF(C113="",1,C113)/IF(D113="",1,D113)) -> 1 | G113: =IF('1. Identify Participants'!C9="","",'1. Identify Participants'!C9) -> Enrique | J113: =IF(G113="","",IF(H113="",1,H113)/IF(I113="",1,I113)) -> 1 | L113: =IF('1. Identify Participants'!C9="","",'1. Identify Participants'!C9) -> Enrique | O113: =IF(L113="","",IF(M113="",1,M113)/IF(N113="",1,N113)) -> 1
B114: =IF('1. Identify Participants'!C10="","",'1. Identify Participants'!C10) -> Hank | E114: =IF(B114="","",IF(C114="",1,C114)/IF(D114="",1,D114)) -> 1 | G114: =IF('1. Identify Participants'!C10="","",'1. Identify Participants'!C10) -> Hank | J114: =IF(G114="","",IF(H114="",1,H114)/IF(I114="",1,I114)) -> 1 | L114: =IF('1. Identify Participants'!C10="","",'1. Identify Participants'!C10) -> Hank | O114: =IF(L114="","",IF(M114="",1,M114)/IF(N114="",1,N114)) -> 1
B115: =IF('1. Identify Participants'!C11="","",'1. Identify Participants'!C11) -> Peter | E115: 1 | G115: =IF('1. Identify Participants'!C11="","",'1. Identify Participants'!C11) -> Peter | J115: 1 | L115: =IF('1. Identify Participants'!C11="","",'1. Identify Participants'!C11) -> Peter | O115: 1
B116: =IF('1. Identify Participants'!C12="","",'1. Identify Participants'!C12) -> Reinie | E116: 1 | G116: =IF('1. Identify Participants'!C12="","",'1. Identify Participants'!C12) -> Reinie | J116: 1 | L116: =IF('1. Identify Participants'!C12="","",'1. Identify Participants'!C12) -> Reinie | O116: 1
B117: =IF('1. Identify Participants'!C13="","",'1. Identify Participants'!C13) ->  | G117: =IF('1. Identify Participants'!C13="","",'1. Identify Participants'!C13) ->  | L117: =IF('1. Identify Participants'!C13="","",'1. Identify Participants'!C13) -> 
B118: =IF('1. Identify Participants'!C14="","",'1. Identify Participants'!C14) ->  | G118: =IF('1. Identify Participants'!C14="","",'1. Identify Participants'!C14) ->  | L118: =IF('1. Identify Participants'!C14="","",'1. Identify Participants'!C14) -> 
B119: =IF('1. Identify Participants'!C15="","",'1. Identify Participants'!C15) ->  | G119: =IF('1. Identify Participants'!C15="","",'1. Identify Participants'!C15) ->  | L119: =IF('1. Identify Participants'!C15="","",'1. Identify Participants'!C15) -> 
B120: =IF('1. Identify Participants'!C16="","",'1. Identify Participants'!C16) ->  | G120: =IF('1. Identify Participants'!C16="","",'1. Identify Participants'!C16) ->  | L120: =IF('1. Identify Participants'!C16="","",'1. Identify Participants'!C16) -> 
B121: =IF('1. Identify Participants'!C17="","",'1. Identify Participants'!C17) ->  | G121: =IF('1. Identify Participants'!C17="","",'1. Identify Participants'!C17) ->  | L121: =IF('1. Identify Participants'!C17="","",'1. Identify Participants'!C17) -> 
B122: =IF('1. Identify Participants'!C18="","",'1. Identify Participants'!C18) ->  | G122: =IF('1. Identify Participants'!C18="","",'1. Identify Participants'!C18) ->  | L122: =IF('1. Identify Participants'!C18="","",'1. Identify Participants'!C18) -> 
A125: Step .25 | B125: Participant | C125: Attribute Comparison | E125: Weight | F125: Step .26 | G125: Participant | H125: Attribute Comparison | J125: Weight | K125: Step .27 | L125: Participant | M125: Attribute Comparison | O125: Weight
B127: =IF('1. Identify Participants'!C9="","",'1. Identify Participants'!C9) -> Enrique | E127: =IF(B127="","",IF(C127="",1,C127)/IF(D127="",1,D127)) -> 1 | G127: =IF('1. Identify Participants'!C9="","",'1. Identify Participants'!C9) -> Enrique | J127: =IF(G127="","",IF(H127="",1,H127)/IF(I127="",1,I127)) -> 1 | L127: =IF('1. Identify Participants'!C9="","",'1. Identify Participants'!C9) -> Enrique | O127: =IF(L127="","",IF(M127="",1,M127)/IF(N127="",1,N127)) -> 1
B128: =IF('1. Identify Participants'!C10="","",'1. Identify Participants'!C10) -> Hank | E128: =IF(B128="","",IF(C128="",1,C128)/IF(D128="",1,D128)) -> 1 | G128: =IF('1. Identify Participants'!C10="","",'1. Identify Participants'!C10) -> Hank | J128: =IF(G128="","",IF(H128="",1,H128)/IF(I128="",1,I128)) -> 1 | L128: =IF('1. Identify Participants'!C10="","",'1. Identify Participants'!C10) -> Hank | O128: =IF(L128="","",IF(M128="",1,M128)/IF(N128="",1,N128)) -> 1
B129: =IF('1. Identify Participants'!C11="","",'1. Identify Participants'!C11) -> Peter | E129: 1 | G129: =IF('1. Identify Participants'!C11="","",'1. Identify Participants'!C11) -> Peter | J129: 1 | L129: =IF('1. Identify Participants'!C11="","",'1. Identify Participants'!C11) -> Peter | O129: 1
B130: =IF('1. Identify Participants'!C12="","",'1. Identify Participants'!C12) -> Reinie | E130: 1 | G130: =IF('1. Identify Participants'!C12="","",'1. Identify Participants'!C12) -> Reinie | J130: 1 | L130: =IF('1. Identify Participants'!C12="","",'1. Identify Participants'!C12) -> Reinie | O130: 1
B131: =IF('1. Identify Participants'!C13="","",'1. Identify Participants'!C13) ->  | G131: =IF('1. Identify Participants'!C13="","",'1. Identify Participants'!C13) ->  | L131: =IF('1. Identify Participants'!C13="","",'1. Identify Participants'!C13) -> 
B132: =IF('1. Identify Participants'!C14="","",'1. Identify Participants'!C14) ->  | G132: =IF('1. Identify Participants'!C14="","",'1. Identify Participants'!C14) ->  | L132: =IF('1. Identify Participants'!C14="","",'1. Identify Participants'!C14) -> 
B133: =IF('1. Identify Participants'!C15="","",'1. Identify Participants'!C15) ->  | G133: =IF('1. Identify Participants'!C15="","",'1. Identify Participants'!C15) ->  | L133: =IF('1. Identify Participants'!C15="","",'1. Identify Participants'!C15) -> 
B134: =IF('1. Identify Participants'!C16="","",'1. Identify Participants'!C16) ->  | G134: =IF('1. Identify Participants'!C16="","",'1. Identify Participants'!C16) ->  | L134: =IF('1. Identify Participants'!C16="","",'1. Identify Participants'!C16) -> 
B135: =IF('1. Identify Participants'!C17="","",'1. Identify Participants'!C17) ->  | G135: =IF('1. Identify Participants'!C17="","",'1. Identify Participants'!C17) ->  | L135: =IF('1. Identify Participants'!C17="","",'1. Identify Participants'!C17) -> 
B136: =IF('1. Identify Participants'!C18="","",'1. Identify Participants'!C18) ->  | G136: =IF('1. Identify Participants'!C18="","",'1. Identify Participants'!C18) ->  | L136: =IF('1. Identify Participants'!C18="","",'1. Identify Participants'!C18) -> 
A139: Step .28 | B139: Participant | C139: Attribute Comparison | E139: Weight
B141: =IF('1. Identify Participants'!C9="","",'1. Identify Participants'!C9) -> Enrique | E141: =IF(B141="","",IF(C141="",1,C141)/IF(D141="",1,D141)) -> 1
B142: =IF('1. Identify Participants'!C10="","",'1. Identify Participants'!C10) -> Hank | E142: =IF(B142="","",IF(C142="",1,C142)/IF(D142="",1,D142)) -> 1
B143: =IF('1. Identify Participants'!C11="","",'1. Identify Participants'!C11) -> Peter | E143: 1
B144: =IF('1. Identify Participants'!C12="","",'1. Identify Participants'!C12) -> Reinie | E144: 1
B145: =IF('1. Identify Participants'!C13="","",'1. Identify Participants'!C13) -> 
B146: =IF('1. Identify Participants'!C14="","",'1. Identify Participants'!C14) -> 
B147: =IF('1. Identify Participants'!C15="","",'1. Identify Participants'!C15) -> 
B148: =IF('1. Identify Participants'!C16="","",'1. Identify Participants'!C16) -> 
B149: =IF('1. Identify Participants'!C17="","",'1. Identify Participants'!C17) -> 
B150: =IF('1. Identify Participants'!C18="","",'1. Identify Participants'!C18) -> 

Sheet 6. Decision Matrix (hidden)
B1: ='Project Scope'!C6 -> Davis Road Bridge Replacement
B3: Which attribute is more important in meeting the decision goal? CLICK NEXT TAB!
B5: =IF('1. Identify Participants'!C9="","",'1. Identify Participants'!C9) -> Enrique | C5: Score (1- 9) | D5: =IF(B6="","",B6) -> Local Operations | E5: =IF(B7="","",B7) -> Environmental Impacts | F5: =IF(B8="","",B8) -> Construction Impacts | G5: =IF(B9="","",B9) -> Maintainability | H5: =IF(B10="","",B10) -> Hydrological Impacts | I5: =IF(B11="","",B11) ->  | J5: =IF(B12="","",B12) ->  | K5: =IF(B13="","",B13) ->  | N5: =IF(B6="","",B6) -> Local Operations | O5: =IF(B7="","",B7) -> Environmental Impacts | P5: =IF(B8="","",B8) -> Construction Impacts | Q5: =IF(B9="","",B9) -> Maintainability | R5: =IF(B10="","",B10) -> Hydrological Impacts | S5: =IF(B11="","",B11) ->  | T5: =IF(B12="","",B12) ->  | U5: =IF(B13="","",B13) ->  | W5: Score/Participant
B6: Local Operations | C6: =IFERROR(AVERAGE(D6:K6),"") -> 2.6 | D6: =IF(AND($B$5<>"",$B6<>""),1,"") -> 1 | E6: ='5. Attribute Prioritization'!$E$15 -> 2 | F6: ='5. Attribute Prioritization'!$J$15 -> 5 | G6: ='5. Attribute Prioritization'!$O$15 -> 3 | H6: ='5. Attribute Prioritization'!$E$29 -> 2 | M6: Normalized Matrix | N6: =IFERROR(D6/D14,"") -> 0.3947368421 | O6: =IFERROR(E6/E14,"") -> 0.1785714286 | P6: 0.2272727273 | Q6: 0.4675324675 | R6: 0.5063291139 | W6: =IFERROR(AVERAGE(N6:U6),"") -> 0.3548885159
B7: Environmental Impacts | C7: =IFERROR(AVERAGE(D7:K7),"") -> 1.4 | D7: =IF(E6="","",1/E6) -> 0.5 | E7: =IF(AND($B$5<>"",$B7<>""),1,"") -> 1 | F7: ='5. Attribute Prioritization'!$J$29 -> 5 | G7: ='5. Attribute Prioritization'!$O$29 -> 0.25 | H7: ='5. Attribute Prioritization'!$E$43 -> 0.25 | N7: =IFERROR(D7/D14,"") -> 0.1973684211 | O7: =IFERROR(E7/E14,"") -> 0.08928571429 | P7: 0.2272727273 | Q7: 0.03896103896 | R7: 0.06329113924 | W7: =IFERROR(AVERAGE(N7:U7),"") -> 0.1232358082
B8: Construction Impacts | C8: 0.3533333333 | D8: =IF(F6="","",1/F6) -> 0.2 | E8: =IF(F7="","",1/F7) -> 0.2 | F8: =IF(AND($B$5<>"",$B8<>""),1,"") -> 1 | G8: ='5. Attribute Prioritization'!$J$43 -> 0.1666666667 | H8: ='5. Attribute Prioritization'!$O$43 -> 0.2 | N8: =IFERROR(D8/D14,"") -> 0.07894736842 | O8: =IFERROR(E8/E14,"") -> 0.01785714286 | P8: 0.04545454545 | Q8: 0.02597402597 | R8: 0.05063291139 | W8: 0.04377319882
B9: Maintainability | C9: 2.366666667 | D9: =IF(G6="","",1/G6) -> 0.3333333333 | E9: =IF(G7="","",1/G7) -> 4 | F9: =IF(G8="","",1/G8) -> 6 | G9: =IF(AND($B$5<>"",$B9<>""),1,"") -> 1 | H9: ='5. Attribute Prioritization'!$E$57 -> 0.5 | N9: =IFERROR(D9/D14,"") -> 0.1315789474 | O9: =IFERROR(E9/E14,"") -> 0.3571428571 | P9: 0.2727272727 | Q9: 0.1558441558 | R9: 0.1265822785 | W9: 0.2087751023
B10: Hydrological Impacts | C10: 2.5 | D10: =IF(H6="","",1/H6) -> 0.5 | E10: =IF(H7="","",1/H7) -> 4 | F10: =IF(H8="","",1/H8) -> 5 | G10: =IF(H9="","",1/H9) -> 2 | H10: =IF(AND($B$5<>"",$B10<>""),1,"") -> 1 | N10: =IFERROR(D10/D14,"") -> 0.1973684211 | O10: =IFERROR(E10/E14,"") -> 0.3571428571 | P10: 0.2272727273 | Q10: 0.3116883117 | R10: 0.253164557 | W10: 0.2693273748
D11: =IF(I6="","",1/I6) ->  | E11: =IF(I7="","",1/I7) ->  | F11: =IF(I8="","",1/I8) ->  | G11: =IF(I9="","",1/I9) ->  | H11: =IF(I10="","",1/I10) ->  | I11: =IF(AND($B$5<>"",$B11<>""),1,"") ->  | N11: =IFERROR(D11/D14,"") ->  | O11: =IFERROR(E11/E14,"") -> 
D12: =IF(J6="","",1/J6) ->  | E12: =IF(J7="","",1/J7) ->  | F12: =IF(J8="","",1/J8) ->  | G12: =IF(J9="","",1/J9) ->  | H12: =IF(J10="","",1/J10) ->  | I12: =IF(J11="","",1/J11) ->  | J12: =IF(AND($B$5<>"",$B12<>""),1,"") ->  | N12: =IFERROR(D12/D14,"") -> 
D13: =IF(K6="","",1/K6) ->  | E13: =IF(K7="","",1/K7) ->  | F13: =IF(K8="","",1/K8) ->  | G13: =IF(K9="","",1/K9) ->  | H13: =IF(K10="","",1/K10) ->  | I13: =IF(K11="","",1/K11) ->  | J13: =IF(K12="","",1/K12) ->  | K13: =IF(AND($B$5<>"",$B13<>""),1,"") ->  | N13: =IFERROR(D13/D14,"") ->  | O13: =IFERROR(E13/E14,"") -> 
D14: =IFERROR(SUM(D6:D13),"") -> 2.533333333 | E14: =IFERROR(SUM(E6:E13),"") -> 11.2 | F14: 22 | G14: 6.416666667 | H14: 3.95 | I14: 0 | J14: 0 | K14: 0
B16: =IF('1. Identify Participants'!C10="","",'1. Identify Participants'!C10) -> Hank | C16: Score (1- 9) | D16: =D5 -> Local Operations | E16: =E5 -> Environmental Impacts | F16: Construction Impacts | G16: Maintainability | H16: Hydrological Impacts | N16: =N5 -> Local Operations | O16: =O5 -> Environmental Impacts | P16: Construction Impacts | Q16: Maintainability | R16: Hydrological Impacts | W16: Score/Participent
B17: =IF(B6="","",B6) -> Local Operations | C17: =IFERROR(AVERAGE(D17:K17),"") -> 3.1 | D17: =IF(AND($B$16<>"",$B17<>""),1,"") -> 1 | E17: ='5. Attribute Prioritization'!$E$16 -> 6 | F17: ='5. Attribute Prioritization'!$J$16 -> 6 | G17: ='5. Attribute Prioritization'!$O$16 -> 2 | H17: ='5. Attribute Prioritization'!$E$30 -> 0.5 | M17: Normalized Matrix | N17: =IFERROR(D17/D25,"") -> 0.2608695652 | O17: =IFERROR(E17/E25,"") -> 0.3461538462 | P17: 0.2727272727 | Q17: 0.4580152672 | R17: 0.1744186047 | W17: =IFERROR(AVERAGE(N17:U17),"") -> 0.3024369112
B18: =IF(B7="","",B7) -> Environmental Impacts | C18: =IFERROR(AVERAGE(D18:K18),"") -> 0.9133333333 | D18: =IF(E17="","",1/E17) -> 0.1666666667 | E18: =IF(AND($B$16<>"",$B18<>""),1,"") -> 1 | F18: ='5. Attribute Prioritization'!$J$30 -> 3 | G18: ='5. Attribute Prioritization'!$O$30 -> 0.2 | H18: ='5. Attribute Prioritization'!$E$44 -> 0.2 | N18: =IFERROR(D18/D25,"") -> 0.04347826087 | O18: =IFERROR(E18/E25,"") -> 0.05769230769 | P18: 0.1363636364 | Q18: 0.04580152672 | R18: 0.06976744186 | W18: =IFERROR(AVERAGE(N18:U18),"") -> 0.0706206347
B19: Construction Impacts | C19: 0.3666666667 | D19: =IF(F17="","",1/F17) -> 0.1666666667 | E19: =IF(F18="","",1/F18) -> 0.3333333333 | F19: =IF(AND($B$16<>"",$B19<>""),1,"") -> 1 | G19: ='5. Attribute Prioritization'!$J$44 -> 0.1666666667 | H19: ='5. Attribute Prioritization'!$O$44 -> 0.1666666667 | N19: =IFERROR(D19/D25,"") -> 0.04347826087 | O19: =IFERROR(E19/E25,"") -> 0.01923076923 | P19: 0.04545454545 | Q19: 0.03816793893 | R19: 0.05813953488 | W19: 0.04089420987
B20: Maintainability | C20: 2.7 | D20: =IF(G17="","",1/G17) -> 0.5 | E20: =IF(G18="","",1/G18) -> 5 | F20: =IF(G19="","",1/G19) -> 6 | G20: =IF(AND($B$16<>"",$B20<>""),1,"") -> 1 | H20: ='5. Attribute Prioritization'!$E$58 -> 1 | N20: =IFERROR(D20/D25,"") -> 0.1304347826 | O20: =IFERROR(E20/E25,"") -> 0.2884615385 | P20: 0.2727272727 | Q20: 0.2290076336 | R20: 0.3488372093 | W20: 0.2538936873
B21: Hydrological Impacts | C21: 3 | D21: =IF(H17="","",1/H17) -> 2 | E21: =IF(H18="","",1/H18) -> 5 | F21: =IF(H19="","",1/H19) -> 6 | G21: =IF(H20="","",1/H20) -> 1 | H21: =IF(AND($B$16<>"",$B21<>""),1,"") -> 1 | N21: =IFERROR(D21/D25,"") -> 0.5217391304 | O21: =IFERROR(E21/E25,"") -> 0.2884615385 | P21: 0.2727272727 | Q21: 0.2290076336 | R21: 0.3488372093 | W21: 0.3321545569
D22: =IF(I17="","",1/I17) ->  | E22: =IF(I18="","",1/I18) ->  | F22: =IF(I19="","",1/I19) ->  | G22: =IF(I20="","",1/I20) ->  | H22: =IF(I21="","",1/I21) ->  | I22: =IF(AND($B$16<>"",$B22<>""),1,"") ->  | N22: =IFERROR(D22/D25,"") ->  | O22: =IFERROR(E22/E25,"") -> 
D23: =IF(J17="","",1/J17) ->  | E23: =IF(J18="","",1/J18) ->  | F23: =IF(J19="","",1/J19) ->  | G23: =IF(J20="","",1/J20) ->  | H23: =IF(J21="","",1/J21) ->  | I23: =IF(J22="","",1/J22) ->  | J23: =IF(AND($B$16<>"",$B23<>""),1,"") ->  | N23: =IFERROR(D23/D25,"") ->  | O23: =IFERROR(E23/E25,"") -> 
D24: =IF(K17="","",1/K17) ->  | E24: =IF(K18="","",1/K18) ->  | F24: =IF(K19="","",1/K19) ->  | G24: =IF(K20="","",1/K20) ->  | H24: =IF(K21="","",1/K21) ->  | I24: =IF(K22="","",1/K22) ->  | J24: =IF(K23="","",1/K23) ->  | K24: =IF(AND($B$16<>"",$B24<>""),1,"") ->  | N24: =IFERROR(D24/D25,"") ->  | O24: =IFERROR(E24/E25,"") -> 
D25: =IFERROR(SUM(D17:D24),"") -> 3.833333333 | E25: =IFERROR(SUM(E17:E24),"") -> 17.33333333 | F25: 22 | G25: 4.366666667 | H25: 2.866666667 | I25: 0 | J25: 0 | K25: 0
B27: =IF('1. Identify Participants'!C11="","",'1. Identify Participants'!C11) -> Peter | C27: Score (1- 9) | D27: =D16 -> Local Operations | E27: =E16 -> Environmental Impacts | F27: Construction Impacts | G27: Maintainability | H27: Hydrological Impacts | N27: =N16 -> Local Operations | O27: =O16 -> Environmental Impacts | P27: Construction Impacts | Q27: Maintainability | R27: Hydrological Impacts | W27: Score/Participent
B28: =IF(B6="","",B6) -> Local Operations | C28: =IFERROR(AVERAGE(D28:K28),"") -> 4.666666667 | D28: =IF(AND($B$27<>"",$B28<>""),1,"") -> 1 | E28: ='5. Attribute Prioritization'!$E$17 -> 4 | F28: ='5. Attribute Prioritization'!$J$17 -> 9 | G28: ='5. Attribute Prioritization'!$O$17 -> 9 | H28: ='5. Attribute Prioritization'!$E$31 -> 0.3333333333 | M28: Normalized Matrix | N28: =IFERROR(D28/D36,"") -> 0.2236024845 | O28: =IFERROR(E28/E36,"") -> 0.2828282828 | P28: 0.3214285714 | Q28: 0.7086614173 | R28: 0.1555555556 | W28: =IFERROR(AVERAGE(N28:U28),"") -> 0.3384152623
B29: =IF(B7="","",B7) -> Environmental Impacts | C29: =IFERROR(AVERAGE(D29:K29),"") -> 1.778571429 | D29: =IF(E28="","",1/E28) -> 0.25 | E29: =IF(AND($B$27<>"",$B29<>""),1,"") -> 1 | F29: ='5. Attribute Prioritization'!$J$31 -> 7 | G29: ='5. Attribute Prioritization'!$O$31 -> 0.5 | H29: ='5. Attribute Prioritization'!$E$45 -> 0.1428571429 | N29: =IFERROR(D29/D36,"") -> 0.05590062112 | O29: =IFERROR(E29/E36,"") -> 0.07070707071 | P29: 0.25 | Q29: 0.03937007874 | R29: 0.06666666667 | W29: =IFERROR(AVERAGE(N29:U29),"") -> 0.09652888745
B30: Construction Impacts | C30: 0.3241269841 | D30: =IF(F28="","",1/F28) -> 0.1111111111 | E30: =IF(F29="","",1/F29) -> 0.1428571429 | F30: =IF(AND($B$27<>"",$B30<>""),1,"") -> 1 | G30: ='5. Attribute Prioritization'!$J$45 -> 0.2 | H30: ='5. Attribute Prioritization'!$O$45 -> 0.1666666667 | N30: =IFERROR(D30/D36,"") -> 0.0248447205 | O30: =IFERROR(E30/E36,"") -> 0.0101010101 | P30: 0.03571428571 | Q30: 0.0157480315 | R30: 0.07777777778 | W30: 0.03283716512
B31: Maintainability | C31: 1.722222222 | D31: =IF(G28="","",1/G28) -> 0.1111111111 | E31: =IF(G29="","",1/G29) -> 2 | F31: =IF(G30="","",1/G30) -> 5 | G31: =IF(AND($B$27<>"",$B31<>""),1,"") -> 1 | H31: ='5. Attribute Prioritization'!$E$59 -> 0.5 | N31: =IFERROR(D31/D36,"") -> 0.0248447205 | O31: =IFERROR(E31/E36,"") -> 0.1414141414 | P31: 0.1785714286 | Q31: 0.07874015748 | R31: 0.2333333333 | W31: 0.1313807563
B32: Hydrological Impacts | C32: 3.8 | D32: =IF(H28="","",1/H28) -> 3 | E32: =IF(H29="","",1/H29) -> 7 | F32: =IF(H30="","",1/H30) -> 6 | G32: =IF(H31="","",1/H31) -> 2 | H32: =IF(AND($B$27<>"",$B32<>""),1,"") -> 1 | N32: =IFERROR(D32/D36,"") -> 0.6708074534 | O32: =IFERROR(E32/E36,"") -> 0.4949494949 | P32: 0.2142857143 | Q32: 0.157480315 | R32: 0.4666666667 | W32: 0.4008379289
D33: =IF(I28="","",1/I28) ->  | E33: =IF(I29="","",1/I29) ->  | F33: =IF(I30="","",1/I30) ->  | G33: =IF(I31="","",1/I31) ->  | H33: =IF(I32="","",1/I32) ->  | I33: =IF(AND($B$27<>"",$B33<>""),1,"") ->  | N33: =IFERROR(D33/D36,"") ->  | O33: =IFERROR(E33/E36,"") -> 
D34: =IF(J28="","",1/J28) ->  | E34: =IF(J29="","",1/J29) ->  | F34: =IF(J30="","",1/J30) ->  | G34: =IF(J31="","",1/J31) ->  | H34: =IF(J32="","",1/J32) ->  | I34: =IF(J33="","",1/J33) ->  | J34: =IF(AND($B$27<>"",$B34<>""),1,"") ->  | N34: =IFERROR(D34/D36,"") ->  | O34: =IFERROR(E34/E36,"") -> 
D35: =IF(K28="","",1/K28) ->  | E35: =IF(K29="","",1/K29) ->  | F35: =IF(K30="","",1/K30) ->  | G35: =IF(K31="","",1/K31) ->  | H35: =IF(K32="","",1/K32) ->  | I35: =IF(K33="","",1/K33) ->  | J35: =IF(K34="","",1/K34) ->  | K35: =IF(AND($B$27<>"",$B35<>""),1,"") ->  | N35: =IFERROR(D35/D36,"") ->  | O35: =IFERROR(E35/E36,"") -> 
D36: =IFERROR(SUM(D28:D35),"") -> 4.472222222 | E36: =IFERROR(SUM(E28:E35),"") -> 14.14285714 | F36: 28 | G36: 12.7 | H36: 2.142857143 | I36: 0 | J36: 0 | K36: 0
B38: =IF('1. Identify Participants'!C12="","",'1. Identify Participants'!C12) -> Reinie | C38: Score (1- 9) | D38: =D27 -> Local Operations | E38: =E27 -> Environmental Impacts | F38: Construction Impacts | G38: Maintainability | H38: Hydrological Impacts | N38: =N27 -> Local Operations | O38: =O27 -> Environmental Impacts | P38: Construction Impacts | Q38: Maintainability | R38: Hydrological Impacts | W38: Score/Participent
B39: =IF(B6="","",B6) -> Local Operations | C39: =IFERROR(AVERAGE(D39:K39),"") -> 4 | D39: =IF(AND($B$38<>"",$B39<>""),1,"") -> 1 | E39: ='5. Attribute Prioritization'!$E$18 -> 9 | F39: ='5. Attribute Prioritization'!$J$18 -> 4 | G39: ='5. Attribute Prioritization'!$O$18 -> 4 | H39: ='5. Attribute Prioritization'!$E$32 -> 2 | M39: Normalized Matrix | N39: =IFERROR(D39/D47,"") -> 0.4736842105 | O39: =IFERROR(E39/E47,"") -> 0.5454545455 | P39: 0.3529411765 | Q39: 0.3902439024 | R39: 0.48 | W39: =IFERROR(AVERAGE(N39:U39),"") -> 0.448464767
B40: =IF(B7="","",B7) -> Environmental Impacts | C40: =IFERROR(AVERAGE(D40:K40),"") -> 0.7555555556 | D40: =IF(E39="","",1/E39) -> 0.1111111111 | E40: =IF(AND($B$38<>"",$B40<>""),1,"") -> 1 | F40: ='5. Attribute Prioritization'!$J$32 -> 0.3333333333 | G40: ='5. Attribute Prioritization'!$O$32 -> 2 | H40: ='5. Attribute Prioritization'!$E$46 -> 0.3333333333 | N40: =IFERROR(D40/D47,"") -> 0.05263157895 | O40: =IFERROR(E40/E47,"") -> 0.06060606061 | P40: 0.02941176471 | Q40: 0.1951219512 | R40: 0.08 | W40: =IFERROR(AVERAGE(N40:U40),"") -> 0.0835542711
B41: Construction Impacts | C41: 1 | D41: =IF(F39="","",1/F39) -> 0.25 | E41: =IF(F40="","",1/F40) -> 3 | F41: =IF(AND($B$38<>"",$B41<>""),1,"") -> 1 | G41: ='5. Attribute Prioritization'!$J$46 -> 0.25 | H41: ='5. Attribute Prioritization'!$O$46 -> 0.5 | N41: =IFERROR(D41/D47,"") -> 0.1184210526 | O41: =IFERROR(E41/E47,"") -> 0.1818181818 | P41: 0.08823529412 | Q41: 0.0243902439 | R41: 0.12 | W41: 0.1065729545
B42: Maintainability | C42: 1.216666667 | D42: =IF(G39="","",1/G39) -> 0.25 | E42: =IF(G40="","",1/G40) -> 0.5 | F42: =IF(G41="","",1/G41) -> 4 | G42: =IF(AND($B$38<>"",$B42<>""),1,"") -> 1 | H42: ='5. Attribute Prioritization'!$E$60 -> 0.3333333333 | N42: =IFERROR(D42/D47,"") -> 0.1184210526 | O42: =IFERROR(E42/E47,"") -> 0.0303030303 | P42: 0.3529411765 | Q42: 0.09756097561 | R42: 0.08 | W42: 0.135845247
B43: Hydrological Impacts | C43: 1.9 | D43: =IF(H39="","",1/H39) -> 0.5 | E43: =IF(H40="","",1/H40) -> 3 | F43: =IF(H41="","",1/H41) -> 2 | G43: =IF(H42="","",1/H42) -> 3 | H43: =IF(AND($B$38<>"",$B43<>""),1,"") -> 1 | N43: =IFERROR(D43/D47,"") -> 0.2368421053 | O43: =IFERROR(E43/E47,"") -> 0.1818181818 | P43: 0.1764705882 | Q43: 0.2926829268 | R43: 0.24 | W43: 0.2255627604
D44: =IF(I39="","",1/I39) ->  | E44: =IF(I40="","",1/I40) ->  | F44: =IF(I41="","",1/I41) ->  | G44: =IF(I42="","",1/I42) ->  | H44: =IF(I43="","",1/I43) ->  | I44: =IF(AND($B$38<>"",$B44<>""),1,"") ->  | N44: =IFERROR(D44/D47,"") ->  | O44: =IFERROR(E44/E47,"") -> 
D45: =IF(J39="","",1/J39) ->  | E45: =IF(J40="","",1/J40) ->  | F45: =IF(J41="","",1/J41) ->  | G45: =IF(J42="","",1/J42) ->  | H45: =IF(J43="","",1/J43) ->  | I45: =IF(J44="","",1/J44) ->  | J45: =IF(AND($B$38<>"",$B45<>""),1,"") ->  | N45: =IFERROR(D45/D47,"") ->  | O45: =IFERROR(E45/E47,"") -> 
D46: =IF(K39="","",1/K39) ->  | E46: =IF(K40="","",1/K40) ->  | F46: =IF(K41="","",1/K41) ->  | G46: =IF(K42="","",1/K42) ->  | H46: =IF(K43="","",1/K43) ->  | I46: =IF(K44="","",1/K44) ->  | J46: =IF(K45="","",1/K45) ->  | K46: =IF(AND($B$38<>"",$B46<>""),1,"") ->  | N46: =IFERROR(D46/D47,"") ->  | O46: =IFERROR(E46/E47,"") -> 
D47: =IFERROR(SUM(D39:D46),"") -> 2.111111111 | E47: =IFERROR(SUM(E39:E46),"") -> 16.5 | F47: 11.33333333 | G47: 10.25 | H47: 4.166666667 | I47: 0 | J47: 0 | K47: 0
B49: =IF('1. Identify Participants'!C13="","",'1. Identify Participants'!C13) ->  | C49: Score (1- 9) | D49: =D38 -> Local Operations | E49: =E38 -> Environmental Impacts | F49: Construction Impacts | G49: Maintainability | H49: Hydrological Impacts | N49: =N38 -> Local Operations | O49: =O38 -> Environmental Impacts | P49: Construction Impacts | Q49: Maintainability | R49: Hydrological Impacts | W49: Score/Participent
B50: =IF(B6="","",B6) -> Local Operations | C50: =IFERROR(AVERAGE(D50:K50),"") ->  | D50: =IF(AND($B$49<>"",$B50<>""),1,"") ->  | E50: ='5. Attribute Prioritization'!$E$19 ->  | F50: ='5. Attribute Prioritization'!$J$19 ->  | G50: ='5. Attribute Prioritization'!$O$19 ->  | H50: ='5. Attribute Prioritization'!$E$33 ->  | M50: Normalized Matrix | N50: =IFERROR(D50/D58,"") ->  | O50: =IFERROR(E50/E58,"") ->  | W50: =IFERROR(AVERAGE(N50:U50),"") -> 
B51: =IF(B7="","",B7) -> Environmental Impacts | C51: =IFERROR(AVERAGE(D51:K51),"") ->  | D51: =IF(E50="","",1/E50) ->  | E51: =IF(AND($B$49<>"",$B51<>""),1,"") ->  | F51: ='5. Attribute Prioritization'!$J$33 ->  | G51: ='5. Attribute Prioritization'!$O$33 ->  | H51: ='5. Attribute Prioritization'!$E$47 ->  | N51: =IFERROR(D51/D58,"") ->  | O51: =IFERROR(E51/E58,"") ->  | W51: =IFERROR(AVERAGE(N51:U51),"") -> 
B52: Construction Impacts | D52: =IF(F50="","",1/F50) ->  | E52: =IF(F51="","",1/F51) ->  | F52: =IF(AND($B$49<>"",$B52<>""),1,"") ->  | G52: ='5. Attribute Prioritization'!$J$47 ->  | H52: ='5. Attribute Prioritization'!$O$47 ->  | N52: =IFERROR(D52/D58,"") ->  | O52: =IFERROR(E52/E58,"") -> 
B53: Maintainability | D53: =IF(G50="","",1/G50) ->  | E53: =IF(G51="","",1/G51) ->  | F53: =IF(G52="","",1/G52) ->  | G53: =IF(AND($B$49<>"",$B53<>""),1,"") ->  | H53: ='5. Attribute Prioritization'!$E$61 ->  | N53: =IFERROR(D53/D58,"") ->  | O53: =IFERROR(E53/E58,"") -> 
B54: Hydrological Impacts | D54: =IF(H50="","",1/H50) ->  | E54: =IF(H51="","",1/H51) ->  | F54: =IF(H52="","",1/H52) ->  | G54: =IF(H53="","",1/H53) ->  | H54: =IF(AND($B$49<>"",$B54<>""),1,"") ->  | N54: =IFERROR(D54/D58,"") ->  | O54: =IFERROR(E54/E58,"") -> 
D55: =IF(I50="","",1/I50) ->  | E55: =IF(I51="","",1/I51) ->  | F55: =IF(I52="","",1/I52) ->  | G55: =IF(I53="","",1/I53) ->  | H55: =IF(I54="","",1/I54) ->  | I55: =IF(AND($B$49<>"",$B55<>""),1,"") ->  | N55: =IFERROR(D55/D58,"") ->  | O55: =IFERROR(E55/E58,"") -> 
D56: =IF(J50="","",1/J50) ->  | E56: =IF(J51="","",1/J51) ->  | F56: =IF(J52="","",1/J52) ->  | G56: =IF(J53="","",1/J53) ->  | H56: =IF(J54="","",1/J54) ->  | I56: =IF(J55="","",1/J55) ->  | J56: =IF(AND($B$49<>"",$B56<>""),1,"") ->  | N56: =IFERROR(D56/D58,"") ->  | O56: =IFERROR(E56/E58,"") -> 
D57: =IF(K50="","",1/K50) ->  | E57: =IF(K51="","",1/K51) ->  | F57: =IF(K52="","",1/K52) ->  | G57: =IF(K53="","",1/K53) ->  | H57: =IF(K54="","",1/K54) ->  | I57: =IF(K55="","",1/K55) ->  | J57: =IF(K56="","",1/K56) ->  | K57: =IF(AND($B$49<>"",$B57<>""),1,"") ->  | N57: =IFERROR(D57/D58,"") ->  | O57: =IFERROR(E57/E58,"") -> 
D58: =IFERROR(SUM(D50:D57),"") -> 0 | E58: =IFERROR(SUM(E50:E57),"") -> 0 | F58: 0 | G58: 0 | H58: 0 | I58: 0 | J58: 0 | K58: 0
B60: =IF('1. Identify Participants'!C14="","",'1. Identify Participants'!C14) ->  | C60: Score (1- 9) | D60: =D49 -> Local Operations | E60: =E49 -> Environmental Impacts | F60: Construction Impacts | G60: Maintainability | H60: Hydrological Impacts | N60: =N49 -> Local Operations | O60: =O49 -> Environmental Impacts | P60: Construction Impacts | Q60: Maintainability | R60: Hydrological Impacts | W60: Score/Participent
B61: =IF(B6="","",B6) -> Local Operations | C61: =IFERROR(AVERAGE(D61:K61),"") ->  | D61: =IF(AND($B$60<>"",$B61<>""),1,"") ->  | E61: ='5. Attribute Prioritization'!$E$20 ->  | F61: ='5. Attribute Prioritization'!$J$20 ->  | G61: ='5. Attribute Prioritization'!$O$20 ->  | H61: ='5. Attribute Prioritization'!$E$34 ->  | M61: Normalized Matrix | N61: =IFERROR(D61/D69,"") ->  | O61: =IFERROR(E61/E69,"") ->  | W61: =IFERROR(AVERAGE(N61:U61),"") -> 
B62: =IF(B7="","",B7) -> Environmental Impacts | C62: =IFERROR(AVERAGE(D62:K62),"") ->  | D62: =IF(E61="","",1/E61) ->  | E62: =IF(AND($B$60<>"",$B62<>""),1,"") ->  | F62: ='5. Attribute Prioritization'!$J$34 ->  | G62: ='5. Attribute Prioritization'!$O$34 ->  | H62: ='5. Attribute Prioritization'!$E$48 ->  | N62: =IFERROR(D62/D69,"") ->  | O62: =IFERROR(E62/E69,"") ->  | W62: =IFERROR(AVERAGE(N62:U62),"") -> 
B63: Construction Impacts | D63: =IF(F61="","",1/F61) ->  | E63: =IF(F62="","",1/F62) ->  | F63: =IF(AND($B$60<>"",$B63<>""),1,"") ->  | G63: ='5. Attribute Prioritization'!$J$48 ->  | H63: ='5. Attribute Prioritization'!$O$48 ->  | N63: =IFERROR(D63/D69,"") ->  | O63: =IFERROR(E63/E69,"") -> 
B64: Maintainability | D64: =IF(G61="","",1/G61) ->  | E64: =IF(G62="","",1/G62) ->  | F64: =IF(G63="","",1/G63) ->  | G64: =IF(AND($B$60<>"",$B64<>""),1,"") ->  | H64: ='5. Attribute Prioritization'!$E$62 ->  | N64: =IFERROR(D64/D69,"") ->  | O64: =IFERROR(E64/E69,"") -> 
B65: Hydrological Impacts | D65: =IF(H61="","",1/H61) ->  | E65: =IF(H62="","",1/H62) ->  | F65: =IF(H63="","",1/H63) ->  | G65: =IF(H64="","",1/H64) ->  | H65: =IF(AND($B$60<>"",$B65<>""),1,"") ->  | N65: =IFERROR(D65/D69,"") ->  | O65: =IFERROR(E65/E69,"") -> 
D66: =IF(I61="","",1/I61) ->  | E66: =IF(I62="","",1/I62) ->  | F66: =IF(I63="","",1/I63) ->  | G66: =IF(I64="","",1/I64) ->  | H66: =IF(I65="","",1/I65) ->  | I66: =IF(AND($B$60<>"",$B66<>""),1,"") ->  | N66: =IFERROR(D66/D69,"") ->  | O66: =IFERROR(E66/E69,"") -> 
D67: =IF(J61="","",1/J61) ->  | E67: =IF(J62="","",1/J62) ->  | F67: =IF(J63="","",1/J63) ->  | G67: =IF(J64="","",1/J64) ->  | H67: =IF(J65="","",1/J65) ->  | I67: =IF(J66="","",1/J66) ->  | J67: =IF(AND($B$60<>"",$B67<>""),1,"") ->  | N67: =IFERROR(D67/D69,"") ->  | O67: =IFERROR(E67/E69,"") -> 
D68: =IF(K61="","",1/K61) ->  | E68: =IF(K62="","",1/K62) ->  | F68: =IF(K63="","",1/K63) ->  | G68: =IF(K64="","",1/K64) ->  | H68: =IF(K65="","",1/K65) ->  | I68: =IF(K66="","",1/K66) ->  | J68: =IF(K67="","",1/K67) ->  | K68: =IF(AND($B$60<>"",$B68<>""),1,"") ->  | N68: =IFERROR(D68/D69,"") ->  | O68: =IFERROR(E68/E69,"") -> 
D69: =IFERROR(SUM(D61:D68),"") -> 0 | E69: =IFERROR(SUM(E61:E68),"") -> 0 | F69: 0 | G69: 0 | H69: 0 | I69: 0 | J69: 0 | K69: 0
B71: =IF('1. Identify Participants'!C15="","",'1. Identify Participants'!C15) ->  | C71: Score (1- 9) | D71: =D60 -> Local Operations | E71: =E60 -> Environmental Impacts | F71: Construction Impacts | G71: Maintainability | H71: Hydrological Impacts | N71: =N60 -> Local Operations | O71: =O60 -> Environmental Impacts | P71: Construction Impacts | Q71: Maintainability | R71: Hydrological Impacts | W71: Score/Participent
B72: =IF(B6="","",B6) -> Local Operations | C72: =IFERROR(AVERAGE(D72:K72),"") ->  | D72: =IF(AND($B$71<>"",$B72<>""),1,"") ->  | E72: ='5. Attribute Prioritization'!$E$21 ->  | F72: ='5. Attribute Prioritization'!$J$21 ->  | G72: ='5. Attribute Prioritization'!$O$21 ->  | H72: ='5. Attribute Prioritization'!$E$35 ->  | M72: Normalized Matrix | N72: =IFERROR(D72/D80,"") ->  | O72: =IFERROR(E72/E80,"") ->  | W72: =IFERROR(AVERAGE(N72:U72),"") -> 
B73: =IF(B7="","",B7) -> Environmental Impacts | C73: =IFERROR(AVERAGE(D73:K73),"") ->  | D73: =IF(E72="","",1/E72) ->  | E73: =IF(AND($B$71<>"",$B73<>""),1,"") ->  | F73: ='5. Attribute Prioritization'!$J$35 ->  | G73: ='5. Attribute Prioritization'!$O$35 ->  | H73: ='5. Attribute Prioritization'!$E$49 ->  | N73: =IFERROR(D73/D80,"") ->  | O73: =IFERROR(E73/E80,"") ->  | W73: =IFERROR(AVERAGE(N73:U73),"") -> 
B74: Construction Impacts | D74: =IF(F72="","",1/F72) ->  | E74: =IF(F73="","",1/F73) ->  | F74: =IF(AND($B$71<>"",$B74<>""),1,"") ->  | G74: ='5. Attribute Prioritization'!$J$49 ->  | H74: ='5. Attribute Prioritization'!$O$49 ->  | N74: =IFERROR(D74/D80,"") ->  | O74: =IFERROR(E74/E80,"") -> 
B75: Maintainability | D75: =IF(G72="","",1/G72) ->  | E75: =IF(G73="","",1/G73) ->  | F75: =IF(G74="","",1/G74) ->  | G75: =IF(AND($B$71<>"",$B75<>""),1,"") ->  | H75: ='5. Attribute Prioritization'!$E$63 ->  | N75: =IFERROR(D75/D80,"") ->  | O75: =IFERROR(E75/E80,"") -> 
B76: Hydrological Impacts | D76: =IF(H72="","",1/H72) ->  | E76: =IF(H73="","",1/H73) ->  | F76: =IF(H74="","",1/H74) ->  | G76: =IF(H75="","",1/H75) ->  | H76: =IF(AND($B$71<>"",$B76<>""),1,"") ->  | N76: =IFERROR(D76/D80,"") ->  | O76: =IFERROR(E76/E80,"") -> 
D77: =IF(I72="","",1/I72) ->  | E77: =IF(I73="","",1/I73) ->  | F77: =IF(I74="","",1/I74) ->  | G77: =IF(I75="","",1/I75) ->  | H77: =IF(I76="","",1/I76) ->  | I77: =IF(AND($B$71<>"",$B77<>""),1,"") ->  | N77: =IFERROR(D77/D80,"") ->  | O77: =IFERROR(E77/E80,"") -> 
D78: =IF(J72="","",1/J72) ->  | E78: =IF(J73="","",1/J73) ->  | F78: =IF(J74="","",1/J74) ->  | G78: =IF(J75="","",1/J75) ->  | H78: =IF(J76="","",1/J76) ->  | I78: =IF(J77="","",1/J77) ->  | J78: =IF(AND($B$71<>"",$B78<>""),1,"") ->  | N78: =IFERROR(D78/D80,"") ->  | O78: =IFERROR(E78/E80,"") -> 
D79: =IF(K72="","",1/K72) ->  | E79: =IF(K73="","",1/K73) ->  | F79: =IF(K74="","",1/K74) ->  | G79: =IF(K75="","",1/K75) ->  | H79: =IF(K76="","",1/K76) ->  | I79: =IF(K77="","",1/K77) ->  | J79: =IF(K78="","",1/K78) ->  | K79: =IF(AND($B$71<>"",$B79<>""),1,"") ->  | N79: =IFERROR(D79/D80,"") ->  | O79: =IFERROR(E79/E80,"") -> 
D80: =IFERROR(SUM(D72:D79),"") -> 0 | E80: =IFERROR(SUM(E72:E79),"") -> 0 | F80: 0 | G80: 0 | H80: 0 | I80: 0 | J80: 0 | K80: 0
B82: =IF('1. Identify Participants'!C16="","",'1. Identify Participants'!C16) ->  | C82: Score (1- 9) | D82: =D71 -> Local Operations | E82: =E71 -> Environmental Impacts | F82: Construction Impacts | G82: Maintainability | H82: Hydrological Impacts | N82: =N71 -> Local Operations | O82: =O71 -> Environmental Impacts | P82: Construction Impacts | Q82: Maintainability | R82: Hydrological Impacts | W82: Score/Participent
B83: =IF(B6="","",B6) -> Local Operations | C83: =IFERROR(AVERAGE(D83:K83),"") ->  | D83: =IF(AND($B$82<>"",$B83<>""),1,"") ->  | E83: ='5. Attribute Prioritization'!$E$22 ->  | F83: ='5. Attribute Prioritization'!$J$22 ->  | G83: ='5. Attribute Prioritization'!$O$22 ->  | H83: ='5. Attribute Prioritization'!$E$36 ->  | M83: Normalized Matrix | N83: =IFERROR(D83/D91,"") ->  | O83: =IFERROR(E83/E91,"") ->  | W83: =IFERROR(AVERAGE(N83:U83),"") -> 
B84: =IF(B7="","",B7) -> Environmental Impacts | C84: =IFERROR(AVERAGE(D84:K84),"") ->  | D84: =IF(E83="","",1/E83) ->  | E84: =IF(AND($B$82<>"",$B84<>""),1,"") ->  | F84: ='5. Attribute Prioritization'!$J$36 ->  | G84: ='5. Attribute Prioritization'!$O$36 ->  | H84: ='5. Attribute Prioritization'!$E$50 ->  | N84: =IFERROR(D84/D91,"") ->  | O84: =IFERROR(E84/E91,"") ->  | W84: =IFERROR(AVERAGE(N84:U84),"") -> 
B85: Construction Impacts | D85: =IF(F83="","",1/F83) ->  | E85: =IF(F84="","",1/F84) ->  | F85: =IF(AND($B$82<>"",$B85<>""),1,"") ->  | G85: ='5. Attribute Prioritization'!$J$50 ->  | H85: ='5. Attribute Prioritization'!$O$50 ->  | N85: =IFERROR(D85/D91,"") ->  | O85: =IFERROR(E85/E91,"") -> 
B86: Maintainability | D86: =IF(G83="","",1/G83) ->  | E86: =IF(G84="","",1/G84) ->  | F86: =IF(G85="","",1/G85) ->  | G86: =IF(AND($B$82<>"",$B86<>""),1,"") ->  | H86: ='5. Attribute Prioritization'!$E$64 ->  | N86: =IFERROR(D86/D91,"") ->  | O86: =IFERROR(E86/E91,"") -> 
B87: Hydrological Impacts | D87: =IF(H83="","",1/H83) ->  | E87: =IF(H84="","",1/H84) ->  | F87: =IF(H85="","",1/H85) ->  | G87: =IF(H86="","",1/H86) ->  | H87: =IF(AND($B$82<>"",$B87<>""),1,"") ->  | N87: =IFERROR(D87/D91,"") ->  | O87: =IFERROR(E87/E91,"") -> 
D88: =IF(I83="","",1/I83) ->  | E88: =IF(I84="","",1/I84) ->  | F88: =IF(I85="","",1/I85) ->  | G88: =IF(I86="","",1/I86) ->  | H88: =IF(I87="","",1/I87) ->  | I88: =IF(AND($B$82<>"",$B88<>""),1,"") ->  | N88: =IFERROR(D88/D91,"") ->  | O88: =IFERROR(E88/E91,"") -> 
D89: =IF(J83="","",1/J83) ->  | E89: =IF(J84="","",1/J84) ->  | F89: =IF(J85="","",1/J85) ->  | G89: =IF(J86="","",1/J86) ->  | H89: =IF(J87="","",1/J87) ->  | I89: =IF(J88="","",1/J88) ->  | J89: =IF(AND($B$82<>"",$B89<>""),1,"") ->  | N89: =IFERROR(D89/D91,"") ->  | O89: =IFERROR(E89/E91,"") -> 
D90: =IF(K83="","",1/K83) ->  | E90: =IF(K84="","",1/K84) ->  | F90: =IF(K85="","",1/K85) ->  | G90: =IF(K86="","",1/K86) ->  | H90: =IF(K87="","",1/K87) ->  | I90: =IF(K88="","",1/K88) ->  | J90: =IF(K89="","",1/K89) ->  | K90: =IF(AND($B$82<>"",$B90<>""),1,"") ->  | N90: =IFERROR(D90/D91,"") ->  | O90: =IFERROR(E90/E91,"") -> 
D91: =IFERROR(SUM(D83:D90),"") -> 0 | E91: =IFERROR(SUM(E83:E90),"") -> 0 | F91: 0 | G91: 0 | H91: 0 | I91: 0 | J91: 0 | K91: 0
B93: =IF('1. Identify Participants'!C17="","",'1. Identify Participants'!C17) ->  | C93: Score (1- 9) | D93: =D82 -> Local Operations | E93: =E82 -> Environmental Impacts | F93: Construction Impacts | G93: Maintainability | H93: Hydrological Impacts | N93: =N82 -> Local Operations | O93: =O82 -> Environmental Impacts | P93: Construction Impacts | Q93: Maintainability | R93: Hydrological Impacts | W93: Score/Participent
B94: =IF(B6="","",B6) -> Local Operations | C94: =IFERROR(AVERAGE(D94:K94),"") ->  | D94: =IF(AND($B$93<>"",$B94<>""),1,"") ->  | E94: ='5. Attribute Prioritization'!$E$23 ->  | F94: ='5. Attribute Prioritization'!$J$23 ->  | G94: ='5. Attribute Prioritization'!$O$23 ->  | H94: ='5. Attribute Prioritization'!$E$37 ->  | M94: Normalized Matrix | N94: =IFERROR(D94/D102,"") ->  | O94: =IFERROR(E94/E102,"") ->  | W94: =IFERROR(AVERAGE(N94:U94),"") -> 
B95: =IF(B7="","",B7) -> Environmental Impacts | C95: =IFERROR(AVERAGE(D95:K95),"") ->  | D95: =IF(E94="","",1/E94) ->  | E95: =IF(AND($B$93<>"",$B95<>""),1,"") ->  | F95: ='5. Attribute Prioritization'!$J$37 ->  | G95: ='5. Attribute Prioritization'!$O$37 ->  | H95: ='5. Attribute Prioritization'!$E$51 ->  | N95: =IFERROR(D95/D102,"") ->  | O95: =IFERROR(E95/E102,"") ->  | W95: =IFERROR(AVERAGE(N95:U95),"") -> 
B96: Construction Impacts | D96: =IF(F94="","",1/F94) ->  | E96: =IF(F95="","",1/F95) ->  | F96: =IF(AND($B$93<>"",$B96<>""),1,"") ->  | G96: ='5. Attribute Prioritization'!$J$51 ->  | H96: ='5. Attribute Prioritization'!$O$51 ->  | N96: =IFERROR(D96/D102,"") ->  | O96: =IFERROR(E96/E102,"") -> 
B97: Maintainability | D97: =IF(G94="","",1/G94) ->  | E97: =IF(G95="","",1/G95) ->  | F97: =IF(G96="","",1/G96) ->  | G97: =IF(AND($B$93<>"",$B97<>""),1,"") ->  | H97: ='5. Attribute Prioritization'!$E$65 ->  | N97: =IFERROR(D97/D102,"") ->  | O97: =IFERROR(E97/E102,"") -> 
B98: Hydrological Impacts | D98: =IF(H94="","",1/H94) ->  | E98: =IF(H95="","",1/H95) ->  | F98: =IF(H96="","",1/H96) ->  | G98: =IF(H97="","",1/H97) ->  | H98: =IF(AND($B$93<>"",$B98<>""),1,"") ->  | N98: =IFERROR(D98/D102,"") ->  | O98: =IFERROR(E98/E102,"") -> 
D99: =IF(I94="","",1/I94) ->  | E99: =IF(I95="","",1/I95) ->  | F99: =IF(I96="","",1/I96) ->  | G99: =IF(I97="","",1/I97) ->  | H99: =IF(I98="","",1/I98) ->  | I99: =IF(AND($B$93<>"",$B99<>""),1,"") ->  | N99: =IFERROR(D99/D102,"") ->  | O99: =IFERROR(E99/E102,"") -> 
D100: =IF(J94="","",1/J94) ->  | E100: =IF(J95="","",1/J95) ->  | F100: =IF(J96="","",1/J96) ->  | G100: =IF(J97="","",1/J97) ->  | H100: =IF(J98="","",1/J98) ->  | I100: =IF(J99="","",1/J99) ->  | J100: =IF(AND($B$93<>"",$B100<>""),1,"") ->  | N100: =IFERROR(D100/D102,"") ->  | O100: =IFERROR(E100/E102,"") -> 
D101: =IF(K94="","",1/K94) ->  | E101: =IF(K95="","",1/K95) ->  | F101: =IF(K96="","",1/K96) ->  | G101: =IF(K97="","",1/K97) ->  | H101: =IF(K98="","",1/K98) ->  | I101: =IF(K99="","",1/K99) ->  | J101: =IF(K100="","",1/K100) ->  | K101: =IF(AND($B$93<>"",$B101<>""),1,"") ->  | N101: =IFERROR(D101/D102,"") ->  | O101: =IFERROR(E101/E102,"") -> 
D102: =IFERROR(SUM(D94:D101),"") -> 0 | E102: =IFERROR(SUM(E94:E101),"") -> 0 | F102: 0 | G102: 0 | H102: 0 | I102: 0 | J102: 0 | K102: 0
B104: =IF('1. Identify Participants'!C18="","",'1. Identify Participants'!C18) ->  | C104: Score (1- 9) | D104: =D93 -> Local Operations | E104: =E93 -> Environmental Impacts | F104: Construction Impacts | G104: Maintainability | H104: Hydrological Impacts | N104: =N93 -> Local Operations | O104: =O93 -> Environmental Impacts | P104: Construction Impacts | Q104: Maintainability | R104: Hydrological Impacts | W104: Score/Participent
B105: =IF(B6="","",B6) -> Local Operations | C105: =IFERROR(AVERAGE(D105:K105),"") ->  | D105: =IF(AND($B$104<>"",$B105<>""),1,"") ->  | E105: ='5. Attribute Prioritization'!$E$24 ->  | F105: ='5. Attribute Prioritization'!$J$24 ->  | G105: ='5. Attribute Prioritization'!$O$24 ->  | H105: ='5. Attribute Prioritization'!$E$38 ->  | M105: Normalized Matrix | N105: =IFERROR(D105/D113,"") ->  | O105: =IFERROR(E105/E113,"") ->  | W105: =IFERROR(AVERAGE(N105:U105),"") -> 
B106: =IF(B7="","",B7) -> Environmental Impacts | C106: =IFERROR(AVERAGE(D106:K106),"") ->  | D106: =IF(E105="","",1/E105) ->  | E106: =IF(AND($B$104<>"",$B106<>""),1,"") ->  | F106: ='5. Attribute Prioritization'!$J$38 ->  | G106: ='5. Attribute Prioritization'!$O$38 ->  | H106: ='5. Attribute Prioritization'!$E$52 ->  | N106: =IFERROR(D106/D113,"") ->  | O106: =IFERROR(E106/E113,"") ->  | W106: =IFERROR(AVERAGE(N106:U106),"") -> 
B107: Construction Impacts | D107: =IF(F105="","",1/F105) ->  | E107: =IF(F106="","",1/F106) ->  | F107: =IF(AND($B$104<>"",$B107<>""),1,"") ->  | G107: ='5. Attribute Prioritization'!$J$52 ->  | H107: ='5. Attribute Prioritization'!$O$52 ->  | N107: =IFERROR(D107/D113,"") ->  | O107: =IFERROR(E107/E113,"") -> 
B108: Maintainability | D108: =IF(G105="","",1/G105) ->  | E108: =IF(G106="","",1/G106) ->  | F108: =IF(G107="","",1/G107) ->  | G108: =IF(AND($B$104<>"",$B108<>""),1,"") ->  | H108: ='5. Attribute Prioritization'!$E$66 ->  | N108: =IFERROR(D108/D113,"") ->  | O108: =IFERROR(E108/E113,"") -> 
B109: Hydrological Impacts | D109: =IF(H105="","",1/H105) ->  | E109: =IF(H106="","",1/H106) ->  | F109: =IF(H107="","",1/H107) ->  | G109: =IF(H108="","",1/H108) ->  | H109: =IF(AND($B$104<>"",$B109<>""),1,"") ->  | N109: =IFERROR(D109/D113,"") ->  | O109: =IFERROR(E109/E113,"") -> 
D110: =IF(I105="","",1/I105) ->  | E110: =IF(I106="","",1/I106) ->  | F110: =IF(I107="","",1/I107) ->  | G110: =IF(I108="","",1/I108) ->  | H110: =IF(I109="","",1/I109) ->  | I110: =IF(AND($B$104<>"",$B110<>""),1,"") ->  | N110: =IFERROR(D110/D113,"") ->  | O110: =IFERROR(E110/E113,"") -> 
D111: =IF(J105="","",1/J105) ->  | E111: =IF(J106="","",1/J106) ->  | F111: =IF(J107="","",1/J107) ->  | G111: =IF(J108="","",1/J108) ->  | H111: =IF(J109="","",1/J109) ->  | I111: =IF(J110="","",1/J110) ->  | J111: =IF(AND($B$104<>"",$B111<>""),1,"") ->  | N111: =IFERROR(D111/D113,"") ->  | O111: =IFERROR(E111/E113,"") -> 
D112: =IF(K105="","",1/K105) ->  | E112: =IF(K106="","",1/K106) ->  | F112: =IF(K107="","",1/K107) ->  | G112: =IF(K108="","",1/K108) ->  | H112: =IF(K109="","",1/K109) ->  | I112: =IF(K110="","",1/K110) ->  | J112: =IF(K111="","",1/K111) ->  | N112: =IFERROR(D112/D113,"") ->  | O112: =IFERROR(E112/E113,"") -> 
D113: =IFERROR(SUM(D105:D112),"") -> 0 | E113: =IFERROR(SUM(E105:E112),"") -> 0 | F113: 0 | G113: 0 | H113: 0 | I113: 0 | J113: 0 | K113: 0
C118: =B5 -> Enrique | D118: =B16 -> Hank | E118: =B27 -> Peter | F118: =B38 -> Reinie | G118: =B49 ->  | H118: =B60 ->  | I118: =B71 ->  | J118: =B82 ->  | K118: =B93 ->  | L118: =B104 ->  | N118: Priority
B119: =IF(B6="","",B6) -> Local Operations | C119: =W6 -> 0.3548885159 | D119: =W17 -> 0.3024369112 | E119: =W28 -> 0.3384152623 | F119: =W39 -> 0.448464767 | G119: =W50 ->  | H119: =W61 ->  | I119: =W72 ->  | J119: =W83 ->  | K119: =W94 ->  | L119: =W105 ->  | N119: =IFERROR(AVERAGE(C119:M119),"") -> 0.3610513641
B120: =IF(B7="","",B7) -> Environmental Impacts | C120: 0.1232358082 | D120: 0.0706206347 | E120: 0.09652888745 | F120: 0.0835542711 | N120: =IFERROR(AVERAGE(C120:M120),"") -> 0.09348490035
B121: Construction Impacts | C121: 0.04377319882 | D121: 0.04089420987 | E121: 0.03283716512 | F121: 0.1065729545 | N121: 0.05601938208
B122: Maintainability | C122: 0.2087751023 | D122: 0.2538936873 | E122: 0.1313807563 | F122: 0.135845247 | N122: 0.1824736982
B123: Hydrological Impacts | C123: 0.2693273748 | D123: 0.3321545569 | E123: 0.4008379289 | F123: 0.2255627604 | N123: 0.3069706553
N125: =IFERROR(AVERAGE(C125:M125),"") -> 
K126: =W101 ->  | L126: =W112 ->  | N126: =IFERROR(AVERAGE(C126:M126),"") -> 

Sheet 7. Performance Priorities (hidden)
B1: ='Project Scope'!C6 -> Davis Road Bridge Replacement
Y6: CLICK NEXT TAB!
C8: PERFORMANCE ATTRIBUTES
C9: ='6. Decision Matrix'!B119 -> Local Operations | F9: ='6. Decision Matrix'!B120 -> Environmental Impacts | I9: ='6. Decision Matrix'!B121 -> Construction Impacts | L9: ='6. Decision Matrix'!B122 -> Maintainability | O9: ='6. Decision Matrix'!B123 -> Hydrological Impacts | R9: ='6. Decision Matrix'!B124 ->  | U9: ='6. Decision Matrix'!B125 ->  | X9: ='6. Decision Matrix'!B126 -> 
B10: Alternatives | C10: Priority | D10: Rating | E10: Score | F10: Priority | G10: Rating | H10: Score | I10: Priority | J10: Rating | K10: Score | L10: Priority | M10: Rating | N10: Score | O10: Priority | P10: Rating | Q10: Score | R10: Priority | S10: Rating | T10: Score | U10: Priority | V10: Rating | W10: Score | X10: Priority | Y10: Rating | Z10: Score | AA10: TOTAL PERFORMANCE SCORE
B11: =IF('Decision Dashboard'!C10="","",'Decision Dashboard'!C10) -> Baseline Concept | C11: =IF(B11="","",'6. Decision Matrix'!$N$119) -> 0.3610513641 | D11: =IF('4. Performance Ratings'!C43="","",'4. Performance Ratings'!C43) -> 0.8 | E11: =IFERROR(C11*D11,"") -> 0.2888410913 | F11: =IF(B11="","",'6. Decision Matrix'!$N$120) -> 0.09348490035 | G11: =IF('4. Performance Ratings'!C73="","",'4. Performance Ratings'!C73) -> 0.85 | H11: =IFERROR(F11*G11,"") -> 0.0794621653 | I11: =IF(B11="","",'6. Decision Matrix'!$N$121) -> 0.05601938208 | J11: =IF('4. Performance Ratings'!C103="","",'4. Performance Ratings'!C103) -> 0.75 | K11: =IFERROR(I11*J11,"") -> 0.04201453656 | L11: =IF(B11="","",'6. Decision Matrix'!$N$122) -> 0.1824736982 | M11: =IF('4. Performance Ratings'!C133="","",'4. Performance Ratings'!C133) -> 0.9 | N11: =IFERROR(L11*M11,"") -> 0.1642263284 | O11: =IF(B11="","",'6. Decision Matrix'!$N$123) -> 0.3069706553 | P11: =IF('4. Performance Ratings'!C313="","",'4. Performance Ratings'!C313) -> 0.75 | Q11: =IFERROR(O11*P11,"") -> 0.2302279914 | R11: =IF(B11="","",'6. Decision Matrix'!$N$124) ->  | T11: =IFERROR(R11*S11,"") ->  | U11: =IF(B11="","",'6. Decision Matrix'!$N$125) ->  | W11: =IFERROR(U11*V11,"") ->  | X11: =IF(B11="","",'6. Decision Matrix'!$N$126) ->  | Z11: =IFERROR(X11*Y11,"") ->  | AA11: =IF(B11="","",SUM(E11,H11,K11,N11,Q11,T11,W11,Z11)) -> 0.804772113
B12: =IF('Decision Dashboard'!C11="","",'Decision Dashboard'!C11) -> VE Alternative 1 | C12: =IF(B12="","",'6. Decision Matrix'!$N$119) -> 0.3610513641 | D12: =IF('4. Performance Ratings'!C44="","",'4. Performance Ratings'!C44) -> 0.8 | E12: =IFERROR(C12*D12,"") -> 0.2888410913 | F12: =IF(B12="","",'6. Decision Matrix'!$N$120) -> 0.09348490035 | G12: =IF('4. Performance Ratings'!C74="","",'4. Performance Ratings'!C74) -> 0.85 | H12: 0.0794621653 | I12: =IF(B12="","",'6. Decision Matrix'!$N$121) -> 0.05601938208 | J12: =IF('4. Performance Ratings'!C104="","",'4. Performance Ratings'!C104) -> 0.78 | K12: 0.04369511802 | L12: =IF(B12="","",'6. Decision Matrix'!$N$122) -> 0.1824736982 | M12: =IF('4. Performance Ratings'!C134="","",'4. Performance Ratings'!C134) -> 0.9 | N12: 0.1642263284 | O12: =IF(B12="","",'6. Decision Matrix'!$N$123) -> 0.3069706553 | P12: =IF('4. Performance Ratings'!C314="","",'4. Performance Ratings'!C314) -> 0.75 | Q12: 0.2302279914 | R12: =IF(B12="","",'6. Decision Matrix'!$N$124) ->  | U12: =IF(B12="","",'6. Decision Matrix'!$N$125) ->  | X12: =IF(B12="","",'6. Decision Matrix'!$N$126) ->  | AA12: =IF(B12="","",SUM(E12,H12,K12,N12,Q12,T12,W12,Z12)) -> 0.8064526944
B13: =IF('Decision Dashboard'!C12="","",'Decision Dashboard'!C12) -> VE Alternative 2 | C13: =IF(B13="","",'6. Decision Matrix'!$N$119) -> 0.3610513641 | D13: =IF('4. Performance Ratings'!C45="","",'4. Performance Ratings'!C45) -> 0.8 | E13: 0.2888410913 | F13: =IF(B13="","",'6. Decision Matrix'!$N$120) -> 0.09348490035 | G13: =IF('4. Performance Ratings'!C75="","",'4. Performance Ratings'!C75) -> 0.85 | H13: 0.0794621653 | I13: =IF(B13="","",'6. Decision Matrix'!$N$121) -> 0.05601938208 | J13: =IF('4. Performance Ratings'!C105="","",'4. Performance Ratings'!C105) -> 0.75 | K13: 0.04201453656 | L13: =IF(B13="","",'6. Decision Matrix'!$N$122) -> 0.1824736982 | M13: =IF('4. Performance Ratings'!C135="","",'4. Performance Ratings'!C135) -> 0.9 | N13: 0.1642263284 | O13: =IF(B13="","",'6. Decision Matrix'!$N$123) -> 0.3069706553 | P13: =IF('4. Performance Ratings'!C315="","",'4. Performance Ratings'!C315) -> 0.75 | Q13: 0.2302279914 | R13: =IF(B13="","",'6. Decision Matrix'!$N$124) ->  | U13: =IF(B13="","",'6. Decision Matrix'!$N$125) ->  | X13: =IF(B13="","",'6. Decision Matrix'!$N$126) ->  | AA13: 0.804772113
B14: =IF('Decision Dashboard'!C13="","",'Decision Dashboard'!C13) -> VE Alternative 3 | C14: =IF(B14="","",'6. Decision Matrix'!$N$119) -> 0.3610513641 | D14: =IF('4. Performance Ratings'!C46="","",'4. Performance Ratings'!C46) -> 0.8 | E14: 0.2888410913 | F14: =IF(B14="","",'6. Decision Matrix'!$N$120) -> 0.09348490035 | G14: =IF('4. Performance Ratings'!C76="","",'4. Performance Ratings'!C76) -> 0.85 | H14: 0.0794621653 | I14: =IF(B14="","",'6. Decision Matrix'!$N$121) -> 0.05601938208 | J14: =IF('4. Performance Ratings'!C106="","",'4. Performance Ratings'!C106) -> 0.78 | K14: 0.04369511802 | L14: =IF(B14="","",'6. Decision Matrix'!$N$122) -> 0.1824736982 | M14: =IF('4. Performance Ratings'!C136="","",'4. Performance Ratings'!C136) -> 0.9 | N14: 0.1642263284 | O14: =IF(B14="","",'6. Decision Matrix'!$N$123) -> 0.3069706553 | P14: =IF('4. Performance Ratings'!C316="","",'4. Performance Ratings'!C316) -> 0.78 | Q14: 0.2394371111 | R14: =IF(B14="","",'6. Decision Matrix'!$N$124) ->  | U14: =IF(B14="","",'6. Decision Matrix'!$N$125) ->  | X14: =IF(B14="","",'6. Decision Matrix'!$N$126) ->  | AA14: 0.8156618141
B15: =IF('Decision Dashboard'!C14="","",'Decision Dashboard'!C14) -> VE Alternative 4 | C15: =IF(B15="","",'6. Decision Matrix'!$N$119) -> 0.3610513641 | D15: =IF('4. Performance Ratings'!C47="","",'4. Performance Ratings'!C47) -> 0.95 | E15: 0.3429987959 | F15: =IF(B15="","",'6. Decision Matrix'!$N$120) -> 0.09348490035 | G15: =IF('4. Performance Ratings'!C77="","",'4. Performance Ratings'!C77) -> 0.8 | H15: 0.07478792028 | I15: =IF(B15="","",'6. Decision Matrix'!$N$121) -> 0.05601938208 | J15: =IF('4. Performance Ratings'!C107="","",'4. Performance Ratings'!C107) -> 0.75 | K15: 0.04201453656 | L15: =IF(B15="","",'6. Decision Matrix'!$N$122) -> 0.1824736982 | M15: =IF('4. Performance Ratings'!C137="","",'4. Performance Ratings'!C137) -> 0.85 | N15: 0.1551026435 | O15: =IF(B15="","",'6. Decision Matrix'!$N$123) -> 0.3069706553 | P15: =IF('4. Performance Ratings'!C317="","",'4. Performance Ratings'!C317) -> 0.75 | Q15: 0.2302279914 | R15: =IF(B15="","",'6. Decision Matrix'!$N$124) ->  | U15: =IF(B15="","",'6. Decision Matrix'!$N$125) ->  | X15: =IF(B15="","",'6. Decision Matrix'!$N$126) ->  | AA15: 0.8451318877
B16: =IF('Decision Dashboard'!C15="","",'Decision Dashboard'!C15) ->  | C16: =IF(B16="","",'6. Decision Matrix'!$N$119) ->  | D16: =IF('4. Performance Ratings'!C48="","",'4. Performance Ratings'!C48) ->  | F16: =IF(B16="","",'6. Decision Matrix'!$N$120) ->  | G16: =IF('4. Performance Ratings'!C78="","",'4. Performance Ratings'!C78) ->  | I16: =IF(B16="","",'6. Decision Matrix'!$N$121) ->  | J16: =IF('4. Performance Ratings'!C108="","",'4. Performance Ratings'!C108) ->  | L16: =IF(B16="","",'6. Decision Matrix'!$N$122) ->  | M16: =IF('4. Performance Ratings'!C138="","",'4. Performance Ratings'!C138) ->  | O16: =IF(B16="","",'6. Decision Matrix'!$N$123) ->  | P16: =IF('4. Performance Ratings'!C318="","",'4. Performance Ratings'!C318) ->  | R16: =IF(B16="","",'6. Decision Matrix'!$N$124) ->  | U16: =IF(B16="","",'6. Decision Matrix'!$N$125) ->  | X16: =IF(B16="","",'6. Decision Matrix'!$N$126) -> 
B17: =IF('Decision Dashboard'!C16="","",'Decision Dashboard'!C16) ->  | C17: =IF(B17="","",'6. Decision Matrix'!$N$119) ->  | D17: =IF('4. Performance Ratings'!C49="","",'4. Performance Ratings'!C49) ->  | F17: =IF(B17="","",'6. Decision Matrix'!$N$120) ->  | G17: =IF('4. Performance Ratings'!C79="","",'4. Performance Ratings'!C79) ->  | I17: =IF(B17="","",'6. Decision Matrix'!$N$121) ->  | J17: =IF('4. Performance Ratings'!C109="","",'4. Performance Ratings'!C109) ->  | L17: =IF(B17="","",'6. Decision Matrix'!$N$122) ->  | M17: =IF('4. Performance Ratings'!C139="","",'4. Performance Ratings'!C139) ->  | O17: =IF(B17="","",'6. Decision Matrix'!$N$123) ->  | P17: =IF('4. Performance Ratings'!C319="","",'4. Performance Ratings'!C319) ->  | R17: =IF(B17="","",'6. Decision Matrix'!$N$124) ->  | U17: =IF(B17="","",'6. Decision Matrix'!$N$125) ->  | X17: =IF(B17="","",'6. Decision Matrix'!$N$126) -> 
B18: =IF('Decision Dashboard'!C17="","",'Decision Dashboard'!C17) ->  | C18: =IF(B18="","",'6. Decision Matrix'!$N$119) ->  | D18: =IF('4. Performance Ratings'!C50="","",'4. Performance Ratings'!C50) ->  | F18: =IF(B18="","",'6. Decision Matrix'!$N$120) ->  | G18: =IF('4. Performance Ratings'!C80="","",'4. Performance Ratings'!C80) ->  | I18: =IF(B18="","",'6. Decision Matrix'!$N$121) ->  | J18: =IF('4. Performance Ratings'!C110="","",'4. Performance Ratings'!C110) ->  | L18: =IF(B18="","",'6. Decision Matrix'!$N$122) ->  | M18: =IF('4. Performance Ratings'!C140="","",'4. Performance Ratings'!C140) ->  | O18: =IF(B18="","",'6. Decision Matrix'!$N$123) ->  | P18: =IF('4. Performance Ratings'!C320="","",'4. Performance Ratings'!C320) ->  | R18: =IF(B18="","",'6. Decision Matrix'!$N$124) ->  | U18: =IF(B18="","",'6. Decision Matrix'!$N$125) ->  | X18: =IF(B18="","",'6. Decision Matrix'!$N$126) -> 
B19: =IF('Decision Dashboard'!C18="","",'Decision Dashboard'!C18) ->  | C19: =IF(B19="","",'6. Decision Matrix'!$N$119) ->  | D19: =IF('4. Performance Ratings'!C51="","",'4. Performance Ratings'!C51) ->  | F19: =IF(B19="","",'6. Decision Matrix'!$N$120) ->  | G19: =IF('4. Performance Ratings'!C81="","",'4. Performance Ratings'!C81) ->  | I19: =IF(B19="","",'6. Decision Matrix'!$N$121) ->  | J19: =IF('4. Performance Ratings'!C111="","",'4. Performance Ratings'!C111) ->  | L19: =IF(B19="","",'6. Decision Matrix'!$N$122) ->  | M19: =IF('4. Performance Ratings'!C141="","",'4. Performance Ratings'!C141) ->  | O19: =IF(B19="","",'6. Decision Matrix'!$N$123) ->  | P19: =IF('4. Performance Ratings'!C321="","",'4. Performance Ratings'!C321) ->  | R19: =IF(B19="","",'6. Decision Matrix'!$N$124) ->  | U19: =IF(B19="","",'6. Decision Matrix'!$N$125) ->  | X19: =IF(B19="","",'6. Decision Matrix'!$N$126) -> 
B20: =IF('Decision Dashboard'!C19="","",'Decision Dashboard'!C19) ->  | C20: =IF(B20="","",'6. Decision Matrix'!$N$119) ->  | D20: =IF('4. Performance Ratings'!C52="","",'4. Performance Ratings'!C52) ->  | F20: =IF(B20="","",'6. Decision Matrix'!$N$120) ->  | G20: =IF('4. Performance Ratings'!C82="","",'4. Performance Ratings'!C82) ->  | I20: =IF(B20="","",'6. Decision Matrix'!$N$121) ->  | J20: =IF('4. Performance Ratings'!C112="","",'4. Performance Ratings'!C112) ->  | L20: =IF(B20="","",'6. Decision Matrix'!$N$122) ->  | M20: =IF('4. Performance Ratings'!C142="","",'4. Performance Ratings'!C142) ->  | O20: =IF(B20="","",'6. Decision Matrix'!$N$123) ->  | P20: =IF('4. Performance Ratings'!C322="","",'4. Performance Ratings'!C322) ->  | R20: =IF(B20="","",'6. Decision Matrix'!$N$124) ->  | U20: =IF(B20="","",'6. Decision Matrix'!$N$125) ->  | X20: =IF(B20="","",'6. Decision Matrix'!$N$126) -> 
B21: =IF('Decision Dashboard'!C20="","",'Decision Dashboard'!C20) ->  | C21: =IF(B21="","",'6. Decision Matrix'!$N$119) ->  | D21: =IF('4. Performance Ratings'!C53="","",'4. Performance Ratings'!C53) ->  | F21: =IF(B21="","",'6. Decision Matrix'!$N$120) ->  | G21: =IF('4. Performance Ratings'!C83="","",'4. Performance Ratings'!C83) ->  | I21: =IF(B21="","",'6. Decision Matrix'!$N$121) ->  | J21: =IF('4. Performance Ratings'!C113="","",'4. Performance Ratings'!C113) ->  | L21: =IF(B21="","",'6. Decision Matrix'!$N$122) ->  | M21: =IF('4. Performance Ratings'!C143="","",'4. Performance Ratings'!C143) ->  | O21: =IF(B21="","",'6. Decision Matrix'!$N$123) ->  | P21: =IF('4. Performance Ratings'!C323="","",'4. Performance Ratings'!C323) ->  | R21: =IF(B21="","",'6. Decision Matrix'!$N$124) ->  | U21: =IF(B21="","",'6. Decision Matrix'!$N$125) ->  | X21: =IF(B21="","",'6. Decision Matrix'!$N$126) -> 
B22: =IF('Decision Dashboard'!C21="","",'Decision Dashboard'!C21) ->  | C22: =IF(B22="","",'6. Decision Matrix'!$N$119) ->  | D22: =IF('4. Performance Ratings'!C54="","",'4. Performance Ratings'!C54) ->  | F22: =IF(B22="","",'6. Decision Matrix'!$N$120) ->  | G22: =IF('4. Performance Ratings'!C84="","",'4. Performance Ratings'!C84) ->  | I22: =IF(B22="","",'6. Decision Matrix'!$N$121) ->  | J22: =IF('4. Performance Ratings'!C114="","",'4. Performance Ratings'!C114) ->  | L22: =IF(B22="","",'6. Decision Matrix'!$N$122) ->  | M22: =IF('4. Performance Ratings'!C144="","",'4. Performance Ratings'!C144) ->  | O22: =IF(B22="","",'6. Decision Matrix'!$N$123) ->  | P22: =IF('4. Performance Ratings'!C324="","",'4. Performance Ratings'!C324) ->  | R22: =IF(B22="","",'6. Decision Matrix'!$N$124) ->  | U22: =IF(B22="","",'6. Decision Matrix'!$N$125) ->  | X22: =IF(B22="","",'6. Decision Matrix'!$N$126) -> 
B23: =IF('Decision Dashboard'!C22="","",'Decision Dashboard'!C22) ->  | C23: =IF(B23="","",'6. Decision Matrix'!$N$119) ->  | D23: =IF('4. Performance Ratings'!C55="","",'4. Performance Ratings'!C55) ->  | F23: =IF(B23="","",'6. Decision Matrix'!$N$120) ->  | G23: =IF('4. Performance Ratings'!C85="","",'4. Performance Ratings'!C85) ->  | I23: =IF(B23="","",'6. Decision Matrix'!$N$121) ->  | J23: =IF('4. Performance Ratings'!C115="","",'4. Performance Ratings'!C115) ->  | L23: =IF(B23="","",'6. Decision Matrix'!$N$122) ->  | M23: =IF('4. Performance Ratings'!C145="","",'4. Performance Ratings'!C145) ->  | O23: =IF(B23="","",'6. Decision Matrix'!$N$123) ->  | P23: =IF('4. Performance Ratings'!C325="","",'4. Performance Ratings'!C325) ->  | R23: =IF(B23="","",'6. Decision Matrix'!$N$124) ->  | U23: =IF(B23="","",'6. Decision Matrix'!$N$125) ->  | X23: =IF(B23="","",'6. Decision Matrix'!$N$126) -> 
B24: =IF('Decision Dashboard'!C23="","",'Decision Dashboard'!C23) ->  | C24: =IF(B24="","",'6. Decision Matrix'!$N$119) ->  | D24: =IF('4. Performance Ratings'!C56="","",'4. Performance Ratings'!C56) ->  | F24: =IF(B24="","",'6. Decision Matrix'!$N$120) ->  | G24: =IF('4. Performance Ratings'!C86="","",'4. Performance Ratings'!C86) ->  | I24: =IF(B24="","",'6. Decision Matrix'!$N$121) ->  | J24: =IF('4. Performance Ratings'!C116="","",'4. Performance Ratings'!C116) ->  | L24: =IF(B24="","",'6. Decision Matrix'!$N$122) ->  | M24: =IF('4. Performance Ratings'!C146="","",'4. Performance Ratings'!C146) ->  | O24: =IF(B24="","",'6. Decision Matrix'!$N$123) ->  | P24: =IF('4. Performance Ratings'!C326="","",'4. Performance Ratings'!C326) ->  | R24: =IF(B24="","",'6. Decision Matrix'!$N$124) ->  | U24: =IF(B24="","",'6. Decision Matrix'!$N$125) ->  | X24: =IF(B24="","",'6. Decision Matrix'!$N$126) -> 
B25: =IF('Decision Dashboard'!C24="","",'Decision Dashboard'!C24) ->  | C25: =IF(B25="","",'6. Decision Matrix'!$N$119) ->  | D25: =IF('4. Performance Ratings'!C57="","",'4. Performance Ratings'!C57) ->  | F25: =IF(B25="","",'6. Decision Matrix'!$N$120) ->  | G25: =IF('4. Performance Ratings'!C87="","",'4. Performance Ratings'!C87) ->  | I25: =IF(B25="","",'6. Decision Matrix'!$N$121) ->  | J25: =IF('4. Performance Ratings'!C117="","",'4. Performance Ratings'!C117) ->  | L25: =IF(B25="","",'6. Decision Matrix'!$N$122) ->  | M25: =IF('4. Performance Ratings'!C147="","",'4. Performance Ratings'!C147) ->  | O25: =IF(B25="","",'6. Decision Matrix'!$N$123) ->  | P25: =IF('4. Performance Ratings'!C327="","",'4. Performance Ratings'!C327) ->  | R25: =IF(B25="","",'6. Decision Matrix'!$N$124) ->  | U25: =IF(B25="","",'6. Decision Matrix'!$N$125) ->  | X25: =IF(B25="","",'6. Decision Matrix'!$N$126) -> 
B26: =IF('Decision Dashboard'!C25="","",'Decision Dashboard'!C25) ->  | C26: =IF(B26="","",'6. Decision Matrix'!$N$119) ->  | D26: =IF('4. Performance Ratings'!C58="","",'4. Performance Ratings'!C58) ->  | F26: =IF(B26="","",'6. Decision Matrix'!$N$120) ->  | G26: =IF('4. Performance Ratings'!C88="","",'4. Performance Ratings'!C88) ->  | I26: =IF(B26="","",'6. Decision Matrix'!$N$121) ->  | J26: =IF('4. Performance Ratings'!C118="","",'4. Performance Ratings'!C118) ->  | L26: =IF(B26="","",'6. Decision Matrix'!$N$122) ->  | M26: =IF('4. Performance Ratings'!C148="","",'4. Performance Ratings'!C148) ->  | O26: =IF(B26="","",'6. Decision Matrix'!$N$123) ->  | P26: =IF('4. Performance Ratings'!C328="","",'4. Performance Ratings'!C328) ->  | R26: =IF(B26="","",'6. Decision Matrix'!$N$124) ->  | U26: =IF(B26="","",'6. Decision Matrix'!$N$125) ->  | X26: =IF(B26="","",'6. Decision Matrix'!$N$126) -> 
B27: =IF('Decision Dashboard'!C26="","",'Decision Dashboard'!C26) ->  | C27: =IF(B27="","",'6. Decision Matrix'!$N$119) ->  | D27: =IF('4. Performance Ratings'!C59="","",'4. Performance Ratings'!C59) ->  | F27: =IF(B27="","",'6. Decision Matrix'!$N$120) ->  | G27: =IF('4. Performance Ratings'!C89="","",'4. Performance Ratings'!C89) ->  | I27: =IF(B27="","",'6. Decision Matrix'!$N$121) ->  | J27: =IF('4. Performance Ratings'!C119="","",'4. Performance Ratings'!C119) ->  | L27: =IF(B27="","",'6. Decision Matrix'!$N$122) ->  | M27: =IF('4. Performance Ratings'!C149="","",'4. Performance Ratings'!C149) ->  | O27: =IF(B27="","",'6. Decision Matrix'!$N$123) ->  | P27: =IF('4. Performance Ratings'!C329="","",'4. Performance Ratings'!C329) ->  | R27: =IF(B27="","",'6. Decision Matrix'!$N$124) ->  | U27: =IF(B27="","",'6. Decision Matrix'!$N$125) ->  | X27: =IF(B27="","",'6. Decision Matrix'!$N$126) -> 
B28: =IF('Decision Dashboard'!C27="","",'Decision Dashboard'!C27) ->  | C28: =IF(B28="","",'6. Decision Matrix'!$N$119) ->  | D28: =IF('4. Performance Ratings'!C60="","",'4. Performance Ratings'!C60) ->  | F28: =IF(B28="","",'6. Decision Matrix'!$N$120) ->  | G28: =IF('4. Performance Ratings'!C90="","",'4. Performance Ratings'!C90) ->  | I28: =IF(B28="","",'6. Decision Matrix'!$N$121) ->  | J28: =IF('4. Performance Ratings'!C120="","",'4. Performance Ratings'!C120) ->  | L28: =IF(B28="","",'6. Decision Matrix'!$N$122) ->  | M28: =IF('4. Performance Ratings'!C150="","",'4. Performance Ratings'!C150) ->  | O28: =IF(B28="","",'6. Decision Matrix'!$N$123) ->  | P28: =IF('4. Performance Ratings'!C330="","",'4. Performance Ratings'!C330) ->  | R28: =IF(B28="","",'6. Decision Matrix'!$N$124) ->  | U28: =IF(B28="","",'6. Decision Matrix'!$N$125) ->  | X28: =IF(B28="","",'6. Decision Matrix'!$N$126) -> 
B29: =IF('Decision Dashboard'!C28="","",'Decision Dashboard'!C28) ->  | C29: =IF(B29="","",'6. Decision Matrix'!$N$119) ->  | D29: =IF('4. Performance Ratings'!C61="","",'4. Performance Ratings'!C61) ->  | F29: =IF(B29="","",'6. Decision Matrix'!$N$120) ->  | G29: =IF('4. Performance Ratings'!C91="","",'4. Performance Ratings'!C91) ->  | I29: =IF(B29="","",'6. Decision Matrix'!$N$121) ->  | J29: =IF('4. Performance Ratings'!C121="","",'4. Performance Ratings'!C121) ->  | L29: =IF(B29="","",'6. Decision Matrix'!$N$122) ->  | M29: =IF('4. Performance Ratings'!C151="","",'4. Performance Ratings'!C151) ->  | O29: =IF(B29="","",'6. Decision Matrix'!$N$123) ->  | P29: =IF('4. Performance Ratings'!C331="","",'4. Performance Ratings'!C331) ->  | R29: =IF(B29="","",'6. Decision Matrix'!$N$124) ->  | U29: =IF(B29="","",'6. Decision Matrix'!$N$125) ->  | X29: =IF(B29="","",'6. Decision Matrix'!$N$126) -> 
B30: =IF('Decision Dashboard'!C29="","",'Decision Dashboard'!C29) ->  | C30: =IF(B30="","",'6. Decision Matrix'!$N$119) ->  | D30: =IF('4. Performance Ratings'!C62="","",'4. Performance Ratings'!C62) ->  | F30: =IF(B30="","",'6. Decision Matrix'!$N$120) ->  | G30: =IF('4. Performance Ratings'!C92="","",'4. Performance Ratings'!C92) ->  | I30: =IF(B30="","",'6. Decision Matrix'!$N$121) ->  | J30: =IF('4. Performance Ratings'!C122="","",'4. Performance Ratings'!C122) ->  | L30: =IF(B30="","",'6. Decision Matrix'!$N$122) ->  | M30: =IF('4. Performance Ratings'!C152="","",'4. Performance Ratings'!C152) ->  | O30: =IF(B30="","",'6. Decision Matrix'!$N$123) ->  | P30: =IF('4. Performance Ratings'!C332="","",'4. Performance Ratings'!C332) ->  | R30: =IF(B30="","",'6. Decision Matrix'!$N$124) ->  | U30: =IF(B30="","",'6. Decision Matrix'!$N$125) ->  | X30: =IF(B30="","",'6. Decision Matrix'!$N$126) -> 
B33: Date for Comparison of Alternatives Chart
B35: Alternatives | C35: =C9 -> Local Operations | D35: =F9 -> Environmental Impacts | E35: =I9 -> Construction Impacts | F35: =L9 -> Maintainability | G35: =O9 -> Hydrological Impacts | H35: =R9 ->  | I35: =U9 ->  | J35: =X9 -> 
B36: =IF(B11="","",B11) -> Baseline Concept | C36: =E11 -> 0.2888410913 | D36: =H11 -> 0.0794621653 | E36: =K11 -> 0.04201453656 | F36: =N11 -> 0.1642263284 | G36: =Q11 -> 0.2302279914 | H36: =T11 ->  | I36: =W11 ->  | J36: =Z11 -> 
B37: =IF(B12="","",B12) -> VE Alternative 1 | C37: =E12 -> 0.2888410913 | D37: =H12 -> 0.0794621653 | E37: =K12 -> 0.04369511802 | F37: =N12 -> 0.1642263284 | G37: =Q12 -> 0.2302279914 | H37: =T12 ->  | I37: =W12 ->  | J37: =Z12 -> 
B38: VE Alternative 2 | C38: 0.2888410913 | D38: 0.0794621653 | E38: 0.04201453656 | F38: 0.1642263284 | G38: 0.2302279914
B39: VE Alternative 3 | C39: 0.2888410913 | D39: 0.0794621653 | E39: 0.04369511802 | F39: 0.1642263284 | G39: 0.2394371111
B40: VE Alternative 4 | C40: 0.3429987959 | D40: 0.07478792028 | E40: 0.04201453656 | F40: 0.1551026435 | G40: 0.2302279914
C41: =E16 -> 

Sheet 8. Performance of Alternatives (hidden)
B1: ='Project Scope'!C6 -> Davis Road Bridge Replacement
U5: CLICK NEXT TAB!

Sheet 9. Prioritize Cost vs Time (hidden)
B1: ='Project Scope'!C6 -> Davis Road Bridge Replacement
C5: Which is more important relative to meeting the decision goal, cost or time? Using a total of 100%, enter a percentage of priority for each participant for both cost and time. Make sure all participants totals add up to 100%, then CLICK NEXT TAB!
C8: Participant | D8: Priority in %
D9: Cost | E9: vs | F9: Time
C10: =IF('1. Identify Participants'!C9="","",'1. Identify Participants'!C9) -> Enrique | D10: 0.7 | F10: 0.3
C11: =IF('1. Identify Participants'!C10="","",'1. Identify Participants'!C10) -> Hank | D11: 0.8 | F11: 0.2
C12: =IF('1. Identify Participants'!C11="","",'1. Identify Participants'!C11) -> Peter | D12: 0.6 | F12: 0.4
C13: =IF('1. Identify Participants'!C12="","",'1. Identify Participants'!C12) -> Reinie | D13: 0.5 | F13: 0.5
C14: =IF('1. Identify Participants'!C13="","",'1. Identify Participants'!C13) -> 
C15: =IF('1. Identify Participants'!C14="","",'1. Identify Participants'!C14) -> 
C16: =IF('1. Identify Participants'!C15="","",'1. Identify Participants'!C15) -> 
C17: =IF('1. Identify Participants'!C16="","",'1. Identify Participants'!C16) -> 
C18: =IF('1. Identify Participants'!C17="","",'1. Identify Participants'!C17) -> 
C19: =IF('1. Identify Participants'!C18="","",'1. Identify Participants'!C18) -> 
D20: =AVERAGEIF(D10:D19,">0") -> 0.65 | F20: =AVERAGEIF(F10:F19,">0") -> 0.35

Sheet 10. Normalize Cost & Time (hidden)
B1: ='Project Scope'!C6 -> Davis Road Bridge Replacement
E3: CLICK NEXT TAB!
B6: Cost Scores
B8: Alt. No. | C8: Alt. Title. | D8: Cost ($) | E8: Score | F8: Adj. Score
B9: 1 | C9: =IF('Decision Dashboard'!C10="","",'Decision Dashboard'!C10) -> Baseline Concept | D9: =IF(C9="","",(VLOOKUP(C9,'2. Define Alternatives'!$C$6:$E$25,2,FALSE))) -> 59039000 | E9: =IF(D9="","",D9/$D$29) -> 0.2052916791 | F9: =IF(D9="","",E9*'9. Prioritize Cost vs Time'!$D$20) -> 0.1334395914
B10: 2 | C10: =IF('Decision Dashboard'!C11="","",'Decision Dashboard'!C11) -> VE Alternative 1 | D10: =IF(C10="","",(VLOOKUP(C10,'2. Define Alternatives'!$C$6:$E$25,2,FALSE))) -> 57011000 | E10: 0.198239874 | F10: =IF(D10="","",E10*'9. Prioritize Cost vs Time'!$D$20) -> 0.1288559181
B11: 3 | C11: =IF('Decision Dashboard'!C12="","",'Decision Dashboard'!C12) -> VE Alternative 2 | D11: =IF(C11="","",(VLOOKUP(C11,'2. Define Alternatives'!$C$6:$E$25,2,FALSE))) -> 58962950 | E11: 0.2050272364 | F11: =IF(D11="","",E11*'9. Prioritize Cost vs Time'!$D$20) -> 0.1332677037
B12: 4 | C12: =IF('Decision Dashboard'!C13="","",'Decision Dashboard'!C13) -> VE Alternative 3 | D12: =IF(C12="","",(VLOOKUP(C12,'2. Define Alternatives'!$C$6:$E$25,2,FALSE))) -> 52972647.5 | E12: 0.1841976279 | F12: =IF(D12="","",E12*'9. Prioritize Cost vs Time'!$D$20) -> 0.1197284581
B13: 5 | C13: =IF('Decision Dashboard'!C14="","",'Decision Dashboard'!C14) -> VE Alternative 4 | D13: =IF(C13="","",(VLOOKUP(C13,'2. Define Alternatives'!$C$6:$E$25,2,FALSE))) -> 59600340 | E13: 0.2072435826 | F13: =IF(D13="","",E13*'9. Prioritize Cost vs Time'!$D$20) -> 0.1347083287
B14: 6 | C14: =IF('Decision Dashboard'!C15="","",'Decision Dashboard'!C15) ->  | F14: =IF(D14="","",E14*'9. Prioritize Cost vs Time'!$D$20) -> 
B15: 7 | C15: =IF('Decision Dashboard'!C16="","",'Decision Dashboard'!C16) ->  | F15: =IF(D15="","",E15*'9. Prioritize Cost vs Time'!$D$20) -> 
B16: 8 | C16: =IF('Decision Dashboard'!C17="","",'Decision Dashboard'!C17) ->  | F16: =IF(D16="","",E16*'9. Prioritize Cost vs Time'!$D$20) -> 
B17: 9 | C17: =IF('Decision Dashboard'!C18="","",'Decision Dashboard'!C18) ->  | F17: =IF(D17="","",E17*'9. Prioritize Cost vs Time'!$D$20) -> 
B18: 10 | C18: =IF('Decision Dashboard'!C19="","",'Decision Dashboard'!C19) ->  | F18: =IF(D18="","",E18*'9. Prioritize Cost vs Time'!$D$20) -> 
B19: 11 | C19: =IF('Decision Dashboard'!C20="","",'Decision Dashboard'!C20) ->  | F19: =IF(D19="","",E19*'9. Prioritize Cost vs Time'!$D$20) -> 
B20: 12 | C20: =IF('Decision Dashboard'!C21="","",'Decision Dashboard'!C21) ->  | F20: =IF(D20="","",E20*'9. Prioritize Cost vs Time'!$D$20) -> 
B21: 13 | C21: =IF('Decision Dashboard'!C22="","",'Decision Dashboard'!C22) ->  | F21: =IF(D21="","",E21*'9. Prioritize Cost vs Time'!$D$20) -> 
B22: 14 | C22: =IF('Decision Dashboard'!C23="","",'Decision Dashboard'!C23) ->  | F22: =IF(D22="","",E22*'9. Prioritize Cost vs Time'!$D$20) -> 
B23: 15 | C23: =IF('Decision Dashboard'!C24="","",'Decision Dashboard'!C24) ->  | F23: =IF(D23="","",E23*'9. Prioritize Cost vs Time'!$D$20) -> 
B24: 16 | C24: =IF('Decision Dashboard'!C25="","",'Decision Dashboard'!C25) ->  | F24: =IF(D24="","",E24*'9. Prioritize Cost vs Time'!$D$20) -> 
B25: 17 | C25: =IF('Decision Dashboard'!C26="","",'Decision Dashboard'!C26) ->  | F25: =IF(D25="","",E25*'9. Prioritize Cost vs Time'!$D$20) -> 
B26: 18 | C26: =IF('Decision Dashboard'!C27="","",'Decision Dashboard'!C27) ->  | F26: =IF(D26="","",E26*'9. Prioritize Cost vs Time'!$D$20) -> 
B27: 19 | C27: =IF('Decision Dashboard'!C28="","",'Decision Dashboard'!C28) ->  | F27: =IF(D27="","",E27*'9. Prioritize Cost vs Time'!$D$20) -> 
B28: 20 | C28: =IF('Decision Dashboard'!C29="","",'Decision Dashboard'!C29) ->  | F28: =IF(D28="","",E28*'9. Prioritize Cost vs Time'!$D$20) -> 
B29: Total | D29: =SUM(D9:D28) -> 287585937.5 | E29: =SUM(E9:E28) -> 1
B32: Time Scores
B34: Alt. No. | C34: Alt. Title. | D34: Time (Months) | E34: Score | F34: Adj. Score
B35: 1 | C35: =IF(C9="","",C9) -> Baseline Concept | D35: =IF(C9="","",(VLOOKUP(C9,'2. Define Alternatives'!$C$6:$E$25,3,FALSE))) -> 53 | E35: =IF(D35="","",D35/$D$55) -> 0.2022900763 | F35: =IF(D35="","",E35*'9. Prioritize Cost vs Time'!$F$20) -> 0.07080152672
B36: 2 | C36: =IF(C10="","",C10) -> VE Alternative 1 | D36: =IF(C10="","",(VLOOKUP(C10,'2. Define Alternatives'!$C$6:$E$25,3,FALSE))) -> 53 | E36: 0.2022900763 | F36: =IF(D36="","",E36*'9. Prioritize Cost vs Time'!$F$20) -> 0.07080152672
B37: 3 | C37: VE Alternative 2 | D37: =IF(C11="","",(VLOOKUP(C11,'2. Define Alternatives'!$C$6:$E$25,3,FALSE))) -> 53 | E37: 0.2022900763 | F37: =IF(D37="","",E37*'9. Prioritize Cost vs Time'!$F$20) -> 0.07080152672
B38: 4 | C38: VE Alternative 3 | D38: =IF(C12="","",(VLOOKUP(C12,'2. Define Alternatives'!$C$6:$E$25,3,FALSE))) -> 50 | E38: 0.1908396947 | F38: =IF(D38="","",E38*'9. Prioritize Cost vs Time'!$F$20) -> 0.06679389313
B39: 5 | C39: VE Alternative 4 | D39: =IF(C13="","",(VLOOKUP(C13,'2. Define Alternatives'!$C$6:$E$25,3,FALSE))) -> 53 | E39: 0.2022900763 | F39: =IF(D39="","",E39*'9. Prioritize Cost vs Time'!$F$20) -> 0.07080152672
B40: 6 | F40: =IF(D40="","",E40*'9. Prioritize Cost vs Time'!$F$20) -> 
B41: 7 | F41: =IF(D41="","",E41*'9. Prioritize Cost vs Time'!$F$20) -> 
B42: 8 | F42: =IF(D42="","",E42*'9. Prioritize Cost vs Time'!$F$20) -> 
B43: 9 | F43: =IF(D43="","",E43*'9. Prioritize Cost vs Time'!$F$20) -> 
B44: 10 | F44: =IF(D44="","",E44*'9. Prioritize Cost vs Time'!$F$20) -> 
B45: 11 | F45: =IF(D45="","",E45*'9. Prioritize Cost vs Time'!$F$20) -> 
B46: 12 | F46: =IF(D46="","",E46*'9. Prioritize Cost vs Time'!$F$20) -> 
B47: 13 | F47: =IF(D47="","",E47*'9. Prioritize Cost vs Time'!$F$20) -> 
B48: 14 | F48: =IF(D48="","",E48*'9. Prioritize Cost vs Time'!$F$20) -> 
B49: 15 | F49: =IF(D49="","",E49*'9. Prioritize Cost vs Time'!$F$20) -> 
B50: 16 | F50: =IF(D50="","",E50*'9. Prioritize Cost vs Time'!$F$20) -> 
B51: 17 | F51: =IF(D51="","",E51*'9. Prioritize Cost vs Time'!$F$20) -> 
B52: 18 | F52: =IF(D52="","",E52*'9. Prioritize Cost vs Time'!$F$20) -> 
B53: 19 | F53: =IF(D53="","",E53*'9. Prioritize Cost vs Time'!$F$20) -> 
B54: 20 | F54: =IF(D54="","",E54*'9. Prioritize Cost vs Time'!$F$20) -> 
B55: Total | D55: =SUM(D35:D54) -> 262 | E55: =SUM(E35:E54) -> 1
B58: Total Weighted Cost + Time Score
B60: Alt. No. | C60: Alt. Title. | D60: Cost Score | E60: Time Score | F60: TOTAL SCORE
B61: 1 | C61: =IF(C9="","",C9) -> Baseline Concept | D61: =F9 -> 0.1334395914 | E61: =F35 -> 0.07080152672 | F61: =IF(C61="","",SUM(D61:E61)) -> 0.2042411181
B62: 2 | C62: =IF(C10="","",C10) -> VE Alternative 1 | D62: =F10 -> 0.1288559181 | E62: =F36 -> 0.07080152672 | F62: =IF(C62="","",SUM(D62:E62)) -> 0.1996574448
B63: 3 | C63: VE Alternative 2 | D63: 0.1332677037 | E63: 0.07080152672 | F63: 0.2040692304
B64: 4 | C64: VE Alternative 3 | D64: 0.1197284581 | E64: 0.06679389313 | F64: 0.1865223513
B65: 5 | C65: VE Alternative 4 | D65: 0.1347083287 | E65: 0.07080152672 | F65: 0.2055098554
B66: 6
B67: 7
B68: 8
B69: 9
B70: 10
B71: 11
B72: 12
B73: 13
B74: 14
B75: 15
B76: 16
B77: 17
B78: 18
B79: 19
B80: 20

Sheet 11. Value Matrix (hidden)
B1: ='Project Scope'!C6 -> Davis Road Bridge Replacement
I4: MENU
B5: Alternatives | C5: Performance Score (P) | D5: Cost Score (C) | E5: Time Score (T) | F5: Raw Value Index P / (C+T) | G5: Change in Value Compared to First Alternative
B6: =IF('Decision Dashboard'!C10="","",'Decision Dashboard'!C10) -> Baseline Concept | C6: ='7. Performance Priorities'!AA11 -> 0.804772113 | D6: ='10. Normalize Cost & Time'!D61 -> 0.1334395914 | E6: ='10. Normalize Cost & Time'!E61 -> 0.07080152672 | F6: =IF(B6="","",C6/(D6+E6)) -> 3.940304089 | G6: N/A
B7: =IF('Decision Dashboard'!C11="","",'Decision Dashboard'!C11) -> VE Alternative 1 | C7: ='7. Performance Priorities'!AA12 -> 0.8064526944 | D7: ='10. Normalize Cost & Time'!D62 -> 0.1288559181 | E7: ='10. Normalize Cost & Time'!E62 -> 0.07080152672 | F7: =IF(B7="","",C7/(D7+E7)) -> 4.039181686 | G7: =IFERROR((F7-$F$6)/$F$6,0) -> 0.02509390003
B8: =IF('Decision Dashboard'!C12="","",'Decision Dashboard'!C12) -> VE Alternative 2 | C8: ='7. Performance Priorities'!AA13 -> 0.804772113 | D8: ='10. Normalize Cost & Time'!D63 -> 0.1332677037 | E8: ='10. Normalize Cost & Time'!E63 -> 0.07080152672 | F8: 3.943623012 | G8: =IFERROR((F8-$F$6)/$F$6,0) -> 0.0008423011672
B9: =IF('Decision Dashboard'!C13="","",'Decision Dashboard'!C13) -> VE Alternative 3 | C9: ='7. Performance Priorities'!AA14 -> 0.8156618141 | D9: ='10. Normalize Cost & Time'!D64 -> 0.1197284581 | E9: ='10. Normalize Cost & Time'!E64 -> 0.06679389313 | F9: 4.372997706 | G9: 0.1098122396
B10: =IF('Decision Dashboard'!C14="","",'Decision Dashboard'!C14) -> VE Alternative 4 | C10: ='7. Performance Priorities'!AA15 -> 0.8451318877 | D10: ='10. Normalize Cost & Time'!D65 -> 0.1347083287 | E10: ='10. Normalize Cost & Time'!E65 -> 0.07080152672 | F10: 4.112366708 | G10: 0.04366734529
B11: =IF('Decision Dashboard'!C15="","",'Decision Dashboard'!C15) ->  | C11: ='7. Performance Priorities'!AA16 ->  | D11: ='10. Normalize Cost & Time'!D66 ->  | E11: ='10. Normalize Cost & Time'!E66 ->  | F11: =IF(B11="","",C11/(D11+E11)) ->  | G11: 0
B12: =IF('Decision Dashboard'!C16="","",'Decision Dashboard'!C16) ->  | C12: ='7. Performance Priorities'!AA17 ->  | D12: ='10. Normalize Cost & Time'!D67 ->  | E12: ='10. Normalize Cost & Time'!E67 ->  | G12: 0
B13: =IF('Decision Dashboard'!C17="","",'Decision Dashboard'!C17) ->  | C13: ='7. Performance Priorities'!AA18 ->  | D13: ='10. Normalize Cost & Time'!D68 ->  | E13: ='10. Normalize Cost & Time'!E68 ->  | G13: 0
B14: =IF('Decision Dashboard'!C18="","",'Decision Dashboard'!C18) ->  | C14: ='7. Performance Priorities'!AA19 ->  | D14: ='10. Normalize Cost & Time'!D69 ->  | E14: ='10. Normalize Cost & Time'!E69 ->  | G14: 0
B15: =IF('Decision Dashboard'!C19="","",'Decision Dashboard'!C19) ->  | C15: ='7. Performance Priorities'!AA20 ->  | D15: ='10. Normalize Cost & Time'!D70 ->  | E15: ='10. Normalize Cost & Time'!E70 ->  | G15: 0
B16: =IF('Decision Dashboard'!C20="","",'Decision Dashboard'!C20) ->  | C16: ='7. Performance Priorities'!AA21 ->  | D16: ='10. Normalize Cost & Time'!D71 ->  | E16: ='10. Normalize Cost & Time'!E71 ->  | G16: 0
B17: =IF('Decision Dashboard'!C21="","",'Decision Dashboard'!C21) ->  | C17: ='7. Performance Priorities'!AA22 ->  | D17: ='10. Normalize Cost & Time'!D72 ->  | E17: ='10. Normalize Cost & Time'!E72 ->  | G17: 0
B18: =IF('Decision Dashboard'!C22="","",'Decision Dashboard'!C22) ->  | C18: ='7. Performance Priorities'!AA23 ->  | D18: ='10. Normalize Cost & Time'!D73 ->  | E18: ='10. Normalize Cost & Time'!E73 ->  | G18: 0
B19: =IF('Decision Dashboard'!C23="","",'Decision Dashboard'!C23) ->  | C19: ='7. Performance Priorities'!AA24 ->  | D19: ='10. Normalize Cost & Time'!D74 ->  | E19: ='10. Normalize Cost & Time'!E74 ->  | G19: 0
B20: =IF('Decision Dashboard'!C24="","",'Decision Dashboard'!C24) ->  | C20: ='7. Performance Priorities'!AA25 ->  | D20: ='10. Normalize Cost & Time'!D75 ->  | E20: ='10. Normalize Cost & Time'!E75 ->  | G20: 0
B21: =IF('Decision Dashboard'!C25="","",'Decision Dashboard'!C25) ->  | C21: ='7. Performance Priorities'!AA26 ->  | D21: ='10. Normalize Cost & Time'!D76 ->  | E21: ='10. Normalize Cost & Time'!E76 ->  | G21: 0
B22: =IF('Decision Dashboard'!C26="","",'Decision Dashboard'!C26) ->  | C22: ='7. Performance Priorities'!AA27 ->  | D22: ='10. Normalize Cost & Time'!D77 ->  | E22: ='10. Normalize Cost & Time'!E77 ->  | G22: 0
B23: =IF('Decision Dashboard'!C27="","",'Decision Dashboard'!C27) ->  | C23: ='7. Performance Priorities'!AA28 ->  | D23: ='10. Normalize Cost & Time'!D78 ->  | E23: ='10. Normalize Cost & Time'!E78 ->  | G23: 0
B24: =IF('Decision Dashboard'!C28="","",'Decision Dashboard'!C28) ->  | C24: ='7. Performance Priorities'!AA29 ->  | D24: ='10. Normalize Cost & Time'!D79 ->  | E24: ='10. Normalize Cost & Time'!E79 ->  | G24: 0
B25: =IF('Decision Dashboard'!C29="","",'Decision Dashboard'!C29) ->  | C25: ='7. Performance Priorities'!AA30 ->  | D25: ='10. Normalize Cost & Time'!D80 ->  | E25: ='10. Normalize Cost & Time'!E80 ->  | G25: 0
B53: =B26 -> 0
B54: 0
B55: 0
B56: 0
B57: 0
B58: 0
B59: 0
B60: 0
B61: 0
B62: 0
B63: 0
B64: 0
B65: 0
B66: 0
B67: 0
B68: 0
B69: 0
B70: 0
B71: 0
B72: 0
B73: 0

Sheet PD Dashboard (hidden)
B1: ='Project Scope'!C6 -> Davis Road Bridge Replacement
B2: PROJECT DELIVERY METHOD SELECTION DASHBOARD
C5: Final Ranking | G5: Design-Bid-Build | K5: CMGC | O5: Design-Build
C6: (Score out of 10) | G6: ='5. Performance Priorities '!AB6 -> 8.915120653 | K6: ='5. Performance Priorities '!AB7 -> 4.030078279 | O6: ='5. Performance Priorities '!AB8 -> 3.921748945

Sheet 1. Select Participants (hidden)
B1: ='Project Scope'!C6 -> Davis Road Bridge Replacement
B2: PARTICIPANTS
B4: No. | C4: First Name | D4: Last Name | E4: Expertise/Title | F4: Organization | G4: Project Role | H4: Email | I4: Phone
B5: 1 | C5: Joe | D5: Merriwether | E5: Project Manager | F5: Caltrans, D-7 | G5: Project Development Team | H5: john.p.merriwether@dot.ca.gov | I5: 555-555-5555
B6: 2 | C6: Fred | D6: Carter
B7: 3 | C7: John | D7: Jones
B8: 4
B9: 5
B10: 6
B11: 7
B12: 8
B13: 9
B14: 10

Sheet 2. Rate Performance (hidden)
B1: ='Project Scope'!C6 -> Davis Road Bridge Replacement
B2: DELIVERY METHOD PERFORMANCE RATING
B4: Project Complexity & Innovation | C4: An assessment of the delivery method's applicability for generating new designs or processes to resolve complex technical issues.
B6: Ideal | C6: Very Good | D6: Good | E6: Fair | F6: Poor | G6: Unacceptable
B7: 1 | C7: 0.8 | D7: 0.6 | E7: 0.4 | F7: 0.2 | G7: 0
B8: The delivery method is an optimal match relative to the degree of complexity and need for innovative and/or unique project solutions. | D8: The delivery method is adequate relative to the degree of complexity and need for innovative and/or unique project solutions. | F8: The delivery method is a poor match for the project relative to its complexity and need for innovation.
B10: Delivery Method | C10: Rating Score | D10: Considerations | F10: Rating Rationale
B11: Design-Bid-Build | C11: 1 | D11: • Agency's control of design of complex projects • Agency and consultant expertise can select innovation independently of contractor abilities • Opportunities for value engineering studies during design, more time for design solutions • Aids in consistency and maintainability • Full control in selection of design expertise • Complex design can be resolved and competitively bid • Innovations can add cost or time and restrain contractor’s benefits • No contractor input to optimize costs • Limited flexibility for integrated design and construction solutions (limited to constructability) • Difficult to assess construction time and cost due to innovation | F11: The current project is very simple in concept; uses standard methods and a single stage of construction. Design-bid-build would be the best fit based on the level of project complexity.
B12: Construction Manager/General Contractor | C12: 0.2 | D12: • Highly innovative process through 3-party collaboration • Allows for agency control of a designer/contractor process for developing innovative solutions • Allows for an independent selection of the best qualified designer and best qualified contractor • VE inherent in process and enhanced constructability • Risk of innovation can be better defined and minimized and allocated • Can take to market for bidding as contingency • Can develop means and methods to the strengths of a single contractor partner throughout preconstruction • Process depends on designer/CM relationship • No contractual relationship between designer/CM • Innovations can add or reduce cost or time • Management of scope additions | F12: Due to the simplicity of the project, there is little input a CMGC contractor could provide the project to further simplify it.
B13: Design-Build | C13: 0.2 | D13: • Designer and contractor collaborate to optimize means and methods and enhance innovation • Opportunity for innovation through competiveness of ATC process • Can use best-value procurement to select design-builder with best qualifications • Constructability and VE inherent in process • Early team integration • Requires desired solutions to complex designs to be well defined through technical requirements • Qualitative designs can be difficult to define if not done early in design (example: aesthetics) • Time or cost constraints on designer • Quality assurance for innovative processes can be difficult to define in RFP • Ability to obtain intellectual property through the use of stipends | F13: The simplicity of the project would not afford DB contractors with many opportunities to further simplify the project beyond what the project team has come up with.
B16: Project Delivery Schedule | C16: An assessment of the delivery method's capacity to meet the project's schedule goals.
B18: Ideal | C18: Very Good | D18: Good | E18: Fair | F18: Poor | G18: Unacceptable
B19: 1 | C19: 0.8 | D19: 0.6 | E19: 0.4 | F19: 0.2 | G19: 0
B20: The delivery method will have a high likelihood of meeting the project's schedule goals. | D20: The delivery method will have a moderate level of probability in meeting the project's schedule goals. | F20: The delivery method will have a low likelihood of meeting the project's schedule goals.
B22: Delivery Method | C22: Rating Score | D22: Considerations | F22: Rating Rationale
B23: Design-Bid-Build | C23: 1 | D23: • Schedule is more predictable and more manageable • Milestones can be easier to define • Projects can more easily be “shelved” • Shortest procurement period • Elements of design can be advanced prior to permitting, construction, etc. • Time to communicate/discuss design with stakeholders • Time to perform a linear Design-Bid-Build delivery process • Design and construction schedules can be unrealistic due to lack of industry input • Errors in design lead to change orders and schedule delays • Low bid selection may lead to potential delays and other adverse outcomes | F23: The project is predicated on single stage construction. There are limited opportunities to further accelerate construction or the design process.
B24: Construction Manager/General Contractor | C24: 0.2 | D24: • Ability to start construction before entire design, ROW, etc. is complete (i.e., phased design) • More efficient procurement of long-lead items • Early identification and resolution of design and construction issues (e.g., utility, ROW, earthwork) • Can provide a shorter procurement schedule than DB • Team involvement for schedule optimization • Continuous constructability review and VE • Maintenance of Traffic improves with contractor inputs • Contractor input for phasing, constructability, and traffic control may reduce overall schedule • Potential for not reaching CAP and substantially delaying schedule • CAP negotiation can delay the schedule • Designer-contractor-agency disagreements can add delays • Strong agency management is required to control schedule | F24: The CMGC method does not afford any significant advantages in terms of schedule benefits. There may likely be schedule delays related to using this procurement method.
B25: Design-Build | C25: 0.2 | D25: • Potential to accelerate schedule through parallel design-build process • Shifting of schedule risk • Industry input into design and schedule • Fewer chances for disputes between agency and the Design-Build team • More efficient procurement of long-lead items • Ability to start construction before entire design, ROW, etc. is complete (i.e., phased design) • Allows innovation in resource loading and scheduling by DB team • Request for proposal development and procurement can be intensive • Undefined events/conditions found after procurement but during design can impact schedule/cost • Time required to define and develop RFP technical requirements and expectations • Requires agency and stakeholder commitments to an expeditious review of design | F25: The DB method does not afford any significant advantages in terms of schedule benefits. There may likely be schedule delays related to using this procurement method.
B28: Project Cost Considerations | C28: An assessment of the suitability of the delivery method in supporting the project's financial aspects including funding, budget restrictions, and control of project costs.
B30: Ideal | C30: Very Good | D30: Good | E30: Fair | F30: Poor | G30: Unacceptable
B31: 1 | C31: 0.8 | D31: 0.6 | E31: 0.4 | F31: 0.2 | G31: 0
B32: The delivery method is strongly aligned with and will support the project's cost considerations. | D32: The delivery method is adequately aligned with, and generally supports, the project's cost considerations. | F32: The delivery method is poorly aligned with and is not a good fit in supporting the project's cost considerations.
B34: Delivery Method | C34: Rating Score | D34: Considerations | F34: Rating Rationale
B35: Design-Bid-Build | C35: 0.8 | D35: • Competitive bidding provides a low cost construction to a fully defined scope of work • Increased certainty about cost estimates • Construction costs are contractually set before construction begins • Cost accuracy is limited until design is completed • Construction costs are not locked in until design is 100% complete • Cost reductions due to contractor innovation and constructability is difficult to obtain • More potential of cost change orders due to Agency design responsibility | F35: Competitive bidding using traditional DBB methods make a lot of sense given the type of project.
B36: Construction Manager/General Contractor | C36: 0.2 | D36: • Agency/designer/contractor collaboration to reduce project risk can result in lowest project costs • Early contractor involvement can result in cost savings through VE and constructability • Cost will be known earlier when compared to DBB • Integrated design/construction process can provide cost-efficient strategies to project goals • Can provide a cost-efficient response to meet project goals • Non-competitive negotiated CAP introduces price risk • Difficulty in CAP negotiation introduces some risk that CAP will not be successfully executed, requiring aborting the CMGC process • Paying for contractors involvement in the design phase could potentially increase total cost • Use of Independent Cost Estimating (ICE) expertise to obtain competitive pricing during CAP negotiations | F36: For this type of project, the use of CMGC will severely limit competition and may likely result in an increased construction price.
B37: Design-Build | C37: 0.6 | D37: • Contractor input into design should moderate cost • Design-builder collaboration and ATCs can provide a cost-efficient response to project goals • Costs are contractually set early in design process with design-build proposal • Allows a variable scope bid to match a fixed budget • Potential lower average cost growth • Funding can be obligated in a very short timeframe • Risks related to design-build, lump sum cost without 100% design complete, can compromise financial success of the project | F37: DBB offers a competitive bidding environment; however, given the development of the project, it is likely that any construction cost benefits will be eroded by additional design costs.
B40: Level of Design | C40: An assessment of the delivery method's suitability in supporting the current level of design development.
B42: Ideal | C42: Very Good | D42: Good | E42: Fair | F42: Poor | G42: Unacceptable
B43: 1 | C43: 0.8 | D43: 0.6 | E43: 0.4 | F43: 0.2 | G43: 0
B44: The current level of design provides an excellent fit with the delivery method. | D44: The current level of design provides a reasonable fit with the delivery method. | F44: The current level of design is not very compatible with the delivery method.
B46: Delivery Method | C46: Rating Score | D46: Considerations | F46: Rating Rationale
B47: Design-Bid-Build | C47: 1 | D47: • 100% design by agency • Agency has complete control over the design (can be beneficial when there is one specific solution for a project) • Project/scope can be developed through design • The scope of the project is well defined through complete plans and contract documents • Well-known process to the industry • Agency design errors can result in a higher number of change orders, claims, etc. • Minimizes competitive innovation opportunities • Can reduce the level of constructability since the contractor is not brought into the project until after the design is complete | F47: The project is at 35% design. Carrying forward with a DBB approach with the current design team makes a lot of sense.
B48: Construction Manager/General Contractor | C48: 0.4 | D48: • Can utilize a lower level of design prior to selecting a contractor then collaboratively advance design with agency, designer and contractor • Contractor involvement in early design improves constructability • Agency controls design • Design can be used for DBB if the price is not successfully negotiated • Design can be responsive to risk minimization • Teaming and communicating concerning design can cause disputes • Three party process can slow progression of design • Advanced design can limit the advantages of CMGC or could require re-design | F48: The project is at 35% design. Bringing on a CMGC would have to happen quickly to be of any benefit.
B49: Design-Build | C49: 0.2 | D49: • Design advanced by the agency to level necessary to precisely define the contract requirements and properly allocate risk • Does not require much design to be completed before awarding project to the design-builder (between ~ 10% - 30% complete) • Contractor involvement in early design, which improves constructability and innovation • Plans do not have to be as detailed because the design-builder is brought into the project early in the process and will accept design responsibility • Clearly define requirements in the RFP because it is the basis for the contract • If design is too far advanced it will limit the advantages of design-build • Carefully develop the RFP so that scope is fully defined • Over utilizing performance specifications to enhance innovation can risk quality through reduced technical requirements • Less agency control over the design • Can create project less standardized designs across agency as a whole | F49: The project is at 35% design. The process of developing a DB RFP at this stage and switching design teams is not a good fit
B52: Level of Risk | C52: An assessment of the delivery method's suitability given the level of project risk.
B54: Ideal | C54: Very Good | D54: Good | E54: Fair | F54: Poor | G54: Unacceptable
B55: 1 | C55: 0.8 | D55: 0.6 | E55: 0.4 | F55: 0.2 | G55: 0
B56: The project risks currently identified are fully compatible with the delivery method and can be effectively managed. | D56: The project risks currently identified are somewhat compatible with the delivery method and can be managed. | F56: The project risks currently identified are incompatible with the delivery method and will be challenging to effectively manage.
B58: Delivery Method | C58: Rating Score | D58: Considerations | F58: Rating Rationale
B59: Design-Bid-Build | C59: 0.8 | D59: • Risks managed separately through design, bid, build are expected to be easier • Risk allocation is most widely understood/used • Opportunity to avoid or mitigate risk through complete design • Risks related to environmental, railroads, and third-party involvement are best resolved before procurement • Utilities and ROW best allocated to the agency and mostly addressed prior to procurement to minimize potential for claim • Project can be shelved while resolving risks • Agency accepts risks associated with project complexity (the inability of designer to be all-knowing about construction) and project unknowns • Low-bid related risks • Potential for misplaced risk through prescriptive specifications • Innovative risk allocation is difficult to obtain • Limited industry input in contract risk allocation • Change order risks can be greater | F59: There are only a small number of risks currently identified for this project. Most of the risks identified are preconstruction risks and should be easily managed by the project team.
B60: Construction Manager/General Contractor | C60: 0.5 | D60: • Contractor can have a better understanding of the unknown conditions as design progresses • Innovative opportunities to allocate risks to different parties (e.g., schedule, means and methods, phasing) • Opportunities to manage cost risks through CMGC involvement • Contractor will help identify and manage risk • Agency still has considerable involvement with third parties to deal with risks • Avoids low-bidding risk in procurement • More flexibility and innovation available to deal with unknowns early in the design process • Lack of motivation to manage small quantity costs • Increase costs for non-proposal items • Disagreement among Designer-Contractor-Agency can put the process at risk • If CAP cannot be reached, additional low-bid risks appear • Limited to risk capabilities of CMGC • Strong agency management is required to negotiate/optimize risks • Discovery of unknown conditions can drive up CAP, which can be compounded in phased construction | F60: There are not too many risks that the CNGC would be able to minimize for this project beyond what is already happening.
B61: Design-Build | C61: 0.3 | D61: • Performance specifications can allow for alternative risk allocations to the design builder • Risk-reward structure can be better defined • Innovative opportunities to allocate risks to different parties (e.g., schedule, means and methods, phasing) • Opportunity for industry review of risk allocation (draft RFP, ATC processes) • Avoid low-bidding risk in procurement • Contractor will help identify risks related to environmental, railroads, ROW, and utilities • Designers and contractors can work toward innovative solutions to, or avoidance of, unknowns • Need a detailed project scope, description, etc., for the RFP to get accurate/comprehensive responses (Increased RFP costs may limit bidders) • Limited time to resolve risks • Additional risks allocated to designers for errors and omissions, claims for change orders • Unknowns and associated risks need to be carefully allocated through a well-defined scope and contract • Risks associated with agreements when design is not completed • Poorly defined risks are expensive • Contractor may avoid risks or drive consultant to decrease cost at risk to quality | F61: A DB method might actually increase risks as most of the pre-construction risks would be transferred to the DB team who do not have the current level of experience in dealing with the pre-construction risks.
B64: Staff Experience / Availability | C64: An assessment of the agency staff experience and availability in supporting a specific project delivery method.
B66: Ideal | C66: Very Good | D66: Good | E66: Fair | F66: Poor | G66: Unacceptable
B67: 1 | C67: 0.8 | D67: 0.6 | E67: 0.4 | F67: 0.2 | G67: 0
B68: The agency staff required to support the delivery method is a good match. Staff assigned to the project are available and have strong experience with the delivery method. | D68: The agency staff required to support the delivery method is generally acceptable, although not optimal. Most staff assigned to the project are available and have a moderate level of experience with the delivery method. | F68: The agency staff required to support the delivery method is a poor match. Staff assigned to the project have low availability and have weak or no experience with the delivery method.
B70: Delivery Method | C70: Rating Score | D70: Considerations | F70: Rating Rationale
B71: Design-Bid-Build | C71: 0.8 | D71: • Agency, contractors, and consultants have high level of experience with the traditional system • Designers can be more interchangeable between projects • Can require a high level of agency staffing of technical resources • Staff’s responsibilities are spread out over a longer design period • Can require staff to have full breadth of technical expertise | F71: Current staffing resources and experience are adequate to complete the project using a DBB approach.
B72: Construction Manager/General Contractor | C72: 0.8 | D72: • Agency can improve efficiencies by having more project managers on staff rather than specialized experts • Smaller number of technical staff required through use of consultant designer • Strong committed agency project management is important to success • Limitation of availability of staff with skills, knowledge, and personality to manage CMGC projects • Existing staff may need additional training to address their changing roles • Agency must learn how to negotiate CAP projects | F72: The addition of a CMGC advisor would not offer any significant advantages over the DBB approach.
B73: Design-Build | C73: 0.2 | D73: • Less agency staff required due to the sole source nature of DB • Opportunity to grow agency staff by learning a new process • Limitation of availability of staff with skills and knowledge to manage DB projects • Existing staff may need additional training to address their changing roles • Need to “mass” agency management and technical resources at critical points in process (i.e., RFP development, design reviews, etc.) | F73: The County's lack of familiarity in administering DB contracts may actually be problematic.
B76: Level of Oversight and Control | C76: An assessment of the degree of management and oversight required for agency staff to adequately monitor the design or construction, and amount of agency control over the delivery method.
B78: Ideal | C78: Very Good | D78: Good | E78: Fair | F78: Poor | G78: Unacceptable
B79: 1 | C79: 0.8 | D79: 0.6 | E79: 0.4 | F79: 0.2 | G79: 0
B80: The level of oversight and control desired by the agency for the project is an optimal match with the delivery method. | D80: The level of oversight and control desired by the agency for the project is an acceptable match with the delivery method. | F80: The level of oversight and control desired by the agency for the project is a poor match with the delivery method.
B82: Delivery Method | C82: Rating Score | D82: Considerations | F82: Rating Rationale
B83: Design-Bid-Build | C83: 0.9 | D83: • Full agency control over a linear design and construction process • Oversight roles are well understood • Contract documents are typically completed in a single package before construction begins • Multiple checking points through three linear phases: design-bid-build • Maximum control over design • Requires a high level of oversight • Increased likelihood of claims due to agency design responsibility • Limited control over an integrated design/construction process | F83: County staff are accustomed to DBB methods and have specific staff used to monitoring design and construction activities.
B84: Construction Manager/General Contractor | C84: 0.9 | D84: • Preconstruction services are provided by the construction manager • Obtaining input from the CMGC to enhance constructability and innovation • Provides agency control over an integrated design/construction process • Agency must have experienced staff to oversee the CMGC • Higher level of cost oversight required | F84: No advantage over the DBB method.
B85: Design-Build | C85: 0.7 | D85: • A single entity responsibility during project design and construction • Obtaining input from the design-builder to enhance constructability and innovation • Overall project planning and scheduling is established by one entity • Can require a high level of design oversight • Can require a high level of quality assurance oversight • Limitation on staff with DB oversight experience • Less agency control over design • Control over design relies on proper development of technical requirements | F85: Concerns about the ability to control quality using this approach.
B88: Competition & Contractor Experience | C88: An assessment of the suitability of the delivery method relative to the anticipated level of competition, experience and availability in the market place, and its capacity for the project.
B90: Ideal | C90: Very Good | D90: Good | E90: Fair | F90: Poor | G90: Unacceptable
B91: 1 | C91: 0.8 | D91: 0.6 | E91: 0.4 | F91: 0.2 | G91: 0
B92: The anticipated contractor bidding pool able to successfully uitlize the delivery method, and possess sufficient capacity and experience, is excellent. | D92: The anticipated contractor bidding pool able to successfully utilize the delivery method, and possess sufficient capacity and experience, is acceptable. | F92: The anticipated contractor bidding pool able to successfully utilize the delivery method, and possess sufficient capacity and experience, is poor.
B94: Delivery Method | C94: Rating Score | D94: Considerations | F94: Rating Rationale
B95: Design-Bid-Build | C95: 1 | D95: • Promotes high level of competition in the marketplace • Opens construction to all reasonably qualified bidders • Transparency and fairness • Reduced chance of corruption and collusion • Contractors are familiar with the DBB process • Risks associated with selecting the low bid (the best contractor is not necessarily selected) • No contractor input into the process • Limited ability to select contractor based on qualifications | F95: This method will invite the highest number of bidders.
B96: Construction Manager/General Contractor | C96: 0.5 | D96: • Allows for qualifications-based contractor procurement • Agency has control over an independent selection of best qualified designer and contractor • Contractor is part of the project team early on, creating a project “team” • Increased opportunity for innovation due to the diversity of the project team • Currently, there is not a large pool of contractors with experience in CMGC, which will reduce the competition and availability • Working with only one contractor to develop the CAP can limit price competition • Requires a strong project manager from the agency • Teamwork and communication among the project team | F96: As CMGC relies upon qualifications first. This approach may reduce the bidding pool and discourage some local contractors from pursuing this method due to lack of familiarity.
B97: Design-Build | C97: 0.3 | D97: • Allows for a balance of qualifications and cost in design-builder procurement • Two-phase process can promote strong teaming to obtain “Best Value” • Increased opportunity for innovation possibilities due to the diverse project team • Need for DB qualifications can limit competition • Lack of competition with past experience with the project delivery method • Reliant on DB team selected for the project • The gap between agency experience and contractor experience with delivery method can create conflict | F97: This will reduce the number of bidders significantly as it would require smaller, local contractors to enter into agreements with design firms. This will significantly reduce competition.

Sheet 3. Prioritize Attributes (hidden)
B2: ='Project Scope'!C6 -> Davis Road Bridge Replacement | L2: Weight | M2: Description
B3: PRIORITIZE ATTRIBUTES | L3: 9 | M3: Extremely more important
L4: 8
L5: 7 | M5: Very strongly more important
B6: Each pariticipant should select which attribute they feel is most important to meet the stated objective below and then indicate the strength of the importance by assigning it a score from 2-9 using the scales to the right. If they are both felt to be of equal importance, leave the scoring blank (which defaults the score to a "1"). | L6: 6
L7: 5 | M7: Strongly more important
L8: 4
L9: 3 | M9: Moderately more important
B10: Which attribute is more important in considering which delivery method to use for this project? | L10: 2
L11: 1 | M11: Equally important
A13: Step .1 | B13: Participant | C13: Attributes | E13: Weight | F13: Step .2 | G13: Participant | H13: Attributes | J13: Weight | K13: Step .3 | L13: Participant | M13: Attributes | O13: Weight
C14: Project Complexity & Innovation | D14: Project Delivery Schedule | H14: Project Complexity & Innovation | I14: Project Cost Considerations | M14: Project Complexity & Innovation | N14: Level of Design
B15: =IF('1. Select Participants'!C5="","",'1. Select Participants'!C5) -> Joe | D15: 9 | E15: =IF(B15="","",IF(C15="",1,C15)/IF(D15="",1,D15)) -> 0.1111111111 | G15: =IF('1. Select Participants'!C5="","",'1. Select Participants'!C5) -> Joe | I15: 9 | J15: =IF(G15="","",IF(H15="",1,H15)/IF(I15="",1,I15)) -> 0.1111111111 | L15: =IF('1. Select Participants'!C5="","",'1. Select Participants'!C5) -> Joe | N15: 5 | O15: =IF(L15="","",IF(M15="",1,M15)/IF(N15="",1,N15)) -> 0.2
B16: =IF('1. Select Participants'!C6="","",'1. Select Participants'!C6) -> Fred | D16: 8 | E16: =IF(B16="","",IF(C16="",1,C16)/IF(D16="",1,D16)) -> 0.125 | G16: =IF('1. Select Participants'!C6="","",'1. Select Participants'!C6) -> Fred | I16: 7 | J16: =IF(G16="","",IF(H16="",1,H16)/IF(I16="",1,I16)) -> 0.1428571429 | L16: =IF('1. Select Participants'!C6="","",'1. Select Participants'!C6) -> Fred | N16: 5 | O16: =IF(L16="","",IF(M16="",1,M16)/IF(N16="",1,N16)) -> 0.2 | AD16: 1 | AE16: 9
B17: =IF('1. Select Participants'!C7="","",'1. Select Participants'!C7) -> John | D17: 9 | E17: 0.1111111111 | G17: =IF('1. Select Participants'!C7="","",'1. Select Participants'!C7) -> John | I17: 8 | J17: 0.125 | L17: =IF('1. Select Participants'!C7="","",'1. Select Participants'!C7) -> John | N17: 4 | O17: 0.25 | AE17: 8
B18: =IF('1. Select Participants'!C8="","",'1. Select Participants'!C8) ->  | G18: =IF('1. Select Participants'!C8="","",'1. Select Participants'!C8) ->  | L18: =IF('1. Select Participants'!C8="","",'1. Select Participants'!C8) ->  | AE18: 7
B19: =IF('1. Select Participants'!C9="","",'1. Select Participants'!C9) ->  | G19: =IF('1. Select Participants'!C9="","",'1. Select Participants'!C9) ->  | L19: =IF('1. Select Participants'!C9="","",'1. Select Participants'!C9) ->  | AE19: 6
B20: =IF('1. Select Participants'!C10="","",'1. Select Participants'!C10) ->  | G20: =IF('1. Select Participants'!C10="","",'1. Select Participants'!C10) ->  | L20: =IF('1. Select Participants'!C10="","",'1. Select Participants'!C10) ->  | AE20: 5
B21: =IF('1. Select Participants'!C11="","",'1. Select Participants'!C11) ->  | G21: =IF('1. Select Participants'!C11="","",'1. Select Participants'!C11) ->  | L21: =IF('1. Select Participants'!C11="","",'1. Select Participants'!C11) ->  | AE21: 4
B22: =IF('1. Select Participants'!C12="","",'1. Select Participants'!C12) ->  | G22: =IF('1. Select Participants'!C12="","",'1. Select Participants'!C12) ->  | L22: =IF('1. Select Participants'!C12="","",'1. Select Participants'!C12) ->  | AE22: 3
B23: =IF('1. Select Participants'!C13="","",'1. Select Participants'!C13) ->  | G23: =IF('1. Select Participants'!C13="","",'1. Select Participants'!C13) ->  | L23: =IF('1. Select Participants'!C13="","",'1. Select Participants'!C13) ->  | AE23: 2
B24: =IF('1. Select Participants'!C14="","",'1. Select Participants'!C14) ->  | G24: =IF('1. Select Participants'!C14="","",'1. Select Participants'!C14) ->  | L24: =IF('1. Select Participants'!C14="","",'1. Select Participants'!C14) ->  | AE24: 1
A27: Step .4 | B27: Participant | C27: Attributes | E27: Weight | F27: Step .5 | G27: Participant | H27: Attributes | J27: Weight | K27: Step .6 | L27: Participant | M27: Attributes | O27: Weight
C28: Project Complexity & Innovation | D28: Level of Risk | H28: Project Complexity & Innovation | I28: Staff Experience / Availability | M28: Project Complexity & Innovation | N28: Level of Oversight and Control
B29: =IF('1. Select Participants'!C5="","",'1. Select Participants'!C5) -> Joe | D29: 3 | E29: =IF(B29="","",IF(C29="",1,C29)/IF(D29="",1,D29)) -> 0.3333333333 | G29: =IF('1. Select Participants'!C5="","",'1. Select Participants'!C5) -> Joe | I29: 7 | J29: =IF(G29="","",IF(H29="",1,H29)/IF(I29="",1,I29)) -> 0.1428571429 | L29: =IF('1. Select Participants'!C5="","",'1. Select Participants'!C5) -> Joe | N29: 8 | O29: =IF(L29="","",IF(M29="",1,M29)/IF(N29="",1,N29)) -> 0.125
B30: =IF('1. Select Participants'!C6="","",'1. Select Participants'!C6) -> Fred | D30: 4 | E30: =IF(B30="","",IF(C30="",1,C30)/IF(D30="",1,D30)) -> 0.25 | G30: =IF('1. Select Participants'!C6="","",'1. Select Participants'!C6) -> Fred | I30: 6 | J30: =IF(G30="","",IF(H30="",1,H30)/IF(I30="",1,I30)) -> 0.1666666667 | L30: =IF('1. Select Participants'!C6="","",'1. Select Participants'!C6) -> Fred | N30: 7 | O30: =IF(L30="","",IF(M30="",1,M30)/IF(N30="",1,N30)) -> 0.1428571429
B31: =IF('1. Select Participants'!C7="","",'1. Select Participants'!C7) -> John | D31: 6 | E31: 0.1666666667 | G31: =IF('1. Select Participants'!C7="","",'1. Select Participants'!C7) -> John | I31: 8 | J31: 0.125 | L31: =IF('1. Select Participants'!C7="","",'1. Select Participants'!C7) -> John | N31: 7 | O31: 0.1428571429
B32: =IF('1. Select Participants'!C8="","",'1. Select Participants'!C8) ->  | G32: =IF('1. Select Participants'!C8="","",'1. Select Participants'!C8) ->  | L32: =IF('1. Select Participants'!C8="","",'1. Select Participants'!C8) -> 
B33: =IF('1. Select Participants'!C9="","",'1. Select Participants'!C9) ->  | G33: =IF('1. Select Participants'!C9="","",'1. Select Participants'!C9) ->  | L33: =IF('1. Select Participants'!C9="","",'1. Select Participants'!C9) -> 
B34: =IF('1. Select Participants'!C10="","",'1. Select Participants'!C10) ->  | G34: =IF('1. Select Participants'!C10="","",'1. Select Participants'!C10) ->  | L34: =IF('1. Select Participants'!C10="","",'1. Select Participants'!C10) -> 
B35: =IF('1. Select Participants'!C11="","",'1. Select Participants'!C11) ->  | G35: =IF('1. Select Participants'!C11="","",'1. Select Participants'!C11) ->  | L35: =IF('1. Select Participants'!C11="","",'1. Select Participants'!C11) -> 
B36: =IF('1. Select Participants'!C12="","",'1. Select Participants'!C12) ->  | G36: =IF('1. Select Participants'!C12="","",'1. Select Participants'!C12) ->  | L36: =IF('1. Select Participants'!C12="","",'1. Select Participants'!C12) -> 
B37: =IF('1. Select Participants'!C13="","",'1. Select Participants'!C13) ->  | G37: =IF('1. Select Participants'!C13="","",'1. Select Participants'!C13) ->  | L37: =IF('1. Select Participants'!C13="","",'1. Select Participants'!C13) -> 
B38: =IF('1. Select Participants'!C14="","",'1. Select Participants'!C14) ->  | G38: =IF('1. Select Participants'!C14="","",'1. Select Participants'!C14) ->  | L38: =IF('1. Select Participants'!C14="","",'1. Select Participants'!C14) -> 
A41: Step .7 | B41: Participant | C41: Attributes | E41: Weight | F41: Step .8 | G41: Participant | H41: Attributes | J41: Weight | K41: Step .9 | L41: Participant | M41: Attributes | O41: Weight
C42: Project Complexity & Innovation | D42: Competition & Contractor Experience | H42: Project Delivery Schedule | I42: Project Cost Considerations | M42: Project Delivery Schedule | N42: Level of Design
B43: =IF('1. Select Participants'!C5="","",'1. Select Participants'!C5) -> Joe | D43: 4 | E43: =IF(B43="","",IF(C43="",1,C43)/IF(D43="",1,D43)) -> 0.25 | G43: =IF('1. Select Participants'!C5="","",'1. Select Participants'!C5) -> Joe | I43: 2 | J43: =IF(G43="","",IF(H43="",1,H43)/IF(I43="",1,I43)) -> 0.5 | L43: =IF('1. Select Participants'!C5="","",'1. Select Participants'!C5) -> Joe | M43: 4 | O43: =IF(L43="","",IF(M43="",1,M43)/IF(N43="",1,N43)) -> 4
B44: =IF('1. Select Participants'!C6="","",'1. Select Participants'!C6) -> Fred | D44: 3 | E44: =IF(B44="","",IF(C44="",1,C44)/IF(D44="",1,D44)) -> 0.3333333333 | G44: =IF('1. Select Participants'!C6="","",'1. Select Participants'!C6) -> Fred | I44: 3 | J44: =IF(G44="","",IF(H44="",1,H44)/IF(I44="",1,I44)) -> 0.3333333333 | L44: =IF('1. Select Participants'!C6="","",'1. Select Participants'!C6) -> Fred | M44: 5 | O44: =IF(L44="","",IF(M44="",1,M44)/IF(N44="",1,N44)) -> 5
B45: =IF('1. Select Participants'!C7="","",'1. Select Participants'!C7) -> John | D45: 6 | E45: 0.1666666667 | G45: =IF('1. Select Participants'!C7="","",'1. Select Participants'!C7) -> John | I45: 4 | J45: 0.25 | L45: =IF('1. Select Participants'!C7="","",'1. Select Participants'!C7) -> John | M45: 7 | O45: 7
B46: =IF('1. Select Participants'!C8="","",'1. Select Participants'!C8) ->  | G46: =IF('1. Select Participants'!C8="","",'1. Select Participants'!C8) ->  | L46: =IF('1. Select Participants'!C8="","",'1. Select Participants'!C8) -> 
B47: =IF('1. Select Participants'!C9="","",'1. Select Participants'!C9) ->  | G47: =IF('1. Select Participants'!C9="","",'1. Select Participants'!C9) ->  | L47: =IF('1. Select Participants'!C9="","",'1. Select Participants'!C9) -> 
B48: =IF('1. Select Participants'!C10="","",'1. Select Participants'!C10) ->  | G48: =IF('1. Select Participants'!C10="","",'1. Select Participants'!C10) ->  | L48: =IF('1. Select Participants'!C10="","",'1. Select Participants'!C10) -> 
B49: =IF('1. Select Participants'!C11="","",'1. Select Participants'!C11) ->  | G49: =IF('1. Select Participants'!C11="","",'1. Select Participants'!C11) ->  | L49: =IF('1. Select Participants'!C11="","",'1. Select Participants'!C11) -> 
B50: =IF('1. Select Participants'!C12="","",'1. Select Participants'!C12) ->  | G50: =IF('1. Select Participants'!C12="","",'1. Select Participants'!C12) ->  | L50: =IF('1. Select Participants'!C12="","",'1. Select Participants'!C12) -> 
B51: =IF('1. Select Participants'!C13="","",'1. Select Participants'!C13) ->  | G51: =IF('1. Select Participants'!C13="","",'1. Select Participants'!C13) ->  | L51: =IF('1. Select Participants'!C13="","",'1. Select Participants'!C13) -> 
B52: =IF('1. Select Participants'!C14="","",'1. Select Participants'!C14) ->  | G52: =IF('1. Select Participants'!C14="","",'1. Select Participants'!C14) ->  | L52: =IF('1. Select Participants'!C14="","",'1. Select Participants'!C14) -> 
A55: Step .10 | B55: Participant | C55: Attributes | E55: Weight | F55: Step .11 | G55: Participant | H55: Attributes | J55: Weight | K55: Step .12 | L55: Participant | M55: Attributes | O55: Weight
C56: Project Delivery Schedule | D56: Level of Risk | H56: Project Delivery Schedule | I56: Staff Experience / Availability | M56: Project Delivery Schedule | N56: Level of Oversight and Control
B57: =IF('1. Select Participants'!C5="","",'1. Select Participants'!C5) -> Joe | C57: 5 | E57: =IF(B57="","",IF(C57="",1,C57)/IF(D57="",1,D57)) -> 5 | G57: =IF('1. Select Participants'!C5="","",'1. Select Participants'!C5) -> Joe | H57: 2 | J57: =IF(G57="","",IF(H57="",1,H57)/IF(I57="",1,I57)) -> 2 | L57: =IF('1. Select Participants'!C5="","",'1. Select Participants'!C5) -> Joe | M57: 3 | O57: =IF(L57="","",IF(M57="",1,M57)/IF(N57="",1,N57)) -> 3
B58: =IF('1. Select Participants'!C6="","",'1. Select Participants'!C6) -> Fred | D58: 2 | E58: =IF(B58="","",IF(C58="",1,C58)/IF(D58="",1,D58)) -> 0.5 | G58: =IF('1. Select Participants'!C6="","",'1. Select Participants'!C6) -> Fred | H58: 4 | J58: =IF(G58="","",IF(H58="",1,H58)/IF(I58="",1,I58)) -> 4 | L58: =IF('1. Select Participants'!C6="","",'1. Select Participants'!C6) -> Fred | M58: 5 | O58: =IF(L58="","",IF(M58="",1,M58)/IF(N58="",1,N58)) -> 5
B59: =IF('1. Select Participants'!C7="","",'1. Select Participants'!C7) -> John | C59: 3 | E59: 3 | G59: =IF('1. Select Participants'!C7="","",'1. Select Participants'!C7) -> John | H59: 3 | J59: 3 | L59: =IF('1. Select Participants'!C7="","",'1. Select Participants'!C7) -> John | M59: 2 | O59: 2
B60: =IF('1. Select Participants'!C8="","",'1. Select Participants'!C8) ->  | G60: =IF('1. Select Participants'!C8="","",'1. Select Participants'!C8) ->  | L60: =IF('1. Select Participants'!C8="","",'1. Select Participants'!C8) -> 
B61: =IF('1. Select Participants'!C9="","",'1. Select Participants'!C9) ->  | G61: =IF('1. Select Participants'!C9="","",'1. Select Participants'!C9) ->  | L61: =IF('1. Select Participants'!C9="","",'1. Select Participants'!C9) -> 
B62: =IF('1. Select Participants'!C10="","",'1. Select Participants'!C10) ->  | G62: =IF('1. Select Participants'!C10="","",'1. Select Participants'!C10) ->  | L62: =IF('1. Select Participants'!C10="","",'1. Select Participants'!C10) -> 
B63: =IF('1. Select Participants'!C11="","",'1. Select Participants'!C11) ->  | G63: =IF('1. Select Participants'!C11="","",'1. Select Participants'!C11) ->  | L63: =IF('1. Select Participants'!C11="","",'1. Select Participants'!C11) -> 
B64: =IF('1. Select Participants'!C12="","",'1. Select Participants'!C12) ->  | G64: =IF('1. Select Participants'!C12="","",'1. Select Participants'!C12) ->  | L64: =IF('1. Select Participants'!C12="","",'1. Select Participants'!C12) -> 
B65: =IF('1. Select Participants'!C13="","",'1. Select Participants'!C13) ->  | G65: =IF('1. Select Participants'!C13="","",'1. Select Participants'!C13) ->  | L65: =IF('1. Select Participants'!C13="","",'1. Select Participants'!C13) -> 
B66: =IF('1. Select Participants'!C14="","",'1. Select Participants'!C14) ->  | G66: =IF('1. Select Participants'!C14="","",'1. Select Participants'!C14) ->  | L66: =IF('1. Select Participants'!C14="","",'1. Select Participants'!C14) -> 
A69: Step .13 | B69: Participant | C69: Attributes | E69: Weight | F69: Step .14 | G69: Participant | H69: Attributes | J69: Weight | K69: Step .15 | L69: Participant | M69: Attributes | O69: Weight
C70: Project Delivery Schedule | D70: Competition & Contractor Experience | H70: Project Cost Considerations | I70: Level of Design | M70: Project Cost Considerations | N70: Level of Risk
B71: =IF('1. Select Participants'!C5="","",'1. Select Participants'!C5) -> Joe | D71: 3 | E71: =IF(B71="","",IF(C71="",1,C71)/IF(D71="",1,D71)) -> 0.3333333333 | G71: =IF('1. Select Participants'!C5="","",'1. Select Participants'!C5) -> Joe | H71: 4 | J71: =IF(G71="","",IF(H71="",1,H71)/IF(I71="",1,I71)) -> 4 | L71: =IF('1. Select Participants'!C5="","",'1. Select Participants'!C5) -> Joe | M71: 5 | O71: =IF(L71="","",IF(M71="",1,M71)/IF(N71="",1,N71)) -> 5
B72: =IF('1. Select Participants'!C6="","",'1. Select Participants'!C6) -> Fred | D72: 4 | E72: =IF(B72="","",IF(C72="",1,C72)/IF(D72="",1,D72)) -> 0.25 | G72: =IF('1. Select Participants'!C6="","",'1. Select Participants'!C6) -> Fred | H72: 6 | J72: =IF(G72="","",IF(H72="",1,H72)/IF(I72="",1,I72)) -> 6 | L72: =IF('1. Select Participants'!C6="","",'1. Select Participants'!C6) -> Fred | M72: 7 | O72: =IF(L72="","",IF(M72="",1,M72)/IF(N72="",1,N72)) -> 7
B73: =IF('1. Select Participants'!C7="","",'1. Select Participants'!C7) -> John | C73: 2 | E73: 2 | G73: =IF('1. Select Participants'!C7="","",'1. Select Participants'!C7) -> John | H73: 5 | J73: 5 | L73: =IF('1. Select Participants'!C7="","",'1. Select Participants'!C7) -> John | M73: 4 | O73: 4
B74: =IF('1. Select Participants'!C8="","",'1. Select Participants'!C8) ->  | G74: =IF('1. Select Participants'!C8="","",'1. Select Participants'!C8) ->  | L74: =IF('1. Select Participants'!C8="","",'1. Select Participants'!C8) -> 
B75: =IF('1. Select Participants'!C9="","",'1. Select Participants'!C9) ->  | G75: =IF('1. Select Participants'!C9="","",'1. Select Participants'!C9) ->  | L75: =IF('1. Select Participants'!C9="","",'1. Select Participants'!C9) -> 
B76: =IF('1. Select Participants'!C10="","",'1. Select Participants'!C10) ->  | G76: =IF('1. Select Participants'!C10="","",'1. Select Participants'!C10) ->  | L76: =IF('1. Select Participants'!C10="","",'1. Select Participants'!C10) -> 
B77: =IF('1. Select Participants'!C11="","",'1. Select Participants'!C11) ->  | G77: =IF('1. Select Participants'!C11="","",'1. Select Participants'!C11) ->  | L77: =IF('1. Select Participants'!C11="","",'1. Select Participants'!C11) -> 
B78: =IF('1. Select Participants'!C12="","",'1. Select Participants'!C12) ->  | G78: =IF('1. Select Participants'!C12="","",'1. Select Participants'!C12) ->  | L78: =IF('1. Select Participants'!C12="","",'1. Select Participants'!C12) -> 
B79: =IF('1. Select Participants'!C13="","",'1. Select Participants'!C13) ->  | G79: =IF('1. Select Participants'!C13="","",'1. Select Participants'!C13) ->  | L79: =IF('1. Select Participants'!C13="","",'1. Select Participants'!C13) -> 
B80: =IF('1. Select Participants'!C14="","",'1. Select Participants'!C14) ->  | G80: =IF('1. Select Participants'!C14="","",'1. Select Participants'!C14) ->  | L80: =IF('1. Select Participants'!C14="","",'1. Select Participants'!C14) -> 
A83: Step .16 | B83: Participant | C83: Attributes | E83: Weight | F83: Step .17 | G83: Participant | H83: Attributes | J83: Weight | K83: Step .18 | L83: Participant | M83: Attributes | O83: Weight
C84: Project Cost Considerations | D84: Staff Experience / Availability | H84: Project Cost Considerations | I84: Level of Oversight and Control | M84: Project Cost Considerations | N84: Competition & Contractor Experience
B85: =IF('1. Select Participants'!C5="","",'1. Select Participants'!C5) -> Joe | C85: 3 | E85: =IF(B85="","",IF(C85="",1,C85)/IF(D85="",1,D85)) -> 3 | G85: =IF('1. Select Participants'!C5="","",'1. Select Participants'!C5) -> Joe | H85: 4 | J85: =IF(G85="","",IF(H85="",1,H85)/IF(I85="",1,I85)) -> 4 | L85: =IF('1. Select Participants'!C5="","",'1. Select Participants'!C5) -> Joe | M85: 5 | O85: =IF(L85="","",IF(M85="",1,M85)/IF(N85="",1,N85)) -> 5
B86: =IF('1. Select Participants'!C6="","",'1. Select Participants'!C6) -> Fred | C86: 5 | E86: =IF(B86="","",IF(C86="",1,C86)/IF(D86="",1,D86)) -> 5 | G86: =IF('1. Select Participants'!C6="","",'1. Select Participants'!C6) -> Fred | H86: 3 | J86: =IF(G86="","",IF(H86="",1,H86)/IF(I86="",1,I86)) -> 3 | L86: =IF('1. Select Participants'!C6="","",'1. Select Participants'!C6) -> Fred | M86: 7 | O86: =IF(L86="","",IF(M86="",1,M86)/IF(N86="",1,N86)) -> 7
B87: =IF('1. Select Participants'!C7="","",'1. Select Participants'!C7) -> John | C87: 8 | E87: 8 | G87: =IF('1. Select Participants'!C7="","",'1. Select Participants'!C7) -> John | H87: 5 | J87: 5 | L87: =IF('1. Select Participants'!C7="","",'1. Select Participants'!C7) -> John | M87: 7 | O87: 7
B88: =IF('1. Select Participants'!C8="","",'1. Select Participants'!C8) ->  | G88: =IF('1. Select Participants'!C8="","",'1. Select Participants'!C8) ->  | L88: =IF('1. Select Participants'!C8="","",'1. Select Participants'!C8) -> 
B89: =IF('1. Select Participants'!C9="","",'1. Select Participants'!C9) ->  | G89: =IF('1. Select Participants'!C9="","",'1. Select Participants'!C9) ->  | L89: =IF('1. Select Participants'!C9="","",'1. Select Participants'!C9) -> 
B90: =IF('1. Select Participants'!C10="","",'1. Select Participants'!C10) ->  | G90: =IF('1. Select Participants'!C10="","",'1. Select Participants'!C10) ->  | L90: =IF('1. Select Participants'!C10="","",'1. Select Participants'!C10) -> 
B91: =IF('1. Select Participants'!C11="","",'1. Select Participants'!C11) ->  | G91: =IF('1. Select Participants'!C11="","",'1. Select Participants'!C11) ->  | L91: =IF('1. Select Participants'!C11="","",'1. Select Participants'!C11) -> 
B92: =IF('1. Select Participants'!C12="","",'1. Select Participants'!C12) ->  | G92: =IF('1. Select Participants'!C12="","",'1. Select Participants'!C12) ->  | L92: =IF('1. Select Participants'!C12="","",'1. Select Participants'!C12) -> 
B93: =IF('1. Select Participants'!C13="","",'1. Select Participants'!C13) ->  | G93: =IF('1. Select Participants'!C13="","",'1. Select Participants'!C13) ->  | L93: =IF('1. Select Participants'!C13="","",'1. Select Participants'!C13) -> 
B94: =IF('1. Select Participants'!C14="","",'1. Select Participants'!C14) ->  | G94: =IF('1. Select Participants'!C14="","",'1. Select Participants'!C14) ->  | L94: =IF('1. Select Participants'!C14="","",'1. Select Participants'!C14) -> 
A97: Step .19 | B97: Participant | C97: Attributes | E97: Weight | F97: Step .20 | G97: Participant | H97: Attributes | J97: Weight | K97: Step .21 | L97: Participant | M97: Attributes | O97: Weight
C98: Level of Design | D98: Level of Risk | H98: Level of Design | I98: Staff Experience / Availability | M98: Level of Design | N98: Level of Oversight and Control
B99: =IF('1. Select Participants'!C5="","",'1. Select Participants'!C5) -> Joe | C99: 2 | E99: =IF(B99="","",IF(C99="",1,C99)/IF(D99="",1,D99)) -> 2 | G99: =IF('1. Select Participants'!C5="","",'1. Select Participants'!C5) -> Joe | H99: 2 | J99: =IF(G99="","",IF(H99="",1,H99)/IF(I99="",1,I99)) -> 2 | L99: =IF('1. Select Participants'!C5="","",'1. Select Participants'!C5) -> Joe | M99: 2 | O99: =IF(L99="","",IF(M99="",1,M99)/IF(N99="",1,N99)) -> 2
B100: =IF('1. Select Participants'!C6="","",'1. Select Participants'!C6) -> Fred | E100: =IF(B100="","",IF(C100="",1,C100)/IF(D100="",1,D100)) -> 1 | G100: =IF('1. Select Participants'!C6="","",'1. Select Participants'!C6) -> Fred | I100: 3 | J100: =IF(G100="","",IF(H100="",1,H100)/IF(I100="",1,I100)) -> 0.3333333333 | L100: =IF('1. Select Participants'!C6="","",'1. Select Participants'!C6) -> Fred | N100: 3 | O100: =IF(L100="","",IF(M100="",1,M100)/IF(N100="",1,N100)) -> 0.3333333333
B101: =IF('1. Select Participants'!C7="","",'1. Select Participants'!C7) -> John | D101: 2 | E101: 0.5 | G101: =IF('1. Select Participants'!C7="","",'1. Select Participants'!C7) -> John | I101: 4 | J101: 0.25 | L101: =IF('1. Select Participants'!C7="","",'1. Select Participants'!C7) -> John | M101: 2 | O101: 2
B102: =IF('1. Select Participants'!C8="","",'1. Select Participants'!C8) ->  | G102: =IF('1. Select Participants'!C8="","",'1. Select Participants'!C8) ->  | L102: =IF('1. Select Participants'!C8="","",'1. Select Participants'!C8) -> 
B103: =IF('1. Select Participants'!C9="","",'1. Select Participants'!C9) ->  | G103: =IF('1. Select Participants'!C9="","",'1. Select Participants'!C9) ->  | L103: =IF('1. Select Participants'!C9="","",'1. Select Participants'!C9) -> 
B104: =IF('1. Select Participants'!C10="","",'1. Select Participants'!C10) ->  | G104: =IF('1. Select Participants'!C10="","",'1. Select Participants'!C10) ->  | L104: =IF('1. Select Participants'!C10="","",'1. Select Participants'!C10) -> 
B105: =IF('1. Select Participants'!C11="","",'1. Select Participants'!C11) ->  | G105: =IF('1. Select Participants'!C11="","",'1. Select Participants'!C11) ->  | L105: =IF('1. Select Participants'!C11="","",'1. Select Participants'!C11) -> 
B106: =IF('1. Select Participants'!C12="","",'1. Select Participants'!C12) ->  | G106: =IF('1. Select Participants'!C12="","",'1. Select Participants'!C12) ->  | L106: =IF('1. Select Participants'!C12="","",'1. Select Participants'!C12) -> 
B107: =IF('1. Select Participants'!C13="","",'1. Select Participants'!C13) ->  | G107: =IF('1. Select Participants'!C13="","",'1. Select Participants'!C13) ->  | L107: =IF('1. Select Participants'!C13="","",'1. Select Participants'!C13) -> 
B108: =IF('1. Select Participants'!C14="","",'1. Select Participants'!C14) ->  | G108: =IF('1. Select Participants'!C14="","",'1. Select Participants'!C14) ->  | L108: =IF('1. Select Participants'!C14="","",'1. Select Participants'!C14) -> 
A111: Step .22 | B111: Participant | C111: Attributes | E111: Weight | F111: Step .23 | G111: Participant | H111: Attributes | J111: Weight | K111: Step .24 | L111: Participant | M111: Attributes | O111: Weight
C112: Level of Design | D112: Competition & Contractor Experience | H112: Level of Risk | I112: Staff Experience / Availability | M112: Level of Risk | N112: Level of Oversight and Control
B113: =IF('1. Select Participants'!C5="","",'1. Select Participants'!C5) -> Joe | D113: 2 | E113: =IF(B113="","",IF(C113="",1,C113)/IF(D113="",1,D113)) -> 0.5 | G113: =IF('1. Select Participants'!C5="","",'1. Select Participants'!C5) -> Joe | I113: 5 | J113: =IF(G113="","",IF(H113="",1,H113)/IF(I113="",1,I113)) -> 0.2 | L113: =IF('1. Select Participants'!C5="","",'1. Select Participants'!C5) -> Joe | M113: 2 | O113: =IF(L113="","",IF(M113="",1,M113)/IF(N113="",1,N113)) -> 2
B114: =IF('1. Select Participants'!C6="","",'1. Select Participants'!C6) -> Fred | D114: 5 | E114: =IF(B114="","",IF(C114="",1,C114)/IF(D114="",1,D114)) -> 0.2 | G114: =IF('1. Select Participants'!C6="","",'1. Select Participants'!C6) -> Fred | I114: 4 | J114: =IF(G114="","",IF(H114="",1,H114)/IF(I114="",1,I114)) -> 0.25 | L114: =IF('1. Select Participants'!C6="","",'1. Select Participants'!C6) -> Fred | O114: =IF(L114="","",IF(M114="",1,M114)/IF(N114="",1,N114)) -> 1
B115: =IF('1. Select Participants'!C7="","",'1. Select Participants'!C7) -> John | D115: 3 | E115: 0.3333333333 | G115: =IF('1. Select Participants'!C7="","",'1. Select Participants'!C7) -> John | I115: 3 | J115: 0.3333333333 | L115: =IF('1. Select Participants'!C7="","",'1. Select Participants'!C7) -> John | N115: 3 | O115: 0.3333333333
B116: =IF('1. Select Participants'!C8="","",'1. Select Participants'!C8) ->  | G116: =IF('1. Select Participants'!C8="","",'1. Select Participants'!C8) ->  | L116: =IF('1. Select Participants'!C8="","",'1. Select Participants'!C8) -> 
B117: =IF('1. Select Participants'!C9="","",'1. Select Participants'!C9) ->  | G117: =IF('1. Select Participants'!C9="","",'1. Select Participants'!C9) ->  | L117: =IF('1. Select Participants'!C9="","",'1. Select Participants'!C9) -> 
B118: =IF('1. Select Participants'!C10="","",'1. Select Participants'!C10) ->  | G118: =IF('1. Select Participants'!C10="","",'1. Select Participants'!C10) ->  | L118: =IF('1. Select Participants'!C10="","",'1. Select Participants'!C10) -> 
B119: =IF('1. Select Participants'!C11="","",'1. Select Participants'!C11) ->  | G119: =IF('1. Select Participants'!C11="","",'1. Select Participants'!C11) ->  | L119: =IF('1. Select Participants'!C11="","",'1. Select Participants'!C11) -> 
B120: =IF('1. Select Participants'!C12="","",'1. Select Participants'!C12) ->  | G120: =IF('1. Select Participants'!C12="","",'1. Select Participants'!C12) ->  | L120: =IF('1. Select Participants'!C12="","",'1. Select Participants'!C12) -> 
B121: =IF('1. Select Participants'!C13="","",'1. Select Participants'!C13) ->  | G121: =IF('1. Select Participants'!C13="","",'1. Select Participants'!C13) ->  | L121: =IF('1. Select Participants'!C13="","",'1. Select Participants'!C13) -> 
B122: =IF('1. Select Participants'!C14="","",'1. Select Participants'!C14) ->  | G122: =IF('1. Select Participants'!C14="","",'1. Select Participants'!C14) ->  | L122: =IF('1. Select Participants'!C14="","",'1. Select Participants'!C14) -> 
A125: Step .25 | B125: Participant | C125: Attributes | E125: Weight | F125: Step .26 | G125: Participant | H125: Attributes | J125: Weight | K125: Step .27 | L125: Participant | M125: Attributes | O125: Weight
C126: Level of Risk | D126: Competition & Contractor Experience | H126: Staff Experience / Availability | I126: Level of Oversight and Control | M126: Staff Experience / Availability | N126: Competition & Contractor Experience
B127: =IF('1. Select Participants'!C5="","",'1. Select Participants'!C5) -> Joe | D127: 5 | E127: =IF(B127="","",IF(C127="",1,C127)/IF(D127="",1,D127)) -> 0.2 | G127: =IF('1. Select Participants'!C5="","",'1. Select Participants'!C5) -> Joe | H127: 4 | J127: =IF(G127="","",IF(H127="",1,H127)/IF(I127="",1,I127)) -> 4 | L127: =IF('1. Select Participants'!C5="","",'1. Select Participants'!C5) -> Joe | M127: 3 | O127: =IF(L127="","",IF(M127="",1,M127)/IF(N127="",1,N127)) -> 3
B128: =IF('1. Select Participants'!C6="","",'1. Select Participants'!C6) -> Fred | D128: 6 | E128: =IF(B128="","",IF(C128="",1,C128)/IF(D128="",1,D128)) -> 0.1666666667 | G128: =IF('1. Select Participants'!C6="","",'1. Select Participants'!C6) -> Fred | I128: 3 | J128: =IF(G128="","",IF(H128="",1,H128)/IF(I128="",1,I128)) -> 0.3333333333 | L128: =IF('1. Select Participants'!C6="","",'1. Select Participants'!C6) -> Fred | N128: 5 | O128: =IF(L128="","",IF(M128="",1,M128)/IF(N128="",1,N128)) -> 0.2
B129: =IF('1. Select Participants'!C7="","",'1. Select Participants'!C7) -> John | D129: 4 | E129: 0.25 | G129: =IF('1. Select Participants'!C7="","",'1. Select Participants'!C7) -> John | H129: 6 | J129: 6 | L129: =IF('1. Select Participants'!C7="","",'1. Select Participants'!C7) -> John | N129: 4 | O129: 0.25
B130: =IF('1. Select Participants'!C8="","",'1. Select Participants'!C8) ->  | G130: =IF('1. Select Participants'!C8="","",'1. Select Participants'!C8) ->  | L130: =IF('1. Select Participants'!C8="","",'1. Select Participants'!C8) -> 
B131: =IF('1. Select Participants'!C9="","",'1. Select Participants'!C9) ->  | G131: =IF('1. Select Participants'!C9="","",'1. Select Participants'!C9) ->  | L131: =IF('1. Select Participants'!C9="","",'1. Select Participants'!C9) -> 
B132: =IF('1. Select Participants'!C10="","",'1. Select Participants'!C10) ->  | G132: =IF('1. Select Participants'!C10="","",'1. Select Participants'!C10) ->  | L132: =IF('1. Select Participants'!C10="","",'1. Select Participants'!C10) -> 
B133: =IF('1. Select Participants'!C11="","",'1. Select Participants'!C11) ->  | G133: =IF('1. Select Participants'!C11="","",'1. Select Participants'!C11) ->  | L133: =IF('1. Select Participants'!C11="","",'1. Select Participants'!C11) -> 
B134: =IF('1. Select Participants'!C12="","",'1. Select Participants'!C12) ->  | G134: =IF('1. Select Participants'!C12="","",'1. Select Participants'!C12) ->  | L134: =IF('1. Select Participants'!C12="","",'1. Select Participants'!C12) -> 
B135: =IF('1. Select Participants'!C13="","",'1. Select Participants'!C13) ->  | G135: =IF('1. Select Participants'!C13="","",'1. Select Participants'!C13) ->  | L135: =IF('1. Select Participants'!C13="","",'1. Select Participants'!C13) -> 
B136: =IF('1. Select Participants'!C14="","",'1. Select Participants'!C14) ->  | G136: =IF('1. Select Participants'!C14="","",'1. Select Participants'!C14) ->  | L136: =IF('1. Select Participants'!C14="","",'1. Select Participants'!C14) -> 
A139: Step .28 | B139: Participant | C139: Attributes | E139: Weight
C140: Level of Oversight and Control | D140: Competition & Contractor Experience
B141: =IF('1. Select Participants'!C5="","",'1. Select Participants'!C5) -> Joe | D141: 5 | E141: =IF(B141="","",IF(C141="",1,C141)/IF(D141="",1,D141)) -> 0.2
B142: =IF('1. Select Participants'!C6="","",'1. Select Participants'!C6) -> Fred | D142: 4 | E142: =IF(B142="","",IF(C142="",1,C142)/IF(D142="",1,D142)) -> 0.25
B143: =IF('1. Select Participants'!C7="","",'1. Select Participants'!C7) -> John | D143: 5 | E143: 0.2
B144: =IF('1. Select Participants'!C8="","",'1. Select Participants'!C8) -> 
B145: =IF('1. Select Participants'!C9="","",'1. Select Participants'!C9) -> 
B146: =IF('1. Select Participants'!C10="","",'1. Select Participants'!C10) -> 
B147: =IF('1. Select Participants'!C11="","",'1. Select Participants'!C11) -> 
B148: =IF('1. Select Participants'!C12="","",'1. Select Participants'!C12) -> 
B149: =IF('1. Select Participants'!C13="","",'1. Select Participants'!C13) -> 
B150: =IF('1. Select Participants'!C14="","",'1. Select Participants'!C14) -> 

Sheet 4. Decision Matrix (hidden)
C1: ='Project Scope'!C6 -> Davis Road Bridge Replacement
C2: PERFORMANCE PRIORITIZATION MATRICES
C4: =IF('1. Select Participants'!C5="","",'1. Select Participants'!C5) -> Joe | D4: Score (1- 9) | E4: =IF(C5="","",C5) -> Project Complexity & Innovation | F4: =IF(C6="","",C6) -> Project Delivery Schedule | G4: =IF(C7="","",C7) -> Project Cost Considerations | H4: =IF(C8="","",C8) -> Level of Design | I4: =IF(C9="","",C9) -> Level of Risk | J4: =IF(C10="","",C10) -> Staff Experience / Availability | K4: =IF(C11="","",C11) -> Level of Oversight and Control | L4: =IF(C12="","",C12) -> Competition & Contractor Experience | O4: =IF(C5="","",C5) -> Project Complexity & Innovation | P4: =IF(C6="","",C6) -> Project Delivery Schedule | Q4: =IF(C7="","",C7) -> Project Cost Considerations | R4: =IF(C8="","",C8) -> Level of Design | S4: =IF(C9="","",C9) -> Level of Risk | T4: =IF(C10="","",C10) -> Staff Experience / Availability | U4: =IF(C11="","",C11) -> Level of Oversight and Control | V4: =IF(C12="","",C12) -> Competition & Contractor Experience | X4: Score/Participant
C5: Project Complexity & Innovation | D5: =IFERROR(AVERAGE(E5:L5),"") -> 0.2841765873 | E5: =IF(AND($C$4<>"",$C5<>""),1,"") -> 1 | F5: ='3. Prioritize Attributes'!$E$15 -> 0.1111111111 | G5: ='3. Prioritize Attributes'!$J$15 -> 0.1111111111 | H5: ='3. Prioritize Attributes'!$O$15 -> 0.2 | I5: ='3. Prioritize Attributes'!$E$29 -> 0.3333333333 | J5: ='3. Prioritize Attributes'!$J$29 -> 0.1428571429 | K5: ='3. Prioritize Attributes'!$O$29 -> 0.125 | L5: ='3. Prioritize Attributes'!$E$43 -> 0.25 | N5: Normalized Matrix | O5: =IFERROR(E5/E13,"") -> 0.02173913043 | P5: =IFERROR(F5/F13,"") -> 0.01502629602 | Q5: 0.0390625 | R5: 0.0157480315 | S5: 0.01398601399 | T5: 0.0160042678 | U5: 0.005917159763 | V5: 0.02384737679 | X5: =IFERROR(AVERAGE(O5:V5),"") -> 0.01891634704
C6: Project Delivery Schedule | D6: =IFERROR(AVERAGE(E6:L6),"") -> 3.104166667 | E6: =IF(F5="","",1/F5) -> 9 | F6: =IF(AND($C$4<>"",$C6<>""),1,"") -> 1 | G6: ='3. Prioritize Attributes'!$J$43 -> 0.5 | H6: ='3. Prioritize Attributes'!$O$43 -> 4 | I6: ='3. Prioritize Attributes'!$E$57 -> 5 | J6: ='3. Prioritize Attributes'!$J$57 -> 2 | K6: ='3. Prioritize Attributes'!$O$57 -> 3 | L6: ='3. Prioritize Attributes'!$E$71 -> 0.3333333333 | O6: =IFERROR(E6/E13,"") -> 0.1956521739 | P6: =IFERROR(F6/F13,"") -> 0.1352366642 | Q6: 0.17578125 | R6: 0.3149606299 | S6: 0.2097902098 | T6: 0.2240597493 | U6: 0.1420118343 | V6: 0.03179650238 | X6: =IFERROR(AVERAGE(O6:V6),"") -> 0.1786611267
C7: Project Cost Considerations | D7: 4.125 | E7: =IF(G5="","",1/G5) -> 9 | F7: =IF(G6="","",1/G6) -> 2 | G7: =IF(AND($C$4<>"",$C7<>""),1,"") -> 1 | H7: ='3. Prioritize Attributes'!$J$71 -> 4 | I7: ='3. Prioritize Attributes'!$O$71 -> 5 | J7: ='3. Prioritize Attributes'!$E$85 -> 3 | K7: ='3. Prioritize Attributes'!$J$85 -> 4 | L7: ='3. Prioritize Attributes'!$O$85 -> 5 | O7: =IFERROR(E7/E13,"") -> 0.1956521739 | P7: =IFERROR(F7/F13,"") -> 0.2704733283 | Q7: 0.3515625 | R7: 0.3149606299 | S7: 0.2097902098 | T7: 0.3360896239 | U7: 0.1893491124 | V7: 0.4769475358 | X7: 0.2931031393
C8: Level of Design | D8: 1.625 | E8: =IF(H5="","",1/H5) -> 5 | F8: =IF(H6="","",1/H6) -> 0.25 | G8: =IF(H7="","",1/H7) -> 0.25 | H8: =IF(AND($C$4<>"",$C8<>""),1,"") -> 1 | I8: ='3. Prioritize Attributes'!$E$99 -> 2 | J8: ='3. Prioritize Attributes'!$J$99 -> 2 | K8: ='3. Prioritize Attributes'!$O$99 -> 2 | L8: ='3. Prioritize Attributes'!$E$113 -> 0.5 | O8: =IFERROR(E8/E13,"") -> 0.1086956522 | P8: =IFERROR(F8/F13,"") -> 0.03380916604 | Q8: 0.087890625 | R8: 0.07874015748 | S8: 0.08391608392 | T8: 0.2240597493 | U8: 0.09467455621 | V8: 0.04769475358 | X8: 0.09493509296
C9: Level of Risk | D9: 0.9125 | E9: =IF(I5="","",1/I5) -> 3 | F9: =IF(I6="","",1/I6) -> 0.2 | G9: =IF(I7="","",1/I7) -> 0.2 | H9: =IF(I8="","",1/I8) -> 0.5 | I9: =IF(AND($C$4<>"",$C9<>""),1,"") -> 1 | J9: ='3. Prioritize Attributes'!$J$113 -> 0.2 | K9: ='3. Prioritize Attributes'!$O$113 -> 2 | L9: ='3. Prioritize Attributes'!$E$127 -> 0.2 | O9: =IFERROR(E9/E13,"") -> 0.0652173913 | P9: =IFERROR(F9/F13,"") -> 0.02704733283 | Q9: 0.0703125 | R9: 0.03937007874 | S9: 0.04195804196 | T9: 0.02240597493 | U9: 0.09467455621 | V9: 0.01907790143 | X9: 0.04750797218
C10: Staff Experience / Availability | D10: 2.666666667 | E10: =IF(J5="","",1/J5) -> 7 | F10: =IF(J6="","",1/J6) -> 0.5 | G10: =IF(J7="","",1/J7) -> 0.3333333333 | H10: =IF(J8="","",1/J8) -> 0.5 | I10: =IF(J9="","",1/J9) -> 5 | J10: =IF(AND($C$4<>"",$C10<>""),1,"") -> 1 | K10: ='3. Prioritize Attributes'!$J$127 -> 4 | L10: ='3. Prioritize Attributes'!$O$127 -> 3 | O10: =IFERROR(E10/E13,"") -> 0.152173913 | P10: =IFERROR(F10/F13,"") -> 0.06761833208 | Q10: 0.1171875 | R10: 0.03937007874 | S10: 0.2097902098 | T10: 0.1120298746 | U10: 0.1893491124 | V10: 0.2861685215 | X10: 0.1467109428
C11: Level of Oversight and Control | D11: 1.379166667 | E11: =IF(K5="","",1/K5) -> 8 | F11: =IF(K6="","",1/K6) -> 0.3333333333 | G11: =IF(K7="","",1/K7) -> 0.25 | H11: =IF(K8="","",1/K8) -> 0.5 | I11: =IF(K9="","",1/K9) -> 0.5 | J11: =IF(K10="","",1/K10) -> 0.25 | K11: =IF(AND($C$4<>"",$C11<>""),1,"") -> 1 | L11: ='3. Prioritize Attributes'!$E$141 -> 0.2 | O11: =IFERROR(E11/E13,"") -> 0.1739130435 | P11: 0.04507888805 | Q11: 0.087890625 | R11: 0.03937007874 | S11: 0.02097902098 | T11: 0.02800746866 | U11: 0.04733727811 | V11: 0.01907790143 | X11: 0.05770678806
C12: Competition & Contractor Experience | D12: 2.566666667 | E12: =IF(L5="","",1/L5) -> 4 | F12: =IF(L6="","",1/L6) -> 3 | G12: =IF(L7="","",1/L7) -> 0.2 | H12: =IF(L8="","",1/L8) -> 2 | I12: =IF(L9="","",1/L9) -> 5 | J12: =IF(L10="","",1/L10) -> 0.3333333333 | K12: =IF(L11="","",1/L11) -> 5 | L12: =IF(AND($C$4<>"",$C12<>""),1,"") -> 1 | O12: =IFERROR(E12/E13,"") -> 0.08695652174 | P12: =IFERROR(F12/F13,"") -> 0.4057099925 | Q12: 0.0703125 | R12: 0.157480315 | S12: 0.2097902098 | T12: 0.03734329154 | U12: 0.2366863905 | V12: 0.09538950715 | X12: 0.162458591
E13: =IFERROR(SUM(E5:E12),"") -> 46 | F13: =IFERROR(SUM(F5:F12),"") -> 7.394444444 | G13: 2.844444444 | H13: 12.7 | I13: 23.83333333 | J13: 8.926190476 | K13: 21.125 | L13: 10.48333333
C15: =IF('1. Select Participants'!C6="","",'1. Select Participants'!C6) -> Fred | D15: Score (1- 9) | E15: =E4 -> Project Complexity & Innovation | F15: =F4 -> Project Delivery Schedule | G15: Project Cost Considerations | H15: Level of Design | I15: Level of Risk | J15: Staff Experience / Availability | K15: Level of Oversight and Control | L15: Competition & Contractor Experience | O15: =O4 -> Project Complexity & Innovation | P15: =P4 -> Project Delivery Schedule | Q15: Project Cost Considerations | R15: Level of Design | S15: Level of Risk | T15: Staff Experience / Availability | U15: Level of Oversight and Control | V15: Competition & Contractor Experience | X15: Score/Participent
C16: =IF(C5="","",C5) -> Project Complexity & Innovation | D16: =IFERROR(AVERAGE(E16:L16),"") -> 0.2950892857 | E16: =IF(AND($C$15<>"",$C16<>""),1,"") -> 1 | F16: ='3. Prioritize Attributes'!$E$16 -> 0.125 | G16: ='3. Prioritize Attributes'!$J$16 -> 0.1428571429 | H16: ='3. Prioritize Attributes'!$O$16 -> 0.2 | I16: ='3. Prioritize Attributes'!$E$30 -> 0.25 | J16: ='3. Prioritize Attributes'!$J$30 -> 0.1666666667 | K16: ='3. Prioritize Attributes'!$O$30 -> 0.1428571429 | L16: ='3. Prioritize Attributes'!$E$44 -> 0.3333333333 | N16: Normalized Matrix | O16: =IFERROR(E16/E24,"") -> 0.0243902439 | P16: =IFERROR(F16/F24,"") -> 0.01160092807 | Q16: 0.0580270793 | R16: 0.00826446281 | S16: 0.01204819277 | T16: 0.008888888889 | U16: 0.009646302251 | V16: 0.03546099291 | X16: =IFERROR(AVERAGE(O16:V16),"") -> 0.02104088636
C17: =IF(C6="","",C6) -> Project Delivery Schedule | D17: =IFERROR(AVERAGE(E17:L17),"") -> 3.010416667 | E17: =IF(F16="","",1/F16) -> 8 | F17: =IF(AND($C$15<>"",$C17<>""),1,"") -> 1 | G17: ='3. Prioritize Attributes'!$J$44 -> 0.3333333333 | H17: ='3. Prioritize Attributes'!$O$44 -> 5 | I17: ='3. Prioritize Attributes'!$E$58 -> 0.5 | J17: ='3. Prioritize Attributes'!$J$58 -> 4 | K17: ='3. Prioritize Attributes'!$O$58 -> 5 | L17: ='3. Prioritize Attributes'!$E$72 -> 0.25 | O17: =IFERROR(E17/E24,"") -> 0.1951219512 | P17: =IFERROR(F17/F24,"") -> 0.09280742459 | Q17: 0.1353965184 | R17: 0.2066115702 | S17: 0.02409638554 | T17: 0.2133333333 | U17: 0.3376205788 | V17: 0.02659574468 | X17: =IFERROR(AVERAGE(O17:V17),"") -> 0.1539479383
C18: Project Cost Considerations | D18: 4.875 | E18: =IF(G16="","",1/G16) -> 7 | F18: =IF(G17="","",1/G17) -> 3 | G18: =IF(AND($C$15<>"",$C18<>""),1,"") -> 1 | H18: ='3. Prioritize Attributes'!$J$72 -> 6 | I18: ='3. Prioritize Attributes'!$O$72 -> 7 | J18: ='3. Prioritize Attributes'!$E$86 -> 5 | K18: ='3. Prioritize Attributes'!$J$86 -> 3 | L18: ='3. Prioritize Attributes'!$O$86 -> 7 | O18: =IFERROR(E18/E24,"") -> 0.1707317073 | P18: =IFERROR(F18/F24,"") -> 0.2784222738 | Q18: 0.4061895551 | R18: 0.2479338843 | S18: 0.3373493976 | T18: 0.2666666667 | U18: 0.2025723473 | V18: 0.7446808511 | X18: 0.3318183354
C19: Level of Design | D19: 1.029166667 | E19: =IF(H16="","",1/H16) -> 5 | F19: =IF(H17="","",1/H17) -> 0.2 | G19: =IF(H18="","",1/H18) -> 0.1666666667 | H19: =IF(AND($C$15<>"",$C19<>""),1,"") -> 1 | I19: ='3. Prioritize Attributes'!$E$100 -> 1 | J19: ='3. Prioritize Attributes'!$J$100 -> 0.3333333333 | K19: ='3. Prioritize Attributes'!$O$100 -> 0.3333333333 | L19: ='3. Prioritize Attributes'!$E$114 -> 0.2 | O19: =IFERROR(E19/E24,"") -> 0.1219512195 | P19: =IFERROR(F19/F24,"") -> 0.01856148492 | Q19: 0.06769825919 | R19: 0.04132231405 | S19: 0.04819277108 | T19: 0.01777777778 | U19: 0.02250803859 | V19: 0.02127659574 | X19: 0.04491105761
C20: Level of Risk | D20: 1.194940476 | E20: =IF(I16="","",1/I16) -> 4 | F20: =IF(I17="","",1/I17) -> 2 | G20: =IF(I18="","",1/I18) -> 0.1428571429 | H20: =IF(I19="","",1/I19) -> 1 | I20: =IF(AND($C$15<>"",$C20<>""),1,"") -> 1 | J20: ='3. Prioritize Attributes'!$J$114 -> 0.25 | K20: ='3. Prioritize Attributes'!$O$114 -> 1 | L20: ='3. Prioritize Attributes'!$E$128 -> 0.1666666667 | O20: =IFERROR(E20/E24,"") -> 0.09756097561 | P20: =IFERROR(F20/F24,"") -> 0.1856148492 | Q20: 0.0580270793 | R20: 0.04132231405 | S20: 0.04819277108 | T20: 0.01333333333 | U20: 0.06752411576 | V20: 0.01773049645 | X20: 0.06616324185
C21: Staff Experience / Availability | D21: 1.872916667 | E21: =IF(J16="","",1/J16) -> 6 | F21: =IF(J17="","",1/J17) -> 0.25 | G21: =IF(J18="","",1/J18) -> 0.2 | H21: =IF(J19="","",1/J19) -> 3 | I21: =IF(J20="","",1/J20) -> 4 | J21: =IF(AND($C$15<>"",$C21<>""),1,"") -> 1 | K21: ='3. Prioritize Attributes'!$J$128 -> 0.3333333333 | L21: ='3. Prioritize Attributes'!$O$128 -> 0.2 | O21: =IFERROR(E21/E24,"") -> 0.1463414634 | P21: =IFERROR(F21/F24,"") -> 0.02320185615 | Q21: 0.08123791103 | R21: 0.1239669421 | S21: 0.1927710843 | T21: 0.05333333333 | U21: 0.02250803859 | V21: 0.02127659574 | X21: 0.08307965309
C22: Level of Oversight and Control | D22: 1.972916667 | E22: =IF(K16="","",1/K16) -> 7 | F22: =IF(K17="","",1/K17) -> 0.2 | G22: =IF(K18="","",1/K18) -> 0.3333333333 | H22: =IF(K19="","",1/K19) -> 3 | I22: =IF(K20="","",1/K20) -> 1 | J22: =IF(K21="","",1/K21) -> 3 | K22: =IF(AND($C$15<>"",$C22<>""),1,"") -> 1 | L22: ='3. Prioritize Attributes'!$E$142 -> 0.25 | O22: =IFERROR(E22/E24,"") -> 0.1707317073 | P22: =IFERROR(F22/F24,"") -> 0.01856148492 | Q22: 0.1353965184 | R22: 0.1239669421 | S22: 0.04819277108 | T22: 0.16 | U22: 0.06752411576 | V22: 0.02659574468 | X22: 0.09387116054
C23: Competition & Contractor Experience | D23: 3.517857143 | E23: =IF(L16="","",1/L16) -> 3 | F23: =IF(L17="","",1/L17) -> 4 | G23: =IF(L18="","",1/L18) -> 0.1428571429 | H23: =IF(L19="","",1/L19) -> 5 | I23: =IF(L20="","",1/L20) -> 6 | J23: =IF(L21="","",1/L21) -> 5 | K23: =IF(L22="","",1/L22) -> 4 | L23: =IF(AND($C$15<>"",$C23<>""),1,"") -> 1 | O23: =IFERROR(E23/E24,"") -> 0.07317073171 | P23: =IFERROR(F23/F24,"") -> 0.3712296984 | Q23: 0.0580270793 | R23: 0.2066115702 | S23: 0.2891566265 | T23: 0.2666666667 | U23: 0.270096463 | V23: 0.1063829787 | X23: 0.2051677268
E24: =IFERROR(SUM(E16:E23),"") -> 41 | F24: =IFERROR(SUM(F16:F23),"") -> 10.775 | G24: 2.461904762 | H24: 24.2 | I24: 20.75 | J24: 18.75 | K24: 14.80952381 | L24: 9.4
C26: =IF('1. Select Participants'!C7="","",'1. Select Participants'!C7) -> John | D26: Score (1- 9) | E26: =E15 -> Project Complexity & Innovation | F26: =F15 -> Project Delivery Schedule | G26: Project Cost Considerations | H26: Level of Design | I26: Level of Risk | J26: Staff Experience / Availability | K26: Level of Oversight and Control | L26: Competition & Contractor Experience | O26: =O15 -> Project Complexity & Innovation | P26: =P15 -> Project Delivery Schedule | Q26: Project Cost Considerations | R26: Level of Design | S26: Level of Risk | T26: Staff Experience / Availability | U26: Level of Oversight and Control | V26: Competition & Contractor Experience | X26: Score/Participent
C27: =IF(C5="","",C5) -> Project Complexity & Innovation | D27: =IFERROR(AVERAGE(E27:L27),"") -> 0.2609126984 | E27: =IF(AND($C$26<>"",$C27<>""),1,"") -> 1 | F27: ='3. Prioritize Attributes'!$E$17 -> 0.1111111111 | G27: ='3. Prioritize Attributes'!$J$17 -> 0.125 | H27: ='3. Prioritize Attributes'!$O$17 -> 0.25 | I27: ='3. Prioritize Attributes'!$E$31 -> 0.1666666667 | J27: ='3. Prioritize Attributes'!$J$31 -> 0.125 | K27: ='3. Prioritize Attributes'!$O$31 -> 0.1428571429 | L27: ='3. Prioritize Attributes'!$E$45 -> 0.1666666667 | N27: Normalized Matrix | O27: =IFERROR(E27/E35,"") -> 0.02040816327 | P27: =IFERROR(F27/F35,"") -> 0.01605504587 | Q27: 0.05451713396 | R27: 0.01098901099 | S27: 0.008928571429 | T27: 0.007407407407 | U27: 0.006651884701 | V27: 0.01488095238 | X27: =IFERROR(AVERAGE(O27:V27),"") -> 0.01747977125
C28: =IF(C6="","",C6) -> Project Delivery Schedule | D28: =IFERROR(AVERAGE(E28:L28),"") -> 3.40625 | E28: =IF(F27="","",1/F27) -> 9 | F28: =IF(AND($C$26<>"",$C28<>""),1,"") -> 1 | G28: ='3. Prioritize Attributes'!$J$45 -> 0.25 | H28: ='3. Prioritize Attributes'!$O$45 -> 7 | I28: ='3. Prioritize Attributes'!$E$59 -> 3 | J28: ='3. Prioritize Attributes'!$J$59 -> 3 | K28: ='3. Prioritize Attributes'!$O$59 -> 2 | L28: ='3. Prioritize Attributes'!$E$73 -> 2 | O28: =IFERROR(E28/E35,"") -> 0.1836734694 | P28: =IFERROR(F28/F35,"") -> 0.1444954128 | Q28: 0.1090342679 | R28: 0.3076923077 | S28: 0.1607142857 | T28: 0.1777777778 | U28: 0.09312638581 | V28: 0.1785714286 | X28: =IFERROR(AVERAGE(O28:V28),"") -> 0.169385667
C29: Project Cost Considerations | D29: 5.25 | E29: =IF(G27="","",1/G27) -> 8 | F29: =IF(G28="","",1/G28) -> 4 | G29: =IF(AND($C$26<>"",$C29<>""),1,"") -> 1 | H29: ='3. Prioritize Attributes'!$J$73 -> 5 | I29: ='3. Prioritize Attributes'!$O$73 -> 4 | J29: ='3. Prioritize Attributes'!$E$87 -> 8 | K29: ='3. Prioritize Attributes'!$J$87 -> 5 | L29: ='3. Prioritize Attributes'!$O$87 -> 7 | O29: =IFERROR(E29/E35,"") -> 0.1632653061 | P29: =IFERROR(F29/F35,"") -> 0.5779816514 | Q29: 0.4361370717 | R29: 0.2197802198 | S29: 0.2142857143 | T29: 0.4740740741 | U29: 0.2328159645 | V29: 0.625 | X29: 0.3679175002
C30: Level of Design | D30: 1.05327381 | E30: =IF(H27="","",1/H27) -> 4 | F30: =IF(H28="","",1/H28) -> 0.1428571429 | G30: =IF(H29="","",1/H29) -> 0.2 | H30: =IF(AND($C$26<>"",$C30<>""),1,"") -> 1 | I30: ='3. Prioritize Attributes'!$E$101 -> 0.5 | J30: ='3. Prioritize Attributes'!$J$101 -> 0.25 | K30: ='3. Prioritize Attributes'!$O$101 -> 2 | L30: ='3. Prioritize Attributes'!$E$115 -> 0.3333333333 | O30: =IFERROR(E30/E35,"") -> 0.08163265306 | P30: =IFERROR(F30/F35,"") -> 0.02064220183 | Q30: 0.08722741433 | R30: 0.04395604396 | S30: 0.02678571429 | T30: 0.01481481481 | U30: 0.09312638581 | V30: 0.02976190476 | X30: 0.04974339161
C31: Level of Risk | D31: 1.3125 | E31: =IF(I27="","",1/I27) -> 6 | F31: =IF(I28="","",1/I28) -> 0.3333333333 | G31: =IF(I29="","",1/I29) -> 0.25 | H31: =IF(I30="","",1/I30) -> 2 | I31: =IF(AND($C$26<>"",$C31<>""),1,"") -> 1 | J31: ='3. Prioritize Attributes'!$J$115 -> 0.3333333333 | K31: ='3. Prioritize Attributes'!$O$115 -> 0.3333333333 | L31: ='3. Prioritize Attributes'!$E$129 -> 0.25 | O31: =IFERROR(E31/E35,"") -> 0.1224489796 | P31: =IFERROR(F31/F35,"") -> 0.04816513761 | Q31: 0.1090342679 | R31: 0.08791208791 | S31: 0.05357142857 | T31: 0.01975308642 | U31: 0.0155210643 | V31: 0.02232142857 | X31: 0.05984093511
C32: Staff Experience / Availability | D32: 2.838541667 | E32: =IF(J27="","",1/J27) -> 8 | F32: =IF(J28="","",1/J28) -> 0.3333333333 | G32: =IF(J29="","",1/J29) -> 0.125 | H32: =IF(J30="","",1/J30) -> 4 | I32: =IF(J31="","",1/J31) -> 3 | J32: =IF(AND($C$26<>"",$C32<>""),1,"") -> 1 | K32: ='3. Prioritize Attributes'!$J$129 -> 6 | L32: ='3. Prioritize Attributes'!$O$129 -> 0.25 | O32: =IFERROR(E32/E35,"") -> 0.1632653061 | P32: =IFERROR(F32/F35,"") -> 0.04816513761 | Q32: 0.05451713396 | R32: 0.1758241758 | S32: 0.1607142857 | T32: 0.05925925926 | U32: 0.2793791574 | V32: 0.02232142857 | X32: 0.1204307356
C33: Level of Oversight and Control | D33: 1.570833333 | E33: =IF(K27="","",1/K27) -> 7 | F33: =IF(K28="","",1/K28) -> 0.5 | G33: =IF(K29="","",1/K29) -> 0.2 | H33: =IF(K30="","",1/K30) -> 0.5 | I33: =IF(K31="","",1/K31) -> 3 | J33: =IF(K32="","",1/K32) -> 0.1666666667 | K33: =IF(AND($C$26<>"",$C33<>""),1,"") -> 1 | L33: ='3. Prioritize Attributes'!$E$143 -> 0.2 | O33: =IFERROR(E33/E35,"") -> 0.1428571429 | P33: =IFERROR(F33/F35,"") -> 0.07224770642 | Q33: 0.08722741433 | R33: 0.02197802198 | S33: 0.1607142857 | T33: 0.00987654321 | U33: 0.0465631929 | V33: 0.01785714286 | X33: 0.06991518128
C34: Competition & Contractor Experience | D34: 2.955357143 | E34: =IF(L27="","",1/L27) -> 6 | F34: =IF(L28="","",1/L28) -> 0.5 | G34: =IF(L29="","",1/L29) -> 0.1428571429 | H34: =IF(L30="","",1/L30) -> 3 | I34: =IF(L31="","",1/L31) -> 4 | J34: =IF(L32="","",1/L32) -> 4 | K34: =IF(L33="","",1/L33) -> 5 | L34: =IF(AND($C$26<>"",$C34<>""),1,"") -> 1 | O34: =IFERROR(E34/E35,"") -> 0.1224489796 | P34: =IFERROR(F34/F35,"") -> 0.07224770642 | Q34: 0.06230529595 | R34: 0.1318681319 | S34: 0.2142857143 | T34: 0.237037037 | U34: 0.2328159645 | V34: 0.08928571429 | X34: 0.145286818
E35: =IFERROR(SUM(E27:E34),"") -> 49 | F35: =IFERROR(SUM(F27:F34),"") -> 6.920634921 | G35: 2.292857143 | H35: 22.75 | I35: 18.66666667 | J35: 16.875 | K35: 21.47619048 | L35: 11.2
C37: =IF('1. Select Participants'!C8="","",'1. Select Participants'!C8) ->  | D37: Score (1- 9) | E37: =E26 -> Project Complexity & Innovation | F37: =F26 -> Project Delivery Schedule | G37: Project Cost Considerations | H37: Level of Design | I37: Level of Risk | J37: Staff Experience / Availability | K37: Level of Oversight and Control | L37: Competition & Contractor Experience | O37: =O26 -> Project Complexity & Innovation | P37: =P26 -> Project Delivery Schedule | Q37: Project Cost Considerations | R37: Level of Design | S37: Level of Risk | T37: Staff Experience / Availability | U37: Level of Oversight and Control | V37: Competition & Contractor Experience | X37: Score/Participent
C38: =IF(C5="","",C5) -> Project Complexity & Innovation | D38: =IFERROR(AVERAGE(E38:L38),"") ->  | E38: =IF(AND($C$37<>"",$C38<>""),1,"") ->  | F38: ='3. Prioritize Attributes'!$E$18 ->  | G38: ='3. Prioritize Attributes'!$J$18 ->  | H38: ='3. Prioritize Attributes'!$O$18 ->  | I38: ='3. Prioritize Attributes'!$E$32 ->  | J38: ='3. Prioritize Attributes'!$J$32 ->  | K38: ='3. Prioritize Attributes'!$O$32 ->  | L38: ='3. Prioritize Attributes'!$E$46 ->  | N38: Normalized Matrix | O38: =IFERROR(E38/E46,"") ->  | P38: =IFERROR(F38/F46,"") ->  | X38: =IFERROR(AVERAGE(O38:V38),"") -> 
C39: =IF(C6="","",C6) -> Project Delivery Schedule | D39: =IFERROR(AVERAGE(E39:L39),"") ->  | E39: =IF(F38="","",1/F38) ->  | F39: =IF(AND($C$37<>"",$C39<>""),1,"") ->  | G39: ='3. Prioritize Attributes'!$J$46 ->  | H39: ='3. Prioritize Attributes'!$O$46 ->  | I39: ='3. Prioritize Attributes'!$E$60 ->  | J39: ='3. Prioritize Attributes'!$J$60 ->  | K39: ='3. Prioritize Attributes'!$O$60 ->  | L39: ='3. Prioritize Attributes'!$E$74 ->  | O39: =IFERROR(E39/E46,"") ->  | P39: =IFERROR(F39/F46,"") ->  | X39: =IFERROR(AVERAGE(O39:V39),"") -> 
C40: Project Cost Considerations | E40: =IF(G38="","",1/G38) ->  | F40: =IF(G39="","",1/G39) ->  | G40: =IF(AND($C$37<>"",$C40<>""),1,"") ->  | H40: ='3. Prioritize Attributes'!$J$74 ->  | I40: ='3. Prioritize Attributes'!$O$74 ->  | J40: ='3. Prioritize Attributes'!$E$88 ->  | K40: ='3. Prioritize Attributes'!$J$88 ->  | L40: ='3. Prioritize Attributes'!$O$88 ->  | O40: =IFERROR(E40/E46,"") ->  | P40: =IFERROR(F40/F46,"") -> 
C41: Level of Design | E41: =IF(H38="","",1/H38) ->  | F41: =IF(H39="","",1/H39) ->  | G41: =IF(H40="","",1/H40) ->  | H41: =IF(AND($C$37<>"",$C41<>""),1,"") ->  | I41: ='3. Prioritize Attributes'!$E$102 ->  | J41: ='3. Prioritize Attributes'!$J$102 ->  | K41: ='3. Prioritize Attributes'!$O$102 ->  | L41: ='3. Prioritize Attributes'!$E$116 ->  | O41: =IFERROR(E41/E46,"") ->  | P41: =IFERROR(F41/F46,"") -> 
C42: Level of Risk | E42: =IF(I38="","",1/I38) ->  | F42: =IF(I39="","",1/I39) ->  | G42: =IF(I40="","",1/I40) ->  | H42: =IF(I41="","",1/I41) ->  | I42: =IF(AND($C$37<>"",$C42<>""),1,"") ->  | J42: ='3. Prioritize Attributes'!$J$116 ->  | K42: ='3. Prioritize Attributes'!$O$116 ->  | L42: ='3. Prioritize Attributes'!$E$130 ->  | O42: =IFERROR(E42/E46,"") ->  | P42: =IFERROR(F42/F46,"") -> 
C43: Staff Experience / Availability | E43: =IF(J38="","",1/J38) ->  | F43: =IF(J39="","",1/J39) ->  | G43: =IF(J40="","",1/J40) ->  | H43: =IF(J41="","",1/J41) ->  | I43: =IF(J42="","",1/J42) ->  | J43: =IF(AND($C$37<>"",$C43<>""),1,"") ->  | K43: ='3. Prioritize Attributes'!$J$130 ->  | L43: ='3. Prioritize Attributes'!$O$130 ->  | O43: =IFERROR(E43/E46,"") ->  | P43: =IFERROR(F43/F46,"") -> 
C44: Level of Oversight and Control | E44: =IF(K38="","",1/K38) ->  | F44: =IF(K39="","",1/K39) ->  | G44: =IF(K40="","",1/K40) ->  | H44: =IF(K41="","",1/K41) ->  | I44: =IF(K42="","",1/K42) ->  | J44: =IF(K43="","",1/K43) ->  | K44: =IF(AND($C$37<>"",$C44<>""),1,"") ->  | L44: ='3. Prioritize Attributes'!$E$144 ->  | O44: =IFERROR(E44/E46,"") ->  | P44: =IFERROR(F44/F46,"") -> 
C45: Competition & Contractor Experience | E45: =IF(L38="","",1/L38) ->  | F45: =IF(L39="","",1/L39) ->  | G45: =IF(L40="","",1/L40) ->  | H45: =IF(L41="","",1/L41) ->  | I45: =IF(L42="","",1/L42) ->  | J45: =IF(L43="","",1/L43) ->  | K45: =IF(L44="","",1/L44) ->  | L45: =IF(AND($C$37<>"",$C45<>""),1,"") ->  | O45: =IFERROR(E45/E46,"") ->  | P45: =IFERROR(F45/F46,"") -> 
E46: =IFERROR(SUM(E38:E45),"") -> 0 | F46: =IFERROR(SUM(F38:F45),"") -> 0 | G46: 0 | H46: 0 | I46: 0 | J46: 0 | K46: 0 | L46: 0
C48: =IF('1. Select Participants'!C9="","",'1. Select Participants'!C9) ->  | D48: Score (1- 9) | E48: =E37 -> Project Complexity & Innovation | F48: =F37 -> Project Delivery Schedule | G48: Project Cost Considerations | H48: Level of Design | I48: Level of Risk | J48: Staff Experience / Availability | K48: Level of Oversight and Control | L48: Competition & Contractor Experience | O48: =O37 -> Project Complexity & Innovation | P48: =P37 -> Project Delivery Schedule | Q48: Project Cost Considerations | R48: Level of Design | S48: Level of Risk | T48: Staff Experience / Availability | U48: Level of Oversight and Control | V48: Competition & Contractor Experience | X48: Score/Participent
C49: =IF(C5="","",C5) -> Project Complexity & Innovation | D49: =IFERROR(AVERAGE(E49:L49),"") ->  | E49: =IF(AND($C$48<>"",$C49<>""),1,"") ->  | F49: ='3. Prioritize Attributes'!$E$19 ->  | G49: ='3. Prioritize Attributes'!$J$19 ->  | H49: ='3. Prioritize Attributes'!$O$19 ->  | I49: ='3. Prioritize Attributes'!$E$33 ->  | J49: ='3. Prioritize Attributes'!$J$33 ->  | K49: ='3. Prioritize Attributes'!$O$33 ->  | L49: ='3. Prioritize Attributes'!$E$47 ->  | N49: Normalized Matrix | O49: =IFERROR(E49/E57,"") ->  | P49: =IFERROR(F49/F57,"") ->  | X49: =IFERROR(AVERAGE(O49:V49),"") -> 
C50: =IF(C6="","",C6) -> Project Delivery Schedule | D50: =IFERROR(AVERAGE(E50:L50),"") ->  | E50: =IF(F49="","",1/F49) ->  | F50: =IF(AND($C$48<>"",$C50<>""),1,"") ->  | G50: ='3. Prioritize Attributes'!$J$47 ->  | H50: ='3. Prioritize Attributes'!$O$47 ->  | I50: ='3. Prioritize Attributes'!$E$61 ->  | J50: ='3. Prioritize Attributes'!$J$61 ->  | K50: ='3. Prioritize Attributes'!$O$61 ->  | L50: ='3. Prioritize Attributes'!$E$75 ->  | O50: =IFERROR(E50/E57,"") ->  | P50: =IFERROR(F50/F57,"") ->  | X50: =IFERROR(AVERAGE(O50:V50),"") -> 
C51: Project Cost Considerations | E51: =IF(G49="","",1/G49) ->  | F51: =IF(G50="","",1/G50) ->  | G51: =IF(AND($C$48<>"",$C51<>""),1,"") ->  | H51: ='3. Prioritize Attributes'!$J$75 ->  | I51: ='3. Prioritize Attributes'!$O$75 ->  | J51: ='3. Prioritize Attributes'!$E$89 ->  | K51: ='3. Prioritize Attributes'!$J$89 ->  | L51: ='3. Prioritize Attributes'!$O$89 ->  | O51: =IFERROR(E51/E57,"") ->  | P51: =IFERROR(F51/F57,"") -> 
C52: Level of Design | E52: =IF(H49="","",1/H49) ->  | F52: =IF(H50="","",1/H50) ->  | G52: =IF(H51="","",1/H51) ->  | H52: =IF(AND($C$48<>"",$C52<>""),1,"") ->  | I52: ='3. Prioritize Attributes'!$E$103 ->  | J52: ='3. Prioritize Attributes'!$J$103 ->  | K52: ='3. Prioritize Attributes'!$O$103 ->  | L52: ='3. Prioritize Attributes'!$E$117 ->  | O52: =IFERROR(E52/E57,"") ->  | P52: =IFERROR(F52/F57,"") -> 
C53: Level of Risk | E53: =IF(I49="","",1/I49) ->  | F53: =IF(I50="","",1/I50) ->  | G53: =IF(I51="","",1/I51) ->  | H53: =IF(I52="","",1/I52) ->  | I53: =IF(AND($C$48<>"",$C53<>""),1,"") ->  | J53: ='3. Prioritize Attributes'!$J$117 ->  | K53: ='3. Prioritize Attributes'!$O$117 ->  | L53: ='3. Prioritize Attributes'!$E$131 ->  | O53: =IFERROR(E53/E57,"") ->  | P53: =IFERROR(F53/F57,"") -> 
C54: Staff Experience / Availability | E54: =IF(J49="","",1/J49) ->  | F54: =IF(J50="","",1/J50) ->  | G54: =IF(J51="","",1/J51) ->  | H54: =IF(J52="","",1/J52) ->  | I54: =IF(J53="","",1/J53) ->  | J54: =IF(AND($C$48<>"",$C54<>""),1,"") ->  | K54: ='3. Prioritize Attributes'!$J$131 ->  | L54: ='3. Prioritize Attributes'!$O$131 ->  | O54: =IFERROR(E54/E57,"") ->  | P54: =IFERROR(F54/F57,"") -> 
C55: Level of Oversight and Control | E55: =IF(K49="","",1/K49) ->  | F55: =IF(K50="","",1/K50) ->  | G55: =IF(K51="","",1/K51) ->  | H55: =IF(K52="","",1/K52) ->  | I55: =IF(K53="","",1/K53) ->  | J55: =IF(K54="","",1/K54) ->  | K55: =IF(AND($C$48<>"",$C55<>""),1,"") ->  | L55: ='3. Prioritize Attributes'!$E$145 ->  | O55: =IFERROR(E55/E57,"") ->  | P55: =IFERROR(F55/F57,"") -> 
C56: Competition & Contractor Experience | E56: =IF(L49="","",1/L49) ->  | F56: =IF(L50="","",1/L50) ->  | G56: =IF(L51="","",1/L51) ->  | H56: =IF(L52="","",1/L52) ->  | I56: =IF(L53="","",1/L53) ->  | J56: =IF(L54="","",1/L54) ->  | K56: =IF(L55="","",1/L55) ->  | L56: =IF(AND($C$48<>"",$C56<>""),1,"") ->  | O56: =IFERROR(E56/E57,"") ->  | P56: =IFERROR(F56/F57,"") -> 
E57: =IFERROR(SUM(E49:E56),"") -> 0 | F57: =IFERROR(SUM(F49:F56),"") -> 0 | G57: 0 | H57: 0 | I57: 0 | J57: 0 | K57: 0 | L57: 0
C59: =IF('1. Select Participants'!C10="","",'1. Select Participants'!C10) ->  | D59: Score (1- 9) | E59: =E48 -> Project Complexity & Innovation | F59: =F48 -> Project Delivery Schedule | G59: Project Cost Considerations | H59: Level of Design | I59: Level of Risk | J59: Staff Experience / Availability | K59: Level of Oversight and Control | L59: Competition & Contractor Experience | O59: =O48 -> Project Complexity & Innovation | P59: =P48 -> Project Delivery Schedule | Q59: Project Cost Considerations | R59: Level of Design | S59: Level of Risk | T59: Staff Experience / Availability | U59: Level of Oversight and Control | V59: Competition & Contractor Experience | X59: Score/Participent
C60: =IF(C5="","",C5) -> Project Complexity & Innovation | D60: =IFERROR(AVERAGE(E60:L60),"") ->  | E60: =IF(AND($C$59<>"",$C60<>""),1,"") ->  | F60: ='3. Prioritize Attributes'!$E$20 ->  | G60: ='3. Prioritize Attributes'!$J$20 ->  | H60: ='3. Prioritize Attributes'!$O$20 ->  | I60: ='3. Prioritize Attributes'!$E$34 ->  | J60: ='3. Prioritize Attributes'!$J$34 ->  | K60: ='3. Prioritize Attributes'!$O$34 ->  | L60: ='3. Prioritize Attributes'!$E$48 ->  | N60: Normalized Matrix | O60: =IFERROR(E60/E68,"") ->  | P60: =IFERROR(F60/F68,"") ->  | X60: =IFERROR(AVERAGE(O60:V60),"") -> 
C61: =IF(C6="","",C6) -> Project Delivery Schedule | D61: =IFERROR(AVERAGE(E61:L61),"") ->  | E61: =IF(F60="","",1/F60) ->  | F61: =IF(AND($C$59<>"",$C61<>""),1,"") ->  | G61: ='3. Prioritize Attributes'!$J$48 ->  | H61: ='3. Prioritize Attributes'!$O$48 ->  | I61: ='3. Prioritize Attributes'!$E$62 ->  | J61: ='3. Prioritize Attributes'!$J$62 ->  | K61: ='3. Prioritize Attributes'!$O$62 ->  | L61: ='3. Prioritize Attributes'!$E$76 ->  | O61: =IFERROR(E61/E68,"") ->  | P61: =IFERROR(F61/F68,"") ->  | X61: =IFERROR(AVERAGE(O61:V61),"") -> 
C62: Project Cost Considerations | E62: =IF(G60="","",1/G60) ->  | F62: =IF(G61="","",1/G61) ->  | G62: =IF(AND($C$59<>"",$C62<>""),1,"") ->  | H62: ='3. Prioritize Attributes'!$J$76 ->  | I62: ='3. Prioritize Attributes'!$O$76 ->  | J62: ='3. Prioritize Attributes'!$E$90 ->  | K62: ='3. Prioritize Attributes'!$J$90 ->  | L62: ='3. Prioritize Attributes'!$O$90 ->  | O62: =IFERROR(E62/E68,"") ->  | P62: =IFERROR(F62/F68,"") -> 
C63: Level of Design | E63: =IF(H60="","",1/H60) ->  | F63: =IF(H61="","",1/H61) ->  | G63: =IF(H62="","",1/H62) ->  | H63: =IF(AND($C$59<>"",$C63<>""),1,"") ->  | I63: ='3. Prioritize Attributes'!$E$104 ->  | J63: ='3. Prioritize Attributes'!$J$104 ->  | K63: ='3. Prioritize Attributes'!$O$104 ->  | L63: ='3. Prioritize Attributes'!$E$118 ->  | O63: =IFERROR(E63/E68,"") ->  | P63: =IFERROR(F63/F68,"") -> 
C64: Level of Risk | E64: =IF(I60="","",1/I60) ->  | F64: =IF(I61="","",1/I61) ->  | G64: =IF(I62="","",1/I62) ->  | H64: =IF(I63="","",1/I63) ->  | I64: =IF(AND($C$59<>"",$C64<>""),1,"") ->  | J64: ='3. Prioritize Attributes'!$J$118 ->  | K64: ='3. Prioritize Attributes'!$O$118 ->  | L64: ='3. Prioritize Attributes'!$E$132 ->  | O64: =IFERROR(E64/E68,"") ->  | P64: =IFERROR(F64/F68,"") -> 
C65: Staff Experience / Availability | E65: =IF(J60="","",1/J60) ->  | F65: =IF(J61="","",1/J61) ->  | G65: =IF(J62="","",1/J62) ->  | H65: =IF(J63="","",1/J63) ->  | I65: =IF(J64="","",1/J64) ->  | J65: =IF(AND($C$59<>"",$C65<>""),1,"") ->  | K65: ='3. Prioritize Attributes'!$J$132 ->  | L65: ='3. Prioritize Attributes'!$O$132 ->  | O65: =IFERROR(E65/E68,"") ->  | P65: =IFERROR(F65/F68,"") -> 
C66: Level of Oversight and Control | E66: =IF(K60="","",1/K60) ->  | F66: =IF(K61="","",1/K61) ->  | G66: =IF(K62="","",1/K62) ->  | H66: =IF(K63="","",1/K63) ->  | I66: =IF(K64="","",1/K64) ->  | J66: =IF(K65="","",1/K65) ->  | K66: =IF(AND($C$59<>"",$C66<>""),1,"") ->  | L66: ='3. Prioritize Attributes'!$E$146 ->  | O66: =IFERROR(E66/E68,"") ->  | P66: =IFERROR(F66/F68,"") -> 
C67: Competition & Contractor Experience | E67: =IF(L60="","",1/L60) ->  | F67: =IF(L61="","",1/L61) ->  | G67: =IF(L62="","",1/L62) ->  | H67: =IF(L63="","",1/L63) ->  | I67: =IF(L64="","",1/L64) ->  | J67: =IF(L65="","",1/L65) ->  | K67: =IF(L66="","",1/L66) ->  | L67: =IF(AND($C$59<>"",$C67<>""),1,"") ->  | O67: =IFERROR(E67/E68,"") ->  | P67: =IFERROR(F67/F68,"") -> 
E68: =IFERROR(SUM(E60:E67),"") -> 0 | F68: =IFERROR(SUM(F60:F67),"") -> 0 | G68: 0 | H68: 0 | I68: 0 | J68: 0 | K68: 0 | L68: 0
C70: =IF('1. Select Participants'!C11="","",'1. Select Participants'!C11) ->  | D70: Score (1- 9) | E70: =E59 -> Project Complexity & Innovation | F70: =F59 -> Project Delivery Schedule | G70: Project Cost Considerations | H70: Level of Design | I70: Level of Risk | J70: Staff Experience / Availability | K70: Level of Oversight and Control | L70: Competition & Contractor Experience | O70: =O59 -> Project Complexity & Innovation | P70: =P59 -> Project Delivery Schedule | Q70: Project Cost Considerations | R70: Level of Design | S70: Level of Risk | T70: Staff Experience / Availability | U70: Level of Oversight and Control | V70: Competition & Contractor Experience | X70: Score/Participent
C71: =IF(C5="","",C5) -> Project Complexity & Innovation | D71: =IFERROR(AVERAGE(E71:L71),"") ->  | E71: =IF(AND($C$70<>"",$C71<>""),1,"") ->  | F71: ='3. Prioritize Attributes'!$E$21 ->  | G71: ='3. Prioritize Attributes'!$J$21 ->  | H71: ='3. Prioritize Attributes'!$O$21 ->  | I71: ='3. Prioritize Attributes'!$E$35 ->  | J71: ='3. Prioritize Attributes'!$J$35 ->  | K71: ='3. Prioritize Attributes'!$O$35 ->  | L71: ='3. Prioritize Attributes'!$E$49 ->  | N71: Normalized Matrix | O71: =IFERROR(E71/E79,"") ->  | P71: =IFERROR(F71/F79,"") ->  | X71: =IFERROR(AVERAGE(O71:V71),"") -> 
C72: =IF(C6="","",C6) -> Project Delivery Schedule | D72: =IFERROR(AVERAGE(E72:L72),"") ->  | E72: =IF(F71="","",1/F71) ->  | F72: =IF(AND($C$70<>"",$C72<>""),1,"") ->  | G72: ='3. Prioritize Attributes'!$J$49 ->  | H72: ='3. Prioritize Attributes'!$O$49 ->  | I72: ='3. Prioritize Attributes'!$E$63 ->  | J72: ='3. Prioritize Attributes'!$J$63 ->  | K72: ='3. Prioritize Attributes'!$O$63 ->  | L72: ='3. Prioritize Attributes'!$E$77 ->  | O72: =IFERROR(E72/E79,"") ->  | P72: =IFERROR(F72/F79,"") ->  | X72: =IFERROR(AVERAGE(O72:V72),"") -> 
C73: Project Cost Considerations | E73: =IF(G71="","",1/G71) ->  | F73: =IF(G72="","",1/G72) ->  | G73: =IF(AND($C$70<>"",$C73<>""),1,"") ->  | H73: ='3. Prioritize Attributes'!$J$77 ->  | I73: ='3. Prioritize Attributes'!$O$77 ->  | J73: ='3. Prioritize Attributes'!$E$91 ->  | K73: ='3. Prioritize Attributes'!$J$91 ->  | L73: ='3. Prioritize Attributes'!$O$91 ->  | O73: =IFERROR(E73/E79,"") ->  | P73: =IFERROR(F73/F79,"") -> 
C74: Level of Design | E74: =IF(H71="","",1/H71) ->  | F74: =IF(H72="","",1/H72) ->  | G74: =IF(H73="","",1/H73) ->  | H74: =IF(AND($C$70<>"",$C74<>""),1,"") ->  | I74: ='3. Prioritize Attributes'!$E$105 ->  | J74: ='3. Prioritize Attributes'!$J$105 ->  | K74: ='3. Prioritize Attributes'!$O$105 ->  | L74: ='3. Prioritize Attributes'!$E$119 ->  | O74: =IFERROR(E74/E79,"") ->  | P74: =IFERROR(F74/F79,"") -> 
C75: Level of Risk | E75: =IF(I71="","",1/I71) ->  | F75: =IF(I72="","",1/I72) ->  | G75: =IF(I73="","",1/I73) ->  | H75: =IF(I74="","",1/I74) ->  | I75: =IF(AND($C$70<>"",$C75<>""),1,"") ->  | J75: ='3. Prioritize Attributes'!$J$119 ->  | K75: ='3. Prioritize Attributes'!$O$119 ->  | L75: ='3. Prioritize Attributes'!$E$133 ->  | O75: =IFERROR(E75/E79,"") ->  | P75: =IFERROR(F75/F79,"") -> 
C76: Staff Experience / Availability | E76: =IF(J71="","",1/J71) ->  | F76: =IF(J72="","",1/J72) ->  | G76: =IF(J73="","",1/J73) ->  | H76: =IF(J74="","",1/J74) ->  | I76: =IF(J75="","",1/J75) ->  | J76: =IF(AND($C$70<>"",$C76<>""),1,"") ->  | K76: ='3. Prioritize Attributes'!$J$133 ->  | L76: ='3. Prioritize Attributes'!$O$133 ->  | O76: =IFERROR(E76/E79,"") ->  | P76: =IFERROR(F76/F79,"") -> 
C77: Level of Oversight and Control | E77: =IF(K71="","",1/K71) ->  | F77: =IF(K72="","",1/K72) ->  | G77: =IF(K73="","",1/K73) ->  | H77: =IF(K74="","",1/K74) ->  | I77: =IF(K75="","",1/K75) ->  | J77: =IF(K76="","",1/K76) ->  | K77: =IF(AND($C$70<>"",$C77<>""),1,"") ->  | L77: ='3. Prioritize Attributes'!$E$147 ->  | O77: =IFERROR(E77/E79,"") ->  | P77: =IFERROR(F77/F79,"") -> 
C78: Competition & Contractor Experience | E78: =IF(L71="","",1/L71) ->  | F78: =IF(L72="","",1/L72) ->  | G78: =IF(L73="","",1/L73) ->  | H78: =IF(L74="","",1/L74) ->  | I78: =IF(L75="","",1/L75) ->  | J78: =IF(L76="","",1/L76) ->  | K78: =IF(L77="","",1/L77) ->  | L78: =IF(AND($C$70<>"",$C78<>""),1,"") ->  | O78: =IFERROR(E78/E79,"") ->  | P78: =IFERROR(F78/F79,"") -> 
E79: =IFERROR(SUM(E71:E78),"") -> 0 | F79: =IFERROR(SUM(F71:F78),"") -> 0 | G79: 0 | H79: 0 | I79: 0 | J79: 0 | K79: 0 | L79: 0
C81: =IF('1. Select Participants'!C12="","",'1. Select Participants'!C12) ->  | D81: Score (1- 9) | E81: =E70 -> Project Complexity & Innovation | F81: =F70 -> Project Delivery Schedule | G81: Project Cost Considerations | H81: Level of Design | I81: Level of Risk | J81: Staff Experience / Availability | K81: Level of Oversight and Control | L81: Competition & Contractor Experience | O81: =O70 -> Project Complexity & Innovation | P81: =P70 -> Project Delivery Schedule | Q81: Project Cost Considerations | R81: Level of Design | S81: Level of Risk | T81: Staff Experience / Availability | U81: Level of Oversight and Control | V81: Competition & Contractor Experience | X81: Score/Participent
C82: =IF(C5="","",C5) -> Project Complexity & Innovation | D82: =IFERROR(AVERAGE(E82:L82),"") ->  | E82: =IF(AND($C$81<>"",$C82<>""),1,"") ->  | F82: ='3. Prioritize Attributes'!$E$22 ->  | G82: ='3. Prioritize Attributes'!$J$22 ->  | H82: ='3. Prioritize Attributes'!$O$22 ->  | I82: ='3. Prioritize Attributes'!$E$36 ->  | J82: ='3. Prioritize Attributes'!$J$36 ->  | K82: ='3. Prioritize Attributes'!$O$36 ->  | L82: ='3. Prioritize Attributes'!$E$50 ->  | N82: Normalized Matrix | O82: =IFERROR(E82/E90,"") ->  | P82: =IFERROR(F82/F90,"") ->  | X82: =IFERROR(AVERAGE(O82:V82),"") -> 
C83: =IF(C6="","",C6) -> Project Delivery Schedule | D83: =IFERROR(AVERAGE(E83:L83),"") ->  | E83: =IF(F82="","",1/F82) ->  | F83: =IF(AND($C$81<>"",$C83<>""),1,"") ->  | G83: ='3. Prioritize Attributes'!$J$50 ->  | H83: ='3. Prioritize Attributes'!$O$50 ->  | I83: ='3. Prioritize Attributes'!$E$64 ->  | J83: ='3. Prioritize Attributes'!$J$64 ->  | K83: ='3. Prioritize Attributes'!$O$64 ->  | L83: ='3. Prioritize Attributes'!$E$78 ->  | O83: =IFERROR(E83/E90,"") ->  | P83: =IFERROR(F83/F90,"") ->  | X83: =IFERROR(AVERAGE(O83:V83),"") -> 
C84: Project Cost Considerations | E84: =IF(G82="","",1/G82) ->  | F84: =IF(G83="","",1/G83) ->  | G84: =IF(AND($C$81<>"",$C84<>""),1,"") ->  | H84: ='3. Prioritize Attributes'!$J$78 ->  | I84: ='3. Prioritize Attributes'!$O$78 ->  | J84: ='3. Prioritize Attributes'!$E$92 ->  | K84: ='3. Prioritize Attributes'!$J$92 ->  | L84: ='3. Prioritize Attributes'!$O$92 ->  | O84: =IFERROR(E84/E90,"") ->  | P84: =IFERROR(F84/F90,"") -> 
C85: Level of Design | E85: =IF(H82="","",1/H82) ->  | F85: =IF(H83="","",1/H83) ->  | G85: =IF(H84="","",1/H84) ->  | H85: =IF(AND($C$81<>"",$C85<>""),1,"") ->  | I85: ='3. Prioritize Attributes'!$E$106 ->  | J85: ='3. Prioritize Attributes'!$J$106 ->  | K85: ='3. Prioritize Attributes'!$O$106 ->  | L85: ='3. Prioritize Attributes'!$E$120 ->  | O85: =IFERROR(E85/E90,"") ->  | P85: =IFERROR(F85/F90,"") -> 
C86: Level of Risk | E86: =IF(I82="","",1/I82) ->  | F86: =IF(I83="","",1/I83) ->  | G86: =IF(I84="","",1/I84) ->  | H86: =IF(I85="","",1/I85) ->  | I86: =IF(AND($C$81<>"",$C86<>""),1,"") ->  | J86: ='3. Prioritize Attributes'!$J$120 ->  | K86: ='3. Prioritize Attributes'!$O$120 ->  | L86: ='3. Prioritize Attributes'!$E$134 ->  | O86: =IFERROR(E86/E90,"") ->  | P86: =IFERROR(F86/F90,"") -> 
C87: Staff Experience / Availability | E87: =IF(J82="","",1/J82) ->  | F87: =IF(J83="","",1/J83) ->  | G87: =IF(J84="","",1/J84) ->  | H87: =IF(J85="","",1/J85) ->  | I87: =IF(J86="","",1/J86) ->  | J87: =IF(AND($C$81<>"",$C87<>""),1,"") ->  | K87: ='3. Prioritize Attributes'!$J$134 ->  | L87: ='3. Prioritize Attributes'!$O$134 ->  | O87: =IFERROR(E87/E90,"") ->  | P87: =IFERROR(F87/F90,"") -> 
C88: Level of Oversight and Control | E88: =IF(K82="","",1/K82) ->  | F88: =IF(K83="","",1/K83) ->  | G88: =IF(K84="","",1/K84) ->  | H88: =IF(K85="","",1/K85) ->  | I88: =IF(K86="","",1/K86) ->  | J88: =IF(K87="","",1/K87) ->  | K88: =IF(AND($C$81<>"",$C88<>""),1,"") ->  | L88: ='3. Prioritize Attributes'!$E$148 ->  | O88: =IFERROR(E88/E90,"") ->  | P88: =IFERROR(F88/F90,"") -> 
C89: Competition & Contractor Experience | E89: =IF(L82="","",1/L82) ->  | F89: =IF(L83="","",1/L83) ->  | G89: =IF(L84="","",1/L84) ->  | H89: =IF(L85="","",1/L85) ->  | I89: =IF(L86="","",1/L86) ->  | J89: =IF(L87="","",1/L87) ->  | K89: =IF(L88="","",1/L88) ->  | L89: =IF(AND($C$81<>"",$C89<>""),1,"") ->  | O89: =IFERROR(E89/E90,"") ->  | P89: =IFERROR(F89/F90,"") -> 
E90: =IFERROR(SUM(E82:E89),"") -> 0 | F90: =IFERROR(SUM(F82:F89),"") -> 0 | G90: 0 | H90: 0 | I90: 0 | J90: 0 | K90: 0 | L90: 0
C92: =IF('1. Select Participants'!C13="","",'1. Select Participants'!C13) ->  | D92: Score (1- 9) | E92: =E81 -> Project Complexity & Innovation | F92: =F81 -> Project Delivery Schedule | G92: Project Cost Considerations | H92: Level of Design | I92: Level of Risk | J92: Staff Experience / Availability | K92: Level of Oversight and Control | L92: Competition & Contractor Experience | O92: =O81 -> Project Complexity & Innovation | P92: =P81 -> Project Delivery Schedule | Q92: Project Cost Considerations | R92: Level of Design | S92: Level of Risk | T92: Staff Experience / Availability | U92: Level of Oversight and Control | V92: Competition & Contractor Experience | X92: Score/Participent
C93: =IF(C5="","",C5) -> Project Complexity & Innovation | D93: =IFERROR(AVERAGE(E93:L93),"") ->  | E93: =IF(AND($C$92<>"",$C93<>""),1,"") ->  | F93: ='3. Prioritize Attributes'!$E$23 ->  | G93: ='3. Prioritize Attributes'!$J$23 ->  | H93: ='3. Prioritize Attributes'!$O$23 ->  | I93: ='3. Prioritize Attributes'!$E$37 ->  | J93: ='3. Prioritize Attributes'!$J$37 ->  | K93: ='3. Prioritize Attributes'!$O$37 ->  | L93: ='3. Prioritize Attributes'!$E$51 ->  | N93: Normalized Matrix | O93: =IFERROR(E93/E101,"") ->  | P93: =IFERROR(F93/F101,"") ->  | X93: =IFERROR(AVERAGE(O93:V93),"") -> 
C94: =IF(C6="","",C6) -> Project Delivery Schedule | D94: =IFERROR(AVERAGE(E94:L94),"") ->  | E94: =IF(F93="","",1/F93) ->  | F94: =IF(AND($C$92<>"",$C94<>""),1,"") ->  | G94: ='3. Prioritize Attributes'!$J$51 ->  | H94: ='3. Prioritize Attributes'!$O$51 ->  | I94: ='3. Prioritize Attributes'!$E$65 ->  | J94: ='3. Prioritize Attributes'!$J$65 ->  | K94: ='3. Prioritize Attributes'!$O$65 ->  | L94: ='3. Prioritize Attributes'!$E$79 ->  | O94: =IFERROR(E94/E101,"") ->  | P94: =IFERROR(F94/F101,"") ->  | X94: =IFERROR(AVERAGE(O94:V94),"") -> 
C95: Project Cost Considerations | E95: =IF(G93="","",1/G93) ->  | F95: =IF(G94="","",1/G94) ->  | G95: =IF(AND($C$92<>"",$C95<>""),1,"") ->  | H95: ='3. Prioritize Attributes'!$J$79 ->  | I95: ='3. Prioritize Attributes'!$O$79 ->  | J95: ='3. Prioritize Attributes'!$E$93 ->  | K95: ='3. Prioritize Attributes'!$J$93 ->  | L95: ='3. Prioritize Attributes'!$O$93 ->  | O95: =IFERROR(E95/E101,"") ->  | P95: =IFERROR(F95/F101,"") -> 
C96: Level of Design | E96: =IF(H93="","",1/H93) ->  | F96: =IF(H94="","",1/H94) ->  | G96: =IF(H95="","",1/H95) ->  | H96: =IF(AND($C$92<>"",$C96<>""),1,"") ->  | I96: ='3. Prioritize Attributes'!$E$107 ->  | J96: ='3. Prioritize Attributes'!$J$107 ->  | K96: ='3. Prioritize Attributes'!$O$107 ->  | L96: ='3. Prioritize Attributes'!$E$121 ->  | O96: =IFERROR(E96/E101,"") ->  | P96: =IFERROR(F96/F101,"") -> 
C97: Level of Risk | E97: =IF(I93="","",1/I93) ->  | F97: =IF(I94="","",1/I94) ->  | G97: =IF(I95="","",1/I95) ->  | H97: =IF(I96="","",1/I96) ->  | I97: =IF(AND($C$92<>"",$C97<>""),1,"") ->  | J97: ='3. Prioritize Attributes'!$J$121 ->  | K97: ='3. Prioritize Attributes'!$O$121 ->  | L97: ='3. Prioritize Attributes'!$E$135 ->  | O97: =IFERROR(E97/E101,"") ->  | P97: =IFERROR(F97/F101,"") -> 
C98: Staff Experience / Availability | E98: =IF(J93="","",1/J93) ->  | F98: =IF(J94="","",1/J94) ->  | G98: =IF(J95="","",1/J95) ->  | H98: =IF(J96="","",1/J96) ->  | I98: =IF(J97="","",1/J97) ->  | J98: =IF(AND($C$92<>"",$C98<>""),1,"") ->  | K98: ='3. Prioritize Attributes'!$J$135 ->  | L98: ='3. Prioritize Attributes'!$O$135 ->  | O98: =IFERROR(E98/E101,"") ->  | P98: =IFERROR(F98/F101,"") -> 
C99: Level of Oversight and Control | E99: =IF(K93="","",1/K93) ->  | F99: =IF(K94="","",1/K94) ->  | G99: =IF(K95="","",1/K95) ->  | H99: =IF(K96="","",1/K96) ->  | I99: =IF(K97="","",1/K97) ->  | J99: =IF(K98="","",1/K98) ->  | K99: =IF(AND($C$92<>"",$C99<>""),1,"") ->  | L99: ='3. Prioritize Attributes'!$E$149 ->  | O99: =IFERROR(E99/E101,"") ->  | P99: =IFERROR(F99/F101,"") -> 
C100: Competition & Contractor Experience | E100: =IF(L93="","",1/L93) ->  | F100: =IF(L94="","",1/L94) ->  | G100: =IF(L95="","",1/L95) ->  | H100: =IF(L96="","",1/L96) ->  | I100: =IF(L97="","",1/L97) ->  | J100: =IF(L98="","",1/L98) ->  | K100: =IF(L99="","",1/L99) ->  | L100: =IF(AND($C$92<>"",$C100<>""),1,"") ->  | O100: =IFERROR(E100/E101,"") ->  | P100: =IFERROR(F100/F101,"") -> 
E101: =IFERROR(SUM(E93:E100),"") -> 0 | F101: =IFERROR(SUM(F93:F100),"") -> 0 | G101: 0 | H101: 0 | I101: 0 | J101: 0 | K101: 0 | L101: 0
C103: =IF('1. Select Participants'!C14="","",'1. Select Participants'!C14) ->  | D103: Score (1- 9) | E103: =E92 -> Project Complexity & Innovation | F103: =F92 -> Project Delivery Schedule | G103: Project Cost Considerations | H103: Level of Design | I103: Level of Risk | J103: Staff Experience / Availability | K103: Level of Oversight and Control | L103: Competition & Contractor Experience | O103: =O92 -> Project Complexity & Innovation | P103: =P92 -> Project Delivery Schedule | Q103: Project Cost Considerations | R103: Level of Design | S103: Level of Risk | T103: Staff Experience / Availability | U103: Level of Oversight and Control | V103: Competition & Contractor Experience | X103: Score/Participent
C104: =IF(C5="","",C5) -> Project Complexity & Innovation | D104: =IFERROR(AVERAGE(E104:L104),"") ->  | E104: =IF(AND($C$103<>"",$C104<>""),1,"") ->  | F104: ='3. Prioritize Attributes'!$E$24 ->  | G104: ='3. Prioritize Attributes'!$J$24 ->  | H104: ='3. Prioritize Attributes'!$O$24 ->  | I104: ='3. Prioritize Attributes'!$E$38 ->  | J104: ='3. Prioritize Attributes'!$J$38 ->  | K104: ='3. Prioritize Attributes'!$O$38 ->  | L104: ='3. Prioritize Attributes'!$E$52 ->  | N104: Normalized Matrix | O104: =IFERROR(E104/E112,"") ->  | P104: =IFERROR(F104/F112,"") ->  | X104: =IFERROR(AVERAGE(O104:V104),"") -> 
C105: =IF(C6="","",C6) -> Project Delivery Schedule | D105: =IFERROR(AVERAGE(E105:L105),"") ->  | E105: =IF(F104="","",1/F104) ->  | F105: =IF(AND($C$103<>"",$C105<>""),1,"") ->  | G105: ='3. Prioritize Attributes'!$J$52 ->  | H105: ='3. Prioritize Attributes'!$O$52 ->  | I105: ='3. Prioritize Attributes'!$E$66 ->  | J105: ='3. Prioritize Attributes'!$J$66 ->  | K105: ='3. Prioritize Attributes'!$O$66 ->  | L105: ='3. Prioritize Attributes'!$E$80 ->  | O105: =IFERROR(E105/E112,"") ->  | P105: =IFERROR(F105/F112,"") ->  | X105: =IFERROR(AVERAGE(O105:V105),"") -> 
C106: Project Cost Considerations | E106: =IF(G104="","",1/G104) ->  | F106: =IF(G105="","",1/G105) ->  | G106: =IF(AND($C$103<>"",$C106<>""),1,"") ->  | H106: ='3. Prioritize Attributes'!$J$80 ->  | I106: ='3. Prioritize Attributes'!$O$80 ->  | J106: ='3. Prioritize Attributes'!$E$94 ->  | K106: ='3. Prioritize Attributes'!$J$94 ->  | L106: ='3. Prioritize Attributes'!$O$94 ->  | O106: =IFERROR(E106/E112,"") ->  | P106: =IFERROR(F106/F112,"") -> 
C107: Level of Design | E107: =IF(H104="","",1/H104) ->  | F107: =IF(H105="","",1/H105) ->  | G107: =IF(H106="","",1/H106) ->  | H107: =IF(AND($C$103<>"",$C107<>""),1,"") ->  | I107: ='3. Prioritize Attributes'!$E$108 ->  | J107: ='3. Prioritize Attributes'!$J$108 ->  | K107: ='3. Prioritize Attributes'!$O$108 ->  | L107: ='3. Prioritize Attributes'!$E$122 ->  | O107: =IFERROR(E107/E112,"") ->  | P107: =IFERROR(F107/F112,"") -> 
C108: Level of Risk | E108: =IF(I104="","",1/I104) ->  | F108: =IF(I105="","",1/I105) ->  | G108: =IF(I106="","",1/I106) ->  | H108: =IF(I107="","",1/I107) ->  | I108: =IF(AND($C$103<>"",$C108<>""),1,"") ->  | J108: ='3. Prioritize Attributes'!$J$122 ->  | K108: ='3. Prioritize Attributes'!$O$122 ->  | L108: ='3. Prioritize Attributes'!$E$136 ->  | O108: =IFERROR(E108/E112,"") ->  | P108: =IFERROR(F108/F112,"") -> 
C109: Staff Experience / Availability | E109: =IF(J104="","",1/J104) ->  | F109: =IF(J105="","",1/J105) ->  | G109: =IF(J106="","",1/J106) ->  | H109: =IF(J107="","",1/J107) ->  | I109: =IF(J108="","",1/J108) ->  | J109: =IF(AND($C$103<>"",$C109<>""),1,"") ->  | K109: ='3. Prioritize Attributes'!$J$136 ->  | L109: ='3. Prioritize Attributes'!$O$136 ->  | O109: =IFERROR(E109/E112,"") ->  | P109: =IFERROR(F109/F112,"") -> 
C110: Level of Oversight and Control | E110: =IF(K104="","",1/K104) ->  | F110: =IF(K105="","",1/K105) ->  | G110: =IF(K106="","",1/K106) ->  | H110: =IF(K107="","",1/K107) ->  | I110: =IF(K108="","",1/K108) ->  | J110: =IF(K109="","",1/K109) ->  | K110: =IF(AND($C$103<>"",$C110<>""),1,"") ->  | L110: ='3. Prioritize Attributes'!$E$150 ->  | O110: =IFERROR(E110/E112,"") ->  | P110: =IFERROR(F110/F112,"") -> 
C111: Competition & Contractor Experience | E111: =IF(L104="","",1/L104) ->  | F111: =IF(L105="","",1/L105) ->  | G111: =IF(L106="","",1/L106) ->  | H111: =IF(L107="","",1/L107) ->  | I111: =IF(L108="","",1/L108) ->  | J111: =IF(L109="","",1/L109) ->  | K111: =IF(L110="","",1/L110) ->  | L111: =IF(AND($C$103<>"",$C111<>""),1,"") ->  | O111: =IFERROR(E111/E112,"") ->  | P111: =IFERROR(F111/F112,"") -> 
E112: =IFERROR(SUM(E104:E111),"") -> 0 | F112: =IFERROR(SUM(F104:F111),"") -> 0 | G112: 0 | H112: 0 | I112: 0 | J112: 0 | K112: 0 | L112: 0
D117: =C4 -> Joe | E117: =C15 -> Fred | F117: =C26 -> John | G117: =C37 ->  | H117: =C48 ->  | I117: =C59 ->  | J117: =C70 ->  | K117: =C81 ->  | L117: =C92 ->  | M117: =C103 ->  | O117: Priority
C118: =IF(C5="","",C5) -> Project Complexity & Innovation | D118: =X5 -> 0.01891634704 | E118: =X16 -> 0.02104088636 | F118: =X27 -> 0.01747977125 | G118: =X38 ->  | H118: =X49 ->  | I118: =X60 ->  | J118: =X71 ->  | K118: =X82 ->  | L118: =X93 ->  | M118: =X104 ->  | O118: =IFERROR(AVERAGE(D118:N118),"") -> 0.01914566822
C119: =IF(C6="","",C6) -> Project Delivery Schedule | D119: 0.1786611267 | E119: 0.1539479383 | F119: 0.169385667 | O119: =IFERROR(AVERAGE(D119:N119),"") -> 0.1673315773
C120: Project Cost Considerations | D120: 0.2931031393 | E120: 0.3318183354 | F120: 0.3679175002 | O120: 0.330946325
C121: Level of Design | D121: 0.09493509296 | E121: 0.04491105761 | F121: 0.04974339161 | O121: 0.06319651406
C122: Level of Risk | D122: 0.04750797218 | E122: 0.06616324185 | F122: 0.05984093511 | O122: 0.05783738304
C123: Staff Experience / Availability | D123: 0.1467109428 | E123: 0.08307965309 | F123: 0.1204307356 | O123: 0.1167404438
C124: Level of Oversight and Control | D124: 0.05770678806 | E124: 0.09387116054 | F124: 0.06991518128 | O124: =IFERROR(AVERAGE(D124:N124),"") -> 0.07383104329
C125: Competition & Contractor Experience | D125: 0.162458591 | E125: 0.2051677268 | F125: 0.145286818 | L125: =X100 ->  | M125: =X111 ->  | O125: =IFERROR(AVERAGE(D125:N125),"") -> 0.1709710453
O126: =SUM(O118:O125) -> 1

Sheet 5. Performance Priorities (hidden)
B1: ='Project Scope'!C6 -> Davis Road Bridge Replacement
B2: PERFORMANCE PRIORITIZATION SCORING
C4: ='4. Decision Matrix'!C5 -> Project Complexity & Innovation | F4: ='4. Decision Matrix'!C6 -> Project Delivery Schedule | I4: ='4. Decision Matrix'!C7 -> Project Cost Considerations | L4: ='4. Decision Matrix'!C8 -> Level of Design | O4: ='4. Decision Matrix'!C9 -> Level of Risk | R4: ='4. Decision Matrix'!C10 -> Staff Experience / Availability | U4: ='4. Decision Matrix'!C11 -> Level of Oversight and Control | X4: ='4. Decision Matrix'!C12 -> Competition & Contractor Experience
B5: Delivery Methods | C5: Priority | D5: Rating | E5: Score | F5: Priority | G5: Rating | H5: Score | I5: Priority | J5: Rating | K5: Score | L5: Priority | M5: Rating | N5: Score | O5: Priority | P5: Rating | Q5: Score | R5: Priority | S5: Rating | T5: Score | U5: Priority | V5: Rating | W5: Score | X5: Priority | Y5: Rating | Z5: Score | AA5: TOTAL PERFORMANCE SCORE | AB5: Adj. Score (1 to 10)
B6: Design-Bid-Build | C6: =IF(B6="","",'4. Decision Matrix'!$O$118) -> 0.01914566822 | D6: =IF('2. Rate Performance'!$C11="","",'2. Rate Performance'!$C11) -> 1 | E6: =IFERROR(C6*D6,"") -> 0.01914566822 | F6: =IF(B6="","",'4. Decision Matrix'!$O$119) -> 0.1673315773 | G6: =IF('2. Rate Performance'!$C23="","",'2. Rate Performance'!$C23) -> 1 | H6: =IFERROR(F6*G6,"") -> 0.1673315773 | I6: =IF(B6="","",'4. Decision Matrix'!$O$120) -> 0.330946325 | J6: =IF('2. Rate Performance'!$C35="","",'2. Rate Performance'!$C35) -> 0.8 | K6: =IFERROR(I6*J6,"") -> 0.26475706 | L6: =IF(B6="","",'4. Decision Matrix'!$O$121) -> 0.06319651406 | M6: =IF('2. Rate Performance'!$C47="","",'2. Rate Performance'!$C47) -> 1 | N6: =IFERROR(L6*M6,"") -> 0.06319651406 | O6: =IF(B6="","",'4. Decision Matrix'!$O$122) -> 0.05783738304 | P6: =IF('2. Rate Performance'!$C59="","",'2. Rate Performance'!$C59) -> 0.8 | Q6: =IFERROR(O6*P6,"") -> 0.04626990644 | R6: =IF(B6="","",'4. Decision Matrix'!$O$123) -> 0.1167404438 | S6: =IF('2. Rate Performance'!$C71="","",'2. Rate Performance'!$C71) -> 0.8 | T6: =IFERROR(R6*S6,"") -> 0.09339235505 | U6: =IF(B6="","",'4. Decision Matrix'!$O$124) -> 0.07383104329 | V6: =IF('2. Rate Performance'!$C83="","",'2. Rate Performance'!$C83) -> 0.9 | W6: =IFERROR(U6*V6,"") -> 0.06644793896 | X6: =IF(B6="","",'4. Decision Matrix'!$O$125) -> 0.1709710453 | Y6: =IF('2. Rate Performance'!$C95="","",'2. Rate Performance'!$C95) -> 1 | Z6: =IFERROR(X6*Y6,"") -> 0.1709710453 | AA6: =IF(B6="","",SUM(E6,H6,K6,N6,Q6,T6,W6,Z6)) -> 0.8915120653 | AB6: =AA6*10 -> 8.915120653
B7: Construction Manager / General Contractor | C7: =IF(B7="","",'4. Decision Matrix'!$O$118) -> 0.01914566822 | D7: =IF('2. Rate Performance'!$C12="","",'2. Rate Performance'!$C12) -> 0.2 | E7: =IFERROR(C7*D7,"") -> 0.003829133643 | F7: =IF(B7="","",'4. Decision Matrix'!$O$119) -> 0.1673315773 | G7: =IF('2. Rate Performance'!$C24="","",'2. Rate Performance'!$C24) -> 0.2 | H7: 0.03346631547 | I7: =IF(B7="","",'4. Decision Matrix'!$O$120) -> 0.330946325 | J7: =IF('2. Rate Performance'!$C36="","",'2. Rate Performance'!$C36) -> 0.2 | K7: 0.06618926499 | L7: =IF(B7="","",'4. Decision Matrix'!$O$121) -> 0.06319651406 | M7: =IF('2. Rate Performance'!$C48="","",'2. Rate Performance'!$C48) -> 0.4 | N7: 0.02527860562 | O7: =IF(B7="","",'4. Decision Matrix'!$O$122) -> 0.05783738304 | P7: =IF('2. Rate Performance'!$C60="","",'2. Rate Performance'!$C60) -> 0.5 | Q7: 0.02891869152 | R7: =IF(B7="","",'4. Decision Matrix'!$O$123) -> 0.1167404438 | S7: =IF('2. Rate Performance'!$C72="","",'2. Rate Performance'!$C72) -> 0.8 | T7: 0.09339235505 | U7: =IF(B7="","",'4. Decision Matrix'!$O$124) -> 0.07383104329 | V7: =IF('2. Rate Performance'!$C84="","",'2. Rate Performance'!$C84) -> 0.9 | W7: 0.06644793896 | X7: =IF(B7="","",'4. Decision Matrix'!$O$125) -> 0.1709710453 | Y7: =IF('2. Rate Performance'!$C96="","",'2. Rate Performance'!$C96) -> 0.5 | Z7: 0.08548552264 | AA7: =IF(B7="","",SUM(E7,H7,K7,N7,Q7,T7,W7,Z7)) -> 0.4030078279 | AB7: =AA7*10 -> 4.030078279
B8: Design-Build | C8: =IF(B8="","",'4. Decision Matrix'!$O$118) -> 0.01914566822 | D8: =IF('2. Rate Performance'!$C13="","",'2. Rate Performance'!$C13) -> 0.2 | E8: =IFERROR(C8*D8,"") -> 0.003829133643 | F8: =IF(B8="","",'4. Decision Matrix'!$O$119) -> 0.1673315773 | G8: =IF('2. Rate Performance'!$C25="","",'2. Rate Performance'!$C25) -> 0.2 | H8: 0.03346631547 | I8: =IF(B8="","",'4. Decision Matrix'!$O$120) -> 0.330946325 | J8: =IF('2. Rate Performance'!$C37="","",'2. Rate Performance'!$C37) -> 0.6 | K8: 0.198567795 | L8: =IF(B8="","",'4. Decision Matrix'!$O$121) -> 0.06319651406 | M8: =IF('2. Rate Performance'!$C49="","",'2. Rate Performance'!$C49) -> 0.2 | N8: 0.01263930281 | O8: =IF(B8="","",'4. Decision Matrix'!$O$122) -> 0.05783738304 | P8: =IF('2. Rate Performance'!$C61="","",'2. Rate Performance'!$C61) -> 0.3 | Q8: 0.01735121491 | R8: =IF(B8="","",'4. Decision Matrix'!$O$123) -> 0.1167404438 | S8: =IF('2. Rate Performance'!$C73="","",'2. Rate Performance'!$C73) -> 0.2 | T8: 0.02334808876 | U8: =IF(B8="","",'4. Decision Matrix'!$O$124) -> 0.07383104329 | V8: =IF('2. Rate Performance'!$C85="","",'2. Rate Performance'!$C85) -> 0.7 | W8: 0.0516817303 | X8: =IF(B8="","",'4. Decision Matrix'!$O$125) -> 0.1709710453 | Y8: =IF('2. Rate Performance'!$C97="","",'2. Rate Performance'!$C97) -> 0.3 | Z8: 0.05129131358 | AA8: 0.3921748945 | AB8: =AA8*10 -> 3.921748945
B10: Delivery Methods | C10: =C4 -> Project Complexity & Innovation | D10: =F4 -> Project Delivery Schedule | E10: =I4 -> Project Cost Considerations | F10: =L4 -> Level of Design | G10: =O4 -> Level of Risk | H10: =R4 -> Staff Experience / Availability | I10: =U4 -> Level of Oversight and Control | J10: =X4 -> Competition & Contractor Experience
B11: Design-Bid-Build | C11: =E6*10 -> 0.1914566822 | D11: =H6*10 -> 1.673315773 | E11: =K6*10 -> 2.6475706 | F11: =N6*10 -> 0.6319651406 | G11: =Q6*10 -> 0.4626990644 | H11: =T6*10 -> 0.9339235505 | I11: =W6*10 -> 0.6644793896 | J11: =Z6*10 -> 1.709710453
B12: Construction Manager / General Contractor | C12: =E7*10 -> 0.03829133643 | D12: =H7*10 -> 0.3346631547 | E12: =K7*10 -> 0.6618926499 | F12: =N7*10 -> 0.2527860562 | G12: =Q7*10 -> 0.2891869152 | H12: =T7*10 -> 0.9339235505 | I12: =W7*10 -> 0.6644793896 | J12: =Z7*10 -> 0.8548552264
B13: Design-Build | C13: =E8*10 -> 0.03829133643 | D13: =H8*10 -> 0.3346631547 | E13: =K8*10 -> 1.98567795 | F13: =N8*10 -> 0.1263930281 | G13: =Q8*10 -> 0.1735121491 | H13: =T8*10 -> 0.2334808876 | I13: =W8*10 -> 0.516817303 | J13: =Z8*10 -> 0.5129131358

Sheet 6. Ranking of Delivery Methods (hidden)
B1: ='Project Scope'!C6 -> Davis Road Bridge Replacement
B2: PROJECT DELIVERY METHOD SELECTION RESULTS

Sheet VE Dashboard (hidden)
B1: ='Project Scope'!C6 -> Davis Road Bridge Replacement
B2: VALUE ENGINEERING DASHBOARD
B4: Number of VE Alternatives | C4: ='VE Alt. Summary'!A26 -> 4 | E4: Total Potential Initial Cost Savings | F4: ='VE Alt. Summary'!C26 -> 7609062.5
B5: Number of Ideas Generated | C5: ='Idea Evaluation'!B202 -> 37 | E5: Total Potential Life-Cycle Cost Savings | F5: ='VE Alt. Summary'!D26 -> 7530871.04
E6: Total Potential Schedule Savings | F6: =CONCATENATE('VE Alt. Summary'!E26," ",'VE Alt. Summary'!E5) -> -3 Months

Sheet Project Issues (hidden)
B1: ='Project Scope'!C6 -> Davis Road Bridge Replacement
B2: PROJECT ISSUES
B4: For each of the categories below, enter the key drivers, constraints, or issues being addressed by the project, or risks faced by the project, and considered during this VE study to identify possible improvements
B6: Project Issues
B7: 1 | C7: Steelhead in-water work window (assumed June – October).
B8: 2 | C8: Riparian in-water work window (assumed June 15 – October 15).
B9: 3 | C9: Liquefaction and extent of borings.
B10: 4 | C10: Phasing: Could we entertain phasing project elements to meet project funding constraints?
B11: 5 | C11: Archaeological Sites: There are several documented archaeological sites in the vicinity of the project.
B12: 6 | C12: Noise Impacts: There is a sensitive noise receptor that will be impacted.
B13: 7 | C13: Seasonal Flooding: Potential for flooding on roadway segment between Foster and Blanco.
B14: 8 | C14: Farmers vs. Bikes: Issues with farming access and conflicts with bicycle traffic.
B15: 9 | C15: Multimodal Corridor: Bikes and busses, bus bypass (right turn) at Blanco & Davis.
B16: 10
B17: 11
B18: 12
B19: 13
B20: 14
B21: 15
B22: 16
B23: 17
B24: 18
B25: 19
B26: 20
B27: 21
B28: 22
B29: 23
B30: 24
B31: 25
B32: 26
B33: 27
B34: 28
B35: 29
B36: 30
B38: Site Visit Observations
B39: 1
B40: 2
B41: 3
B42: 4
B43: 5
B44: 6
B45: 7
B46: 8
B47: 9
B48: 10
B50: Risks
B51: 1
B52: 2
B53: 3
B54: 4
B55: 5
B56: 6
B57: 7
B58: 8
B59: 9
B60: 10

Sheet Cost Model (hidden)
B1: ='Project Scope'!C6 -> Davis Road Bridge Replacement
B2: PARETO COST MODEL
B4: After entering all major cost elements and costs, click on the the sort drop down menu, uncheck the "Blanks" box, and sort the Cost column from "largest to smallest" to properly display the Pareto Chart on the following tab.
B6: Cost Item | C6: Cost | D6: % of Total | E6: Cumulative %
B7: Bridge | C7: 35540000 | D7: =C7/$C$33 -> 0.6259185474 | E7: =IF(Table431[[#This Row],[Cost]], (SUM($D$7:D7)), #N/A) -> 0.6259185474
B8: Structural Section | C8: 6944630 | D8: 0.1223064919 | E8: =IF(Table431[[#This Row],[Cost]], (SUM($D$7:D8)), #N/A) -> 0.7482250392
B9: Right-of-Way | C9: 4391405 | D9: 0.07733995043 | E9: =IF(Table431[[#This Row],[Cost]], (SUM($D$7:D9)), #N/A) -> 0.8255649897
B10: Earthwork | C10: 2977510 | D10: 0.05243890641 | E10: =IF(Table431[[#This Row],[Cost]], (SUM($D$7:D10)), #N/A) -> 0.8780038961
B11: Contingency | C11: 2021898 | D11: 0.03560898872 | E11: =IF(Table431[[#This Row],[Cost]], (SUM($D$7:D11)), #N/A) -> 0.9136128848
B12: Traffic Items | C12: 1478000 | D12: 0.02603003976 | E12: =IF(Table431[[#This Row],[Cost]], (SUM($D$7:D12)), #N/A) -> 0.9396429246
B13: Roadway Mobilization | C13: 673970 | D13: 0.01186973335 | E13: =IF(Table431[[#This Row],[Cost]], (SUM($D$7:D13)), #N/A) -> 0.9515126579
B14: Roadway Additions | C14: 673966 | D14: 0.01186966291 | E14: =IF(Table431[[#This Row],[Cost]], (SUM($D$7:D14)), #N/A) -> 0.9633823208
B15: Minor Items | C15: 641872 | D15: 0.01130443415 | E15: =IF(Table431[[#This Row],[Cost]], (SUM($D$7:D15)), #N/A) -> 0.974686755
B16: Landscaping | C16: 500000 | D16: 0.008805832124 | E16: =IF(Table431[[#This Row],[Cost]], (SUM($D$7:D16)), #N/A) -> 0.9834925871
B17: Type "D" Dike | C17: 441300 | D17: 0.007772027432 | E17: =IF(Table431[[#This Row],[Cost]], (SUM($D$7:D17)), #N/A) -> 0.9912646145
B18: Drainage | C18: 250000 | D18: 0.004402916062 | E18: =IF(Table431[[#This Row],[Cost]], (SUM($D$7:D18)), #N/A) -> 0.9956675306
B19: Specialty Items | C19: 146000 | D19: 0.00257130298 | E19: =IF(Table431[[#This Row],[Cost]], (SUM($D$7:D19)), #N/A) -> 0.9982388336
B20: Perm. Erosion Control | C20: 100000 | D20: 0.001761166425 | E20: =IF(Table431[[#This Row],[Cost]], (SUM($D$7:D20)), #N/A) -> 1
D21: 0 | E21: =IF(Table431[[#This Row],[Cost]], (SUM($D$7:D21)), #N/A) -> 
D22: 0 | E22: =IF(Table431[[#This Row],[Cost]], (SUM($D$7:D22)), #N/A) -> 
D23: 0 | E23: =IF(Table431[[#This Row],[Cost]], (SUM($D$7:D23)), #N/A) -> 
D24: 0 | E24: =IF(Table431[[#This Row],[Cost]], (SUM($D$7:D24)), #N/A) -> 
D25: 0 | E25: =IF(Table431[[#This Row],[Cost]], (SUM($D$7:D25)), #N/A) -> 
D26: 0 | E26: =IF(Table431[[#This Row],[Cost]], (SUM($D$7:D26)), #N/A) -> 
D27: 0 | E27: =IF(Table431[[#This Row],[Cost]], (SUM($D$7:D27)), #N/A) -> 
D28: 0 | E28: =IF(Table431[[#This Row],[Cost]], (SUM($D$7:D28)), #N/A) -> 
D29: 0 | E29: =IF(Table431[[#This Row],[Cost]], (SUM($D$7:D29)), #N/A) -> 
D30: 0 | E30: =IF(Table431[[#This Row],[Cost]], (SUM($D$7:D30)), #N/A) -> 
D31: 0 | E31: =IF(Table431[[#This Row],[Cost]], (SUM($D$7:D31)), #N/A) -> 
D32: 0 | E32: =IF(Table431[[#This Row],[Cost]], (SUM($D$7:D32)), #N/A) -> 
B33: TOTAL | C33: =SUM(C7:C32) -> 56780551 | D33: =C33/$C$33 -> 1 | E33: =SUM(D7:D32) -> 1

Sheet Pareto Chart (hidden)
B1: ='Project Scope'!C6 -> Davis Road Bridge Replacement
B2: PARETO COST CHART

Sheet Function Analysis (hidden)
B1: ='Project Scope'!C6 -> Davis Road Bridge Replacement
B2: FUNCTION ANALYSIS - RANDOM FUNCTION IDENTIFICATION
B4: 1) List multiple functions by projecxt element. 2) Determine the function type using the drop down menus. 3) Identify which functions to include in the subsequent cost-function analysis. Be sure to select either yes or no for all functions to ensure they properly populate the Cost-Function Matrix.
M5: Yes
B6: Cost-Function? (y/n) | C6: Project Element | D6: Function (Verb + Noun) | E6: Function Type | M6: No
B7: No | C7: Need | D7: Minimize Closure | E7: Higher Order
B8: No | C8: Purpose | D8: Increase Capacity | E8: Basic
B9: No | C9: Need | D9: Improve Operations | E9: Higher Order
B10: Yes | C10: Purpose | D10: Separate Grades | E10: Basic
B11: No | C11: Need | D11: Improve Safety | E11: Higher Order
B12: No | C12: Purpose | D12: Control Access | E12: Basic
B13: No | C13: Purpose | D13: Channel Traffic | E13: Basic
B14: No | C14: Bridge | D14: Clear Obstruction | E14: Secondary
B15: Yes | C15: Bridge | D15: Maintain Conveyance | E15: Secondary
B16: No | C16: Bridge | D16: Maintain Compliance | E16: Secondary
B17: No | C17: Bridge | D17: Avoid Delays | E17: Secondary
B18: Yes | C18: Bridge X-Section | D18: Convey Traffic | E18: Secondary
B19: Yes | C19: Bridge X-Section | D19: Convey Bicycles | E19: Secondary
B20: Yes | C20: Bridge X-Section | D20: Buffer Traffic | E20: Secondary
B21: No | C21: Bridge X-Section | D21: Convey Pedestrians | E21: Secondary
B22: Yes | C22: Superstructure | D22: Transfer Load | E22: Secondary
B23: Yes | C23: Substructure | D23: Resist Forces | E23: Secondary
B24: No | C24: Substructure | D24: Raise Grade | E24: Secondary
B25: Yes | C25: Substructure | D25: Accommodate Debris | E25: Secondary
B26: No | C26: Substructure | D26: Transfer Load | E26: Secondary
B27: Yes | C27: Substructure | D27: Enhance Aesthetics | E27: Secondary
B28: No | C28: Foundations | D28: Transfer Load | E28: Secondary
B29: No | C29: Foundations | D29: Resist Seismic | E29: Secondary
B30: Yes | C30: Foundations | D30: Resist Scour | E30: Secondary
B31: Yes | C31: Foundations | D31: Resist Liquefaction | E31: Secondary
B32: Yes | C32: Bike Railing | D32: Separate Traffic | E32: Secondary
B33: No | C33: Roadway X-Section | D33: Maintain Capacity | E33: Secondary
B34: No | C34: Roadway X-Section | D34: Increase Capacity | E34: Secondary
B35: No | C35: Roadway X-Section | D35: Convey Traffic | E35: Secondary
B36: No | C36: Roadway X-Section | D36: Convey Bicycles | E36: Secondary
B37: No | C37: Roadway X-Section | D37: Buffer Traffic | E37: Secondary
B38: No | C38: Pavement Section | D38: Support Load | E38: Secondary
B39: Yes | C39: Right of Way | D39: Accommodate Footprint | E39: Secondary
B40: Yes | C40: Contingency | D40: Accommodate Risk | E40: Secondary
B41: Yes | C41: Dikes | D41: Capture Runoff | E41: Secondary
B42: Yes | C42: Ditches | D42: Infiltrate Runoff | E42: Secondary
B43: Yes | C43: Ditches | D43: Convey Runoff | E43: Secondary
B44: Yes | C44: Landscaping | D44: Mitigate Impacts | E44: Secondary
B45: Yes | C45: Traffic Items | D45: Control Traffic | E45: Secondary
B46: Yes | C46: Roadway X-Section | D46: Create Refuge | E46: Secondary
B47: Yes | C47: Mobilization | D47: Stage Construction | E47: Secondary

Sheet Function Library (hidden)
B1: ='Project Scope'!C6 -> Davis Road Bridge Replacement
B2: LIST OF COMMON FUNCTIONS FOR TRANSPORTATION PROJECTS
B4: Transportation Project Elements | C4: Functions | D4: Notes
B5: Project Need (Higher-Order) | C5: Improve Mobility | D5: Transportation projects that are focused on improving the efficiency and/or safety of transporting vehicles, bicycles, and pedestrians
C6: Improve Livability | D6: Transportation projects that are focused on addressing livability impacts (such as noise, visual, etc.)
C7: Improve Environment | D7: Transportation projects that are focused on addressing environmental impacts (such as water quality, biological impacts, etc.)
C8: Improve Sustainability | D8: Transportation projects that are focused on improving the longevity and maintainability of the transportation system
B9: Project Purpose (Basic) or Design Objectives | C9: Improve Operations | D9: Transportation project elements designed to improve traffic operations
C10: Improve Safety | D10: Transportation project elements designed to improve safety for vehicles / bicycles / pedestrians / maintenance
C11: Reduce Impacts | D11: Transportation project elements designed to eliminate or reduce collateral impacts
C12: Improve Maintainability | D12: Transportation project elements designed to improve long term maintainability of the transportation system
C13: Improve Reliability | D13: Transportation project elements designed to improve the long term reliability of the transportation system (such as seismic resiliency)
C14: Connect Regions | D14: Transportation project elements designed to improve the connectivity of the transportation system (such as new routes or bypasses)
B15: HOV Lane (New) | C15: Incentivize Behavior | D15: HOV lanes are designed to encourage ride sharing
C16: Convey Traffic | D16: Increase Level of Service (LOS) = Volume/Capacity
C17: Increase Capacity | D17: New capacity added
C18: Create Capacity | D18: The manner in which the capacity is increased
B19: HOV Lane (Existing) | C19: Incentivize Behavior | D19: Benefit of adding an HOV Lane
C20: Convey Traffic | D20: Increase Level of Service (LOS) = Volume/Capacity
C21: Improve Capacity | D21: Increased capacity through widening: vehicles / hour
C22: Increase Width | D22: The manner in which existing HOV lanes may be improved
C23: Reduce Width | D23: The manner in which existing lanes may be degraded (i.e., in order to add an extra lane within an existing cross-section)
B24: HOV Lane Buffer (New/Existing) | C24: Separate Traffic | D24: Width of buffer
C25: Delineate Traffic | D25: Striping
B26: Site Grading / Earthwork | C26: Establish Grade | D26: Site grading allows the roadway finish elevation to be set.
C27: Convey Runoff | D27: Cross slopes allow positive roadway drainage.
C28: Prepare Grade | D28: Grading compacts soil and provides a homogenous surface for pavement.
B29: Pavement Structural Section | C29: Support Load | D29: The vehicle loading the pavement is rated for
C30: Improve Surface | D30: Relates to ride quality
B31: Striping | C31: Delineate Traffic | D31: Lane striping
C32: Identify Boundary | D32: Shoulder striping / fog lines
B33: Multi-Purpose Lane (New) | C33: Increase Capacity | D33: New capacity added: vehicles / hour
C34: Create Capacity | D34: The manner in which the capacity is increased
B35: Drainage Facilities | C35: Convey Runoff | D35: Gutters and storm drainage pipes convey runoff
C36: Collect Runoff | D36: Crubs, gutters and catch basins collect runoff
C37: Store Runoff | D37: Detention basins, ditches, and bioswales store runoff
C38: Treat Runoff | D38: Bioswales and settling basins treat runoff, usually through infiltration
B39: Multi-Purpose Lane (Existing) | C39: Improve Capacity | D39: Increased capacity through widening: vehicles / hour
C40: Increase Width | D40: The manner in which existing lanes may be improved
C41: Reduce Width | D41: The manner in which existing lanes may be degraded (i.e., in order to add an extra lane within an existing cross-section)
B42: Shoulder (New/Existing) | C42: Permit Recovery | D42: Shoulders are part of the clear zone and allow space for errant vehicles to recover
C43: Create Refuge | D43: Shoulders can be used as a vehicle pull-out
C44: Maintain Traffic | D44: Shoulders of sufficient width can all traffic operations to be maintained
C45: Bypass Obstructions | D45: Shoulders can be design to allow for the diversion of traffic
C46: Increase Width | D46: The manner in which existing shoulders may be improved
C47: Reduce Width | D47: The manner in which existing shoulders may be degraded (i.e., in order to add an extra lane within an existing cross-section)
B48: Clear Zone | C48: Permit Recovery | D48: The total roadside border area, starting at the edge of the traveled way, available for safe use by errant vehicles.
C49: Remove Obstacles | D49: Required to create a clear zone
B50: Side Slope (Recoverable) | C50: Permit Recovery | D50: 4:1 side slopes or better
C51: Match Grades | D51: Required to connect the top and bottom of a slope
C52: Increase Footprint | D52: The additional area needed to accommodate the slope (unwanted)
B53: Side Slope (Traversable) | C53: Prevent Accident | D53: 3:1 to 4:1 side slope prevents vehicle roll-over
C54: Match Grades | D54: Required to connect the top and bottom of a slope
C55: Increase Footprint | D55: The additional area needed to accommodate the slope (unwanted)
B56: Traffic Barrier | C56: Separate Flow | D56: Median barrier
C57: Deflect Force | D57: Structural rating of the barrier
C58: Reduce Glare | D58: Additional height of median barrier and/or glare deflectors
B59: Ramps (New) | C59: Create Access | D59: The benefit of adding a on/off ramp
C60: Increase Capacity | D60: The benefit of additional capacity created on the route where access is egressing from
C61: Reduce Capacity | D61: The negative effect caused by introducing a weave/merge movement
C62: Increase Footprint | D62: The additional area needed to accommodate the ramps (unwanted)
B63: Ramps (Existing) | C63: Improve Access | D63: Ramp widening or other improvements to existing ramp
C64: Increase Capacity | D64: The benefit of additional capacity created on the route where access is egressing from
C65: Reduce Capacity | D65: The negative effect caused by introducing a weave/merge movement
C66: Increase Footprint | D66: The additional area needed to accommodate the ramps (unwanted)
B67: Intersection / Interchange (see individual elements) | C67: Channel Traffic | D67: Turn lanes / pockets
C68: Control Traffic | D68: Traffic Signals
C69: Regulate Traffic | D69: Traffic signal interconnects / synchronization
B70: Sound Walls | C70: Mitigate Noise | D70: Primary purpose of a sound wall
C71: Resist Force | D71: Wind and/or vehicle loading
C72: Restrict View | D72: Could be either a wanted or unwanted function of a sound wall
B73: Landscaping | C73: Enhance Aesthetics | D73: Landscaping enhances roadsie aesthetics
C74: Irrigate Vegetation | D74: Irrigation systems maintain landscaping
C75: Reduce Erosion | D75: Roadside planting stabilize slopes and reduce erosion
B76: Retaining Wall | C76: Reduce Footprint | D76: Retaining walls are often used to reduce right-of-way impacts in lieu of using a slope
C77: Support Load | D77: Retaining walls may be used to support other transportation elements such as shoulders or travel lanes
C78: Match Grades | D78: A Retaining wall may be used to match grades in lieu of a slope
C79: Enhance Appearance | D79: Retaining walls often include an aesthetic element
B80: Overcrossing / Bridge (New) | C80: Separate Traffic | D80: Overcrossings eliminate the need for intersections
C81: Separate Grades | D81: Overcorssings physically separate grades (e.g., over/under)
C82: Bypass Obstructions | D82: Bridges can be used to carry traffic over natural and man-made barriers such as rivers, ravines, highways, or railroads.
C83: Match Grades | D83: Approaches match a lower grade to a higher grade
C84: Support Load | D84: Structures support / transfer vehicle loads to the ground
C85: Increase Capacity | D85: Separating grades generall leads to increases system capacity
B86: Miscellaneous | C86: Stage Construction | D86: The function of all activities needed to construct the project (one time function)
C87: Manage Risk | D87: A project objective - usually captured in project cost estimates as a design or construction contingency.
C88: Deliver Project | D88: The actions related to designing, analzyng, managing and supporting a project (one time function)
C89: Enhance Aesthetics | D89: Numerous project features are designed and constructed to improve project aesthetics. These could include the use of decorative form liners on walls and bridges, decorative pavers, colored concrete, scultpure, signage, column flares, etc.
C90: Manage Traffic | D90: Traffic management during construction (e.g., detours, flaggers, etc.)
C91: Accommodate Footprint | D91: Right of way and construction easement acquisition (one time function)
B92: Inputs (Lower Order) | C92: Introduce Traffic | D92: Some form of traffic (vehicle, pedestrian, bicycle) is introduced into the facility
C93: Supply Data | D93: Data is supplied to the facility (telemetry, telecom, etc.)
C94: Obtain Property | D94: Additional Right-of-Way required to accommodate the project footprint
C95: Supply Power | D95: Power is supplied to the facility (lighting, signals, signage, etc.)
C96: Receive Water | D96: Rain, run-off, or some for of water flow is received

Sheet Cost-Function Matrix (hidden)
B1: ='Project Scope'!C6 -> Davis Road Bridge Replacement
B2: COST-FUNCTION MATRIX
C5: The Cost Model populates the project cost information on this sheet. Please be sure to fill this out to use the Cost-Function Matrix properly. Once the matrix has been populated by cost data and functions, distribute the costs amongst the relevant functions for each project element. | E5: FUNCTION - Active Verb / Measurable Noun
E6: Select the functions you want to include on the Function Analysis tab. | F6: ='Function Tables'!C2 -> Separate Grades | G6: ='Function Tables'!C3 -> Maintain Conveyance | H6: ='Function Tables'!C4 -> Convey Traffic | I6: ='Function Tables'!C5 -> Convey Bicycles | J6: ='Function Tables'!C6 -> Buffer Traffic | K6: ='Function Tables'!C7 -> Transfer Load | L6: ='Function Tables'!C8 -> Resist Forces | M6: ='Function Tables'!C9 -> Accommodate Debris | N6: ='Function Tables'!C10 -> Enhance Aesthetics | O6: ='Function Tables'!C11 -> Resist Scour | P6: ='Function Tables'!C12 -> Resist Liquefaction | Q6: ='Function Tables'!C13 -> Separate Traffic | R6: ='Function Tables'!C14 -> Accommodate Footprint | S6: ='Function Tables'!C15 -> Accommodate Risk | T6: ='Function Tables'!C16 -> Capture Runoff | U6: ='Function Tables'!C17 -> Infiltrate Runoff | V6: ='Function Tables'!C18 -> Convey Runoff | W6: ='Function Tables'!C19 -> Mitigate Impacts | X6: ='Function Tables'!C20 -> Control Traffic | Y6: ='Function Tables'!C21 -> Create Refuge | Z6: ='Function Tables'!C22 -> Stage Construction
B7: Percent of Resource Allocation | C7: PROJECT ELEMENT | D7: ELEMENT COST | E7: TOTAL | F7: =SUMPRODUCT($E$8:$E$33,F8:F33) -> 11267008 | G7: =SUMPRODUCT($E$8:$E$33,G8:G33) -> 3909400 | H7: 10250873.46 | I7: 574278.88 | J7: 2048988.18 | K7: 4620200 | L7: 4620200 | M7: 1421600 | N7: 710800 | O7: 0 | P7: 0 | Q7: =SUMPRODUCT($E$8:$E$33,Q8:Q33) -> 147800 | R7: 4391405 | S7: 2021898 | T7: 220650 | U7: 187500 | V7: 878652 | W7: 600000 | X7: 1108500 | Y7: 3879097.48 | Z7: 3921700
B8: =SUM(F8:Z8) -> 1 | C8: ='Cost Model'!B7 -> Bridge | D8: ='Cost Model'!C7 -> 35540000 | E8: =(F8*D8)+(G8*D8)+(H8*D8)+(I8*D8)+(J8*D8)+(K8*D8)+(L8*D8)+(M8*D8)+(N8*D8)+(O8*D8)+(P8*D8)+(Q8*D8)+(R8*D8)+(S8*D8)+(T8*D8)+(U8*D8)+(V8*D8)+(W8*D8)+(X8*D8)+(Y8*D8)+(Z8*D8) -> 35540000 | F8: 0.25 | G8: 0.11 | H8: 0.12 | I8: =0.35/35 -> 0.01 | J8: 0.03 | K8: =8%+((7*0.25)/35) -> 0.13 | L8: =2.8/35+((0.25*7)/35) -> 0.13 | M8: =(0.2*7)/35 -> 0.04 | N8: =0.7/35 -> 0.02 | Y8: 0.06 | Z8: 0.1
B9: =SUM(F9:Z9) -> 1 | C9: ='Cost Model'!B8 -> Structural Section | D9: ='Cost Model'!C8 -> 6944630 | E9: =(F9*D9)+(G9*D9)+(H9*D9)+(I9*D9)+(J9*D9)+(K9*D9)+(L9*D9)+(M9*D9)+(N9*D9)+(O9*D9)+(P9*D9)+(Q9*D9)+(R9*D9)+(S9*D9)+(T9*D9)+(U9*D9)+(V9*D9)+(W9*D9)+(X9*D9)+(Y9*D9)+(Z9*D9) -> 6944630 | H9: 0.67 | J9: 0.11 | Y9: 0.22
B10: 1 | C10: ='Cost Model'!B9 -> Right-of-Way | D10: ='Cost Model'!C9 -> 4391405 | E10: 4391405 | R10: 1
B11: 1 | C11: ='Cost Model'!B10 -> Earthwork | D11: ='Cost Model'!C10 -> 2977510 | E11: 2977510 | F11: 0.8 | V11: 0.2
B12: 1 | C12: ='Cost Model'!B11 -> Contingency | D12: ='Cost Model'!C11 -> 2021898 | E12: 2021898 | S12: 1
B13: 1 | C13: ='Cost Model'!B12 -> Traffic Items | D13: ='Cost Model'!C12 -> 1478000 | E13: 1478000 | Q13: 0.1 | X13: 0.75 | Z13: 0.15
B14: 1 | C14: ='Cost Model'!B13 -> Roadway Mobilization | D14: ='Cost Model'!C13 -> 673970 | E14: 673970 | H14: 0.67 | I14: 0.11 | J14: 0.11 | Y14: 0.11
B15: 1 | C15: ='Cost Model'!B14 -> Roadway Additions | D15: ='Cost Model'!C14 -> 673966 | E15: 673966 | H15: 0.67 | I15: 0.11 | J15: 0.11 | Y15: 0.11
B16: 1 | C16: ='Cost Model'!B15 -> Minor Items | D16: ='Cost Model'!C15 -> 641872 | E16: 641872 | H16: 0.67 | I16: 0.11 | J16: 0.11 | Y16: 0.11
B17: 1 | C17: ='Cost Model'!B16 -> Landscaping | D17: ='Cost Model'!C16 -> 500000 | E17: 500000 | W17: 1
B18: 1 | C18: ='Cost Model'!B17 -> Type "D" Dike | D18: ='Cost Model'!C17 -> 441300 | E18: 441300 | T18: 0.5 | V18: 0.5
B19: 1 | C19: ='Cost Model'!B18 -> Drainage | D19: ='Cost Model'!C18 -> 250000 | E19: 250000 | U19: 0.75 | V19: 0.25
B20: 1 | C20: ='Cost Model'!B19 -> Specialty Items | D20: ='Cost Model'!C19 -> 146000 | E20: 146000 | Z20: 1
B21: 1 | C21: ='Cost Model'!B20 -> Perm. Erosion Control | D21: ='Cost Model'!C20 -> 100000 | E21: 100000 | W21: 1
B22: 0 | C22: ='Cost Model'!B21 -> 0 | D22: ='Cost Model'!C21 -> 0 | E22: 0
B23: 0 | C23: ='Cost Model'!B22 -> 0 | D23: ='Cost Model'!C22 -> 0 | E23: 0
B24: 0 | C24: ='Cost Model'!B23 -> 0 | D24: ='Cost Model'!C23 -> 0 | E24: 0
B25: 0 | C25: ='Cost Model'!B24 -> 0 | D25: ='Cost Model'!C24 -> 0 | E25: 0
B26: 0 | C26: ='Cost Model'!B25 -> 0 | D26: ='Cost Model'!C25 -> 0 | E26: 0
B27: 0 | C27: ='Cost Model'!B26 -> 0 | D27: ='Cost Model'!C26 -> 0 | E27: 0
B28: 0 | C28: ='Cost Model'!B27 -> 0 | D28: ='Cost Model'!C27 -> 0 | E28: 0
B29: 0 | C29: ='Cost Model'!B28 -> 0 | D29: ='Cost Model'!C28 -> 0 | E29: 0
B30: 0 | C30: ='Cost Model'!B29 -> 0 | D30: ='Cost Model'!C29 -> 0 | E30: 0
B31: 0 | C31: ='Cost Model'!B30 -> 0 | D31: ='Cost Model'!C30 -> 0 | E31: 0
B32: 0 | C32: ='Cost Model'!B31 -> 0 | D32: ='Cost Model'!C31 -> 0 | E32: 0
B33: 0 | C33: ='Cost Model'!B32 -> 0 | D33: ='Cost Model'!C32 -> 0 | E33: 0
C34: RESOURCE TOTALS | D34: =SUM(D8:D33) -> 56780551 | E34: =SUM(E8:E33) -> 56780551 | F34: =SUMPRODUCT($E$8:$E$33,F8:F33) -> 11267008 | G34: 3909400 | H34: 10250873.46 | I34: 574278.88 | J34: 2048988.18 | K34: 4620200 | L34: 4620200 | M34: 1421600 | N34: 710800 | O34: 0 | P34: 0 | Q34: 147800 | R34: 4391405 | S34: 2021898 | T34: 220650 | U34: 187500 | V34: 878652 | W34: 600000 | X34: 1108500 | Y34: 3879097.48 | Z34: 3921700
C36: FUNCTION - PERCENTAGE: | E36: 1 | F36: =IF($E$34=0,0,F34/$E34) -> 0.198430762 | G36: =IF($E$34=0,0,G34/$E34) -> 0.06885104021 | H36: 0.1805349416 | I36: 0.01011400682 | J36: 0.03608609187 | K36: 0.08136941116 | L36: 0.08136941116 | M36: 0.02503674189 | N36: 0.01251837095 | O36: 0 | P36: 0 | Q36: 0.002603003976 | R36: 0.07733995043 | S36: 0.03560898872 | T36: 0.003886013716 | U36: 0.003302187046 | V36: 0.01547452401 | W36: 0.01056699855 | X36: 0.01952252982 | Y36: 0.0683173624 | Z36: =SUM(F36:Y36) -> 0.9309323363

Sheet FAST Diagram (hidden)
C1: ='Project Scope'!C6 -> Davis Road Bridge Replacement
C2: FAST Diagram
D5: HOW? | BC5: WHY?

Sheet Function Prioritization (hidden)
B1: ='Project Scope'!C6 -> Davis Road Bridge Replacement
B2: FUNCTION PRIORITIZATION
B4: Creativity? (y/n) | C4: Function | D4: Function Cost ($) | E4: Schedule Critical? | F4: Performance Critical? | G4: Risk Critical?
B5: Yes | C5: ='Cost-Function Matrix'!F$6 -> Separate Grades | D5: ='Cost-Function Matrix'!F$34 -> 11267008 | E5: High | F5: High | G5: High
B6: Yes | C6: ='Cost-Function Matrix'!G$6 -> Maintain Conveyance | D6: ='Cost-Function Matrix'!G$34 -> 3909400 | E6: High | F6: Medium | G6: High
B7: Yes | C7: ='Cost-Function Matrix'!H$6 -> Convey Traffic | D7: ='Cost-Function Matrix'!H$34 -> 10250873.46 | E7: Low | F7: High | G7: Medium
B8: Yes | C8: ='Cost-Function Matrix'!I$6 -> Convey Bicycles | D8: ='Cost-Function Matrix'!I$34 -> 574278.88 | E8: Low | F8: High | G8: Low
C9: ='Cost-Function Matrix'!J$6 -> Buffer Traffic | D9: ='Cost-Function Matrix'!J$34 -> 2048988.18 | E9: Low | F9: Low | G9: Low
B10: Yes | C10: ='Cost-Function Matrix'!K$6 -> Transfer Load | D10: ='Cost-Function Matrix'!K$34 -> 4620200 | E10: Medium | F10: Medium | G10: Low
C11: ='Cost-Function Matrix'!L$6 -> Resist Forces | D11: ='Cost-Function Matrix'!L$34 -> 4620200 | E11: Medium | F11: Medium | G11: Low
B12: Yes | C12: ='Cost-Function Matrix'!M$6 -> Accommodate Debris | D12: ='Cost-Function Matrix'!M$34 -> 1421600 | E12: Low | F12: Low | G12: Low
C13: ='Cost-Function Matrix'!N$6 -> Enhance Aesthetics | D13: ='Cost-Function Matrix'!N$34 -> 710800 | E13: Low | F13: Low | G13: Low
C14: ='Cost-Function Matrix'!O$6 -> Resist Scour | D14: ='Cost-Function Matrix'!O$34 -> 0 | E14: Low | F14: Low | G14: Low
C15: ='Cost-Function Matrix'!P$6 -> Resist Liquefaction | D15: ='Cost-Function Matrix'!P$34 -> 0 | E15: Low | F15: Low | G15: Low
C16: ='Cost-Function Matrix'!Q$6 -> Separate Traffic | D16: ='Cost-Function Matrix'!Q$34 -> 147800 | E16: Low | F16: Low | G16: Low
C17: ='Cost-Function Matrix'!R$6 -> Accommodate Footprint | D17: ='Cost-Function Matrix'!R$34 -> 4391405 | E17: High | F17: Low | G17: High
C18: ='Cost-Function Matrix'!S$6 -> Accommodate Risk | D18: ='Cost-Function Matrix'!S$34 -> 2021898 | E18: High | F18: Medium | G18: High
C19: ='Cost-Function Matrix'!T$6 -> Capture Runoff | D19: ='Cost-Function Matrix'!T$34 -> 220650 | E19: Low | F19: Low | G19: Low
C20: ='Cost-Function Matrix'!U$6 -> Infiltrate Runoff | D20: ='Cost-Function Matrix'!U$34 -> 187500 | E20: Low | F20: Low | G20: Low
C21: ='Cost-Function Matrix'!V$6 -> Convey Runoff | D21: ='Cost-Function Matrix'!V$34 -> 878652 | E21: Low | F21: Low | G21: Low
C22: ='Cost-Function Matrix'!W$6 -> Mitigate Impacts | D22: ='Cost-Function Matrix'!W$34 -> 600000 | E22: Medium | F22: Medium | G22: Medium
B23: Yes | C23: ='Cost-Function Matrix'!X$6 -> Control Traffic | D23: ='Cost-Function Matrix'!X$34 -> 1108500 | E23: Low | F23: High | G23: Low
C24: ='Cost-Function Matrix'!Y$6 -> Create Refuge | D24: ='Cost-Function Matrix'!Y$34 -> 3879097.48 | E24: Low | F24: Low | G24: Low
C25: ='Cost-Function Matrix'!Z$6 -> Stage Construction | D25: ='Cost-Function Matrix'!Z$34 -> 3921700 | E25: High | F25: Low | G25: Medium
C26: ='Function Tables'!C23 -> 
C27: ='Function Tables'!C24 -> 
C28: ='Function Tables'!C25 -> 
C29: ='Function Tables'!C26 -> 
C30: ='Function Tables'!C27 -> 
C31: ='Function Tables'!C28 -> 
C32: ='Function Tables'!C29 -> 
C33: ='Function Tables'!C30 -> 
C34: ='Function Tables'!C31 -> 
C35: ='Function Tables'!C32 -> 
C36: ='Function Tables'!C33 -> 
C37: ='Function Tables'!C34 -> 
C38: ='Function Tables'!C35 -> 
C39: ='Function Tables'!C36 -> 
C40: ='Function Tables'!C37 -> 
C41: ='Function Tables'!C38 -> 
C42: ='Function Tables'!C39 -> 
C43: ='Function Tables'!C40 -> 
C44: ='Function Tables'!C41 -> 
C45: ='Function Tables'!C42 -> 
C46: ='Function Tables'!C43 -> 

Sheet Idea Evaluation (hidden)
A1: ='Project Scope'!C6 -> Davis Road Bridge Replacement
A2: IDEA EVALUATION
A4: Function | B4: Idea No. | C4: Idea | D4: Performance Attributes | L4: Legend | O4: Cost | P4: Schedule | Q4: Risk | R4: Rating | S4: Assigned To
D5: Traffic Operation | E5: Maintainability | F5: Operational Reliability | G5: Environmental Impacts | H5: =#REF! ->  | I5: =#REF! ->  | J5: =#REF! ->  | K5: =#REF! ->  | L5: + | M5: = Improved | N5: 7 = Major Value Improvement 6 = Moderate Value Improvement 5 = Minor Value Improvement 4 = Possible Value Improvement 3 = Design Consideration (No cost data developed) 2 = Moderate Value Degradation 1 = Major Value Degradation
L6: 0 | M6: = No Change
L7: – | M7: = Degraded
L11: Advantages | N11: Disadvantages | S11: Select Participant from Drop-Down List
A13: Maintain Conveyance | B13: 1 | C13: Enlarge channel to increase conveyance under the bridge; dredge the river | D13: 0 | E13: 0 | F13: – | G13: – | L13: Less bridge and more less expensive earth work. Improves hydraulic flow. | N13: Will likely require supplemental EIR/EIS and additional permits. Increase risk of obtaining permits and public outcry. Might require O&M funds to maintain channel. | O13: + | P13: + | Q13: – | R13: 3 | T13: =IF(#REF!=0,"",#REF!) ->  | U13: =IF($R$13>=3,(IF($R$13=3,"DS",$R$13))) -> DS | V13: =IF($R$13>=3,$A$13) -> Maintain Conveyance | W13: =IF($R$13>=3,$B$13) -> 1 | X13: =IF($R$13>=3,$C$13) -> Enlarge channel to increase conveyance under the bridge; dredge the river | Y13: =IF($R$13>=3,$S$13) -> 0
A14: Maintain Conveyance | B14: 2 | C14: Construct box culverts under roadway in lieu of bridge structure | D14: 0 | E14: 0 | F14: – | G14: – | L14: Reduces cost and time | N14: Greater impacts to floodway and habitat. This alternative would require improvements to the channel that would make it not feasible. | O14: + | P14: + | Q14: – | R14: 2 | T14: =IF(#REF!=0,"",#REF!) ->  | U14: =IF($R$14>=3,(IF($R$14=3,"DS",$R$14))) -> FALSE | V14: =IF($R$14>=3,$A$14) -> FALSE | W14: =IF($R$14>=3,$B$14) -> FALSE | X14: =IF($R$14>=3,$C$14) -> FALSE | Y14: =IF($R$14>=3,$S$14) -> FALSE
A15: Maintain Conveyance | B15: 3 | C15: Develop a letter of map revision to submit to FEMA to modify the floodplain | D15: 0 | E15: 0 | F15: 0 | G15: 0 | L15: This action will have to be considered with any alternative (including the baseline design) that modifies the floodway. | O15: 0 | P15: 0 | Q15: 0 | R15: 4 | T15: =IF(#REF!=0,"",#REF!) ->  | U15: =IF($R$15>=3,(IF($R$15=3,"DS",$R$15))) -> 4 | V15: =IF($R$15>=3,$A$15) -> Maintain Conveyance | W15: =IF($R$15>=3,$B$15) -> 3 | X15: =IF($R$15>=3,$C$15) -> Develop a letter of map revision to submit to FEMA to modify the floodplain | Y15: =IF($R$15>=3,$S$15) -> 0
A16: Maintain Conveyance | B16: 4 | C16: Have farmers remove their unpermitted fills to open up the floodplain again | D16: 0 | E16: 0 | F16: + | G16: – | L16: Improves hydraulic flow and would allow bridge to be shortened in length. | N16: Requires political action that will be difficult to enforce and likely result in litigation. | O16: + | P16: + | Q16: – | R16: 3 | T16: =IF(#REF!=0,"",#REF!) ->  | U16: =IF($R$16>=3,(IF($R$16=3,"DS",$R$16))) -> DS | V16: =IF($R$16>=3,$A$16) -> Maintain Conveyance | W16: =IF($R$16>=3,$B$16) -> 4 | X16: =IF($R$16>=3,$C$16) -> Have farmers remove their unpermitted fills to open up the floodplain again | Y16: =IF($R$16>=3,$S$16) -> 0
A17: Maintain Conveyance | B17: 5 | C17: Identify acceptable annual closure risk | D17: 0 | E17: 0 | F17: 0 | G17: 0 | L17: This needs to be done in order to get all stakeholders in alignment and avoid confusion. | O17: 0 | P17: 0 | Q17: 0 | R17: 5 | T17: =IF(#REF!=0,"",#REF!) ->  | U17: =IF($R$17>=3,(IF($R$17=3,"DS",$R$17))) -> 5 | V17: =IF($R$17>=3,$A$17) -> Maintain Conveyance | W17: =IF($R$17>=3,$B$17) -> 5 | X17: =IF($R$17>=3,$C$17) -> Identify acceptable annual closure risk | Y17: =IF($R$17>=3,$S$17) -> 0
A18: Maintain Conveyance | B18: 6 | C18: Remove vegetation in channel | D18: 0 | E18: 0 | F18: – | G18: + | L18: Similar to Idea #1. | O18: + | P18: + | Q18: – | R18: 2 | T18: =IF(#REF!=0,"",#REF!) ->  | U18: =IF($R$18>=3,(IF($R$18=3,"DS",$R$18))) -> FALSE | V18: =IF($R$18>=3,$A$18) -> FALSE | W18: =IF($R$18>=3,$B$18) -> FALSE | X18: =IF($R$18>=3,$C$18) -> FALSE | Y18: =IF($R$18>=3,$S$18) -> FALSE
A19: Maintain Conveyance | B19: 7 | C19: Build a bypass; divert the flow | D19: 0 | E19: 0 | F19: 0 | G19: – | L19: Could reduce the length of the bridge. | N19: Requires a new EIR/EIS. | R19: 1 | T19: =IF(#REF!=0,"",#REF!) ->  | U19: =IF($R$19>=3,(IF($R$19=3,"DS",$R$19))) -> FALSE | V19: =IF($R$19>=3,$A$19) -> FALSE | W19: =IF($R$19>=3,$B$19) -> FALSE | X19: =IF($R$19>=3,$C$19) -> FALSE | Y19: =IF($R$19>=3,$S$19) -> FALSE
A20: Maintain Conveyance | B20: 8 | C20: Build a reservoir (off-site storage) | D20: 0 | E20: 0 | F20: 0 | G20: – | L20: Could reduce the length of the bridge. | N20: There are already several existing reservoirs upstream of the new bridge. Building more would require a new EIR/EIS. | R20: 1 | T20: =IF(#REF!=0,"",#REF!) ->  | U20: =IF($R$20>=3,(IF($R$20=3,"DS",$R$20))) -> FALSE | V20: =IF($R$20>=3,$A$20) -> FALSE | W20: =IF($R$20>=3,$B$20) -> FALSE | X20: =IF($R$20>=3,$C$20) -> FALSE | Y20: =IF($R$20>=3,$S$20) -> FALSE
A21: Maintain Conveyance | B21: 9 | C21: Build two shorter bridges | D21: 0 | E21: 0 | F21: 0 | G21: – | N21: Similar to Idea #8. Requires a new EIR/EIS. | R21: 1 | T21: =IF(#REF!=0,"",#REF!) ->  | U21: =IF($R$21>=3,(IF($R$21=3,"DS",$R$21))) -> FALSE | V21: =IF($R$21>=3,$A$21) -> FALSE | W21: =IF($R$21>=3,$B$21) -> FALSE | X21: =IF($R$21>=3,$C$21) -> FALSE | Y21: =IF($R$21>=3,$S$21) -> FALSE
A22: Maintain Conveyance | B22: 10 | C22: Shorten length of bridge and divert the excess flow | D22: 0 | E22: 0 | F22: 0 | G22: – | L22: Could reduce the length of the bridge. | N22: Requires a new EIR/EIS. | R22: 1 | T22: =IF(#REF!=0,"",#REF!) ->  | U22: =IF($R$22>=3,(IF($R$22=3,"DS",$R$22))) -> FALSE | V22: =IF($R$22>=3,$A$22) -> FALSE | W22: =IF($R$22>=3,$B$22) -> FALSE | X22: =IF($R$22>=3,$C$22) -> FALSE | Y22: =IF($R$22>=3,$S$22) -> FALSE
A23: Maintain Conveyance | B23: 11 | C23: Cut the hydraulic flow down by adding dams | D23: 0 | E23: 0 | F23: 0 | G23: – | N23: This isn't technically possible within the current project scope. | R23: 1 | T23: =IF(#REF!=0,"",#REF!) ->  | U23: =IF($R$23>=3,(IF($R$23=3,"DS",$R$23))) -> FALSE | V23: =IF($R$23>=3,$A$23) -> FALSE | W23: =IF($R$23>=3,$B$23) -> FALSE | X23: =IF($R$23>=3,$C$23) -> FALSE | Y23: =IF($R$23>=3,$S$23) -> FALSE
A24: Maintain Conveyance | B24: 12 | C24: Raise roadway elevation of Davis Rd north of Foster Rd to create an all-season facility | D24: 0 | E24: 0 | F24: + | G24: 0 | L24: Places all of Davis Rd above the 100-year flood plain. | N24: Small cost increase to raise grade another foot or so. | O24: – | P24: 0 | Q24: + | R24: 7 | T24: =IF(#REF!=0,"",#REF!) ->  | U24: =IF($R$24>=3,(IF($R$24=3,"DS",$R$24))) -> 7 | V24: =IF($R$24>=3,$A$24) -> Maintain Conveyance | W24: =IF($R$24>=3,$B$24) -> 12 | X24: =IF($R$24>=3,$C$24) -> Raise roadway elevation of Davis Rd north of Foster Rd to create an all-season facility | Y24: =IF($R$24>=3,$S$24) -> 0
A25: Maintain Conveyance | B25: 13 | C25: Add irrigation channel to model | D25: 0 | E25: 0 | F25: 0 | G25: 0 | N25: Won't impact the hydraulic model significantly. | O25: 0 | P25: 0 | Q25: 0 | R25: 4 | T25: =IF(#REF!=0,"",#REF!) ->  | U25: =IF($R$25>=3,(IF($R$25=3,"DS",$R$25))) -> 4 | V25: =IF($R$25>=3,$A$25) -> Maintain Conveyance | W25: =IF($R$25>=3,$B$25) -> 13 | X25: =IF($R$25>=3,$C$25) -> Add irrigation channel to model | Y25: =IF($R$25>=3,$S$25) -> 0
A26: Maintain Conveyance | B26: 14 | C26: Consider clear spanning the channel with structure (e.g. cable stay) | D26: 0 | E26: 0 | F26: + | G26: – | N26: Far too expensive to consider. | O26: – | P26: – | Q26: – | R26: 4 | T26: =IF(#REF!=0,"",#REF!) ->  | U26: =IF($R$26>=3,(IF($R$26=3,"DS",$R$26))) -> 4 | V26: =IF($R$26>=3,$A$26) -> Maintain Conveyance | W26: =IF($R$26>=3,$B$26) -> 14 | X26: =IF($R$26>=3,$C$26) -> Consider clear spanning the channel with structure (e.g. cable stay) | Y26: =IF($R$26>=3,$S$26) -> 0
A27: Maintain Conveyance | B27: 15 | C27: Reduce bridge length and build cross culverts in bridge | D27: 0 | E27: 0 | F27: – | G27: – | L27: Similar to Idea #2. | R27: 2 | T27: =IF(#REF!=0,"",#REF!) ->  | U27: =IF($R$27>=3,(IF($R$27=3,"DS",$R$27))) -> FALSE | V27: =IF($R$27>=3,$A$27) -> FALSE | W27: =IF($R$27>=3,$B$27) -> FALSE | X27: =IF($R$27>=3,$C$27) -> FALSE | Y27: =IF($R$27>=3,$S$27) -> FALSE
A28: Maintain Conveyance | B28: 16 | C28: Widen existing structure over Salinas Channel | D28: 0 | E28: 0 | F28: 0 | G28: 0 | N28: Really doesn't solve the problem. Increases costs. | O28: – | P28: 0 | Q28: 0 | R28: 2 | T28: =IF(#REF!=0,"",#REF!) ->  | U28: =IF($R$28>=3,(IF($R$28=3,"DS",$R$28))) -> FALSE | V28: =IF($R$28>=3,$A$28) -> FALSE | W28: =IF($R$28>=3,$B$28) -> FALSE | X28: =IF($R$28>=3,$C$28) -> FALSE | Y28: =IF($R$28>=3,$S$28) -> FALSE
A29: Maintain Conveyance | B29: 17 | C29: Construct a new bridge at a 10-year flood | D29: 0 | E29: 0 | F29: – | G29: + | N29: The elevation of the top of the bridge needs to be at El. 38.5. Increases risk of seasonal road closures. | O29: + | P29: + | Q29: – | R29: 4 | T29: =IF(#REF!=0,"",#REF!) ->  | U29: =IF($R$29>=3,(IF($R$29=3,"DS",$R$29))) -> 4 | V29: =IF($R$29>=3,$A$29) -> Maintain Conveyance | W29: =IF($R$29>=3,$B$29) -> 17 | X29: =IF($R$29>=3,$C$29) -> Construct a new bridge at a 10-year flood | Y29: =IF($R$29>=3,$S$29) -> 0
A30: Maintain Conveyance | B30: 18 | C30: Construct a new bridge at a 25-year flood | D30: 0 | E30: 0 | F30: – | G30: + | L30: The elevation of the top of the bridge needs to be at el. 40; assume bridge would be made shorter in length. | N30: Increases risk of seasonal road closures, but not by that much. | O30: + | P30: + | Q30: – | R30: 5 | T30: =IF(#REF!=0,"",#REF!) ->  | U30: =IF($R$30>=3,(IF($R$30=3,"DS",$R$30))) -> 5 | V30: =IF($R$30>=3,$A$30) -> Maintain Conveyance | W30: =IF($R$30>=3,$B$30) -> 18 | X30: =IF($R$30>=3,$C$30) -> Construct a new bridge at a 25-year flood | Y30: =IF($R$30>=3,$S$30) -> 0
A31: Raise Grade | B31: 19 | C31: Consider flat slab bridge on piles | D31: 0 | E31: 0 | F31: + | G31: 0 | L31: Schedule, cost, and traffic maintenance would improve significantly. Reduces deck section depth and opens up hydraulic channel. | O31: + | P31: + | Q31: 0 | R31: 6 | T31: =IF(#REF!=0,"",#REF!) ->  | U31: =IF($R$31>=3,(IF($R$31=3,"DS",$R$31))) -> 6 | V31: =IF($R$31>=3,$A$31) -> Raise Grade | W31: =IF($R$31>=3,$B$31) -> 19 | X31: =IF($R$31>=3,$C$31) -> Consider flat slab bridge on piles | Y31: =IF($R$31>=3,$S$31) -> 0
A32: Raise Grade | B32: 20 | C32: Consider a pre-cast girder bridge with 125 ft spans | D32: 0 | E32: 0 | F32: 0 | G32: 0 | L32: Schedule, cost, and traffic maintenance would improve significantly. Reduces deck section depth and opens up hydraulic channel. | O32: + | P32: + | Q32: 0 | R32: 7 | T32: =IF(#REF!=0,"",#REF!) ->  | U32: =IF($R$32>=3,(IF($R$32=3,"DS",$R$32))) -> 7 | V32: =IF($R$32>=3,$A$32) -> Raise Grade | W32: =IF($R$32>=3,$B$32) -> 20 | X32: =IF($R$32>=3,$C$32) -> Consider a pre-cast girder bridge with 125 ft spans | Y32: =IF($R$32>=3,$S$32) -> 0
A33: Raise Grade | B33: 21 | C33: Shorten spans of bridge to +/- 100 feet with a precast structure | D33: 0 | E33: 0 | F33: + | G33: 0 | L33: Shorter spans will result in a shorter bridge and shallower girder depth. | O33: + | P33: + | Q33: 0 | R33: 7 | T33: =IF(#REF!=0,"",#REF!) ->  | U33: =IF($R$33>=3,(IF($R$33=3,"DS",$R$33))) -> 7 | V33: =IF($R$33>=3,$A$33) -> Raise Grade | W33: =IF($R$33>=3,$B$33) -> 21 | X33: =IF($R$33>=3,$C$33) -> Shorten spans of bridge to +/- 100 feet with a precast structure | Y33: =IF($R$33>=3,$S$33) -> 0
A34: Raise Grade | B34: 22 | C34: Shorten span of piers to 100 feet with a different pile type | L34: Same as Idea #22. | R34: 4 | T34: =IF(#REF!=0,"",#REF!) ->  | U34: =IF($R$34>=3,(IF($R$34=3,"DS",$R$34))) -> 4 | V34: =IF($R$34>=3,$A$34) -> Raise Grade | W34: =IF($R$34>=3,$B$34) -> 22 | X34: =IF($R$34>=3,$C$34) -> Shorten span of piers to 100 feet with a different pile type | Y34: =IF($R$34>=3,$S$34) -> 0
A35: Raise Grade | B35: 23 | C35: Consider a trestle bridge - Consider shortenting approach spans to 50 feet | L35: Same as Idea #19. | R35: 3 | T35: =IF(#REF!=0,"",#REF!) ->  | U35: =IF($R$35>=3,(IF($R$35=3,"DS",$R$35))) -> DS | V35: =IF($R$35>=3,$A$35) -> Raise Grade | W35: =IF($R$35>=3,$B$35) -> 23 | X35: =IF($R$35>=3,$C$35) -> Consider a trestle bridge - Consider shortenting approach spans to 50 feet | Y35: =IF($R$35>=3,$S$35) -> 0
A36: Raise Grade | B36: 24 | C36: Eliminate column flares | D36: 0 | E36: 0 | F36: 0 | G36: 0 | L36: Reduces costs; bridge substructure will not be visible to anyone so this feature adds no value. | O36: – | P36: 0 | Q36: 0 | R36: 5 | T36: =IF(#REF!=0,"",#REF!) ->  | U36: =IF($R$36>=3,(IF($R$36=3,"DS",$R$36))) -> 5 | V36: =IF($R$36>=3,$A$36) -> Raise Grade | W36: =IF($R$36>=3,$B$36) -> 24 | X36: =IF($R$36>=3,$C$36) -> Eliminate column flares | Y36: =IF($R$36>=3,$S$36) -> 0
A37: Control Traffic | B37: 25 | C37: Consider roundabout at Blanco/Davis | D37: – | E37: 0 | F37: 0 | G37: 0 | N37: Traffic modeling indicates that a roundabout will degrade LOS at this intersection. | O37: 0 | P37: 0 | Q37: 0 | R37: 2 | T37: =IF(#REF!=0,"",#REF!) ->  | U37: =IF($R$37>=3,(IF($R$37=3,"DS",$R$37))) -> FALSE | V37: =IF($R$37>=3,$A$37) -> FALSE | W37: =IF($R$37>=3,$B$37) -> FALSE | X37: =IF($R$37>=3,$C$37) -> FALSE | Y37: =IF($R$37>=3,$S$37) -> FALSE
A38: Control Traffic | B38: 26 | C38: Consider roundabout at Reservation/Davis | D38: – | E38: 0 | F38: 0 | G38: 0 | N38: Traffic modeling indicates that a roundabout will degrade LOS at this intersection. | O38: 0 | P38: 0 | Q38: 0 | R38: 2 | T38: =IF(#REF!=0,"",#REF!) ->  | U38: =IF($R$38>=3,(IF($R$38=3,"DS",$R$38))) -> FALSE | V38: =IF($R$38>=3,$A$38) -> FALSE | W38: =IF($R$38>=3,$B$38) -> FALSE | X38: =IF($R$38>=3,$C$38) -> FALSE | Y38: =IF($R$38>=3,$S$38) -> FALSE
A39: Control Traffic | B39: 27 | C39: Consider adding a free-flow right-turn at SB Davis to WB Reservation | D39: + | E39: 0 | F39: 0 | G39: 0 | L39: This would improve intersection LOS. | N39: Increase cost slightly. | O39: – | P39: 0 | Q39: 0 | R39: 5 | T39: =IF(#REF!=0,"",#REF!) ->  | U39: =IF($R$39>=3,(IF($R$39=3,"DS",$R$39))) -> 5 | V39: =IF($R$39>=3,$A$39) -> Control Traffic | W39: =IF($R$39>=3,$B$39) -> 27 | X39: =IF($R$39>=3,$C$39) -> Consider adding a free-flow right-turn at SB Davis to WB Reservation | Y39: =IF($R$39>=3,$S$39) -> 0
A40: Control Traffic | B40: 28 | C40: Extend EB storage capacity at Reservation Rd | D40: 0 | E40: 0 | F40: 0 | G40: 0 | N40: This idea is already being done in the project. | O40: 0 | P40: 0 | Q40: 0 | R40: 3 | T40: =IF(#REF!=0,"",#REF!) ->  | U40: =IF($R$40>=3,(IF($R$40=3,"DS",$R$40))) -> DS | V40: =IF($R$40>=3,$A$40) -> Control Traffic | W40: =IF($R$40>=3,$B$40) -> 28 | X40: =IF($R$40>=3,$C$40) -> Extend EB storage capacity at Reservation Rd | Y40: =IF($R$40>=3,$S$40) -> 0
A41: Control Traffic | B41: 29 | C41: Remove vegetation blocking free-right turn out of the Bluffs | D41: + | E41: 0 | F41: 0 | G41: 0 | L41: Removes visual obstructions for motorists at intersection. | N41: Increases costs. May require slope stabilization to control erosion. | O41: – | P41: 0 | Q41: 0 | R41: 4 | T41: =IF(#REF!=0,"",#REF!) ->  | U41: =IF($R$41>=3,(IF($R$41=3,"DS",$R$41))) -> 4 | V41: =IF($R$41>=3,$A$41) -> Control Traffic | W41: =IF($R$41>=3,$B$41) -> 29 | X41: =IF($R$41>=3,$C$41) -> Remove vegetation blocking free-right turn out of the Bluffs | Y41: =IF($R$41>=3,$S$41) -> 0
A42: Control Traffic | B42: 30 | C42: Increase horizontal sight distance along EB Reservation | D42: + | E42: 0 | F42: 0 | G42: 0 | L42: Improves stopping sight distance. | N42: Requires major cuts and retaining walls to accomplish this. | O42: – | P42: 0 | Q42: – | R42: 4 | T42: =IF(#REF!=0,"",#REF!) ->  | U42: =IF($R$42>=3,(IF($R$42=3,"DS",$R$42))) -> 4 | V42: =IF($R$42>=3,$A$42) -> Control Traffic | W42: =IF($R$42>=3,$B$42) -> 30 | X42: =IF($R$42>=3,$C$42) -> Increase horizontal sight distance along EB Reservation | Y42: =IF($R$42>=3,$S$42) -> 0
A43: Control Traffic | B43: 31 | C43: Realign intersection at Reservation and Davis Roads | D43: + | E43: 0 | F43: 0 | G43: – | L43: This alternative could significantly improve intersection operations. | N43: Increases cost and ROW takes. | O43: – | P43: 0 | Q43: 0 | R43: 6 | T43: =IF(#REF!=0,"",#REF!) ->  | U43: =IF($R$43>=3,(IF($R$43=3,"DS",$R$43))) -> 6 | V43: =IF($R$43>=3,$A$43) -> Control Traffic | W43: =IF($R$43>=3,$B$43) -> 31 | X43: =IF($R$43>=3,$C$43) -> Realign intersection at Reservation and Davis Roads | Y43: =IF($R$43>=3,$S$43) -> 0
A44: Control Traffic | B44: 32 | C44: Realign intersection of Davis Rd and Reservation Rd to favor mainflow traffic - Reservation Rd east of the existing intersection would "T" into the new alignment | L44: Can be combined with Idea #31. | R44: 4 | T44: =IF(#REF!=0,"",#REF!) ->  | U44: =IF($R$44>=3,(IF($R$44=3,"DS",$R$44))) -> 4 | V44: =IF($R$44>=3,$A$44) -> Control Traffic | W44: =IF($R$44>=3,$B$44) -> 32 | X44: =IF($R$44>=3,$C$44) -> Realign intersection of Davis Rd and Reservation Rd to favor mainflow traffic - Reservation Rd east of the existing intersection would "T" into the new alignment | Y44: =IF($R$44>=3,$S$44) -> 0
A45: Control Traffic | B45: 33 | C45: On-grade turn lanes for Ag houses; construct a dedicated left-turn lane between Blanco and Foster | D45: – | E45: – | F45: 0 | G45: 0 | N45: Creates concerns about increasing congestion and unsafe passing. | R45: 3 | T45: =IF(#REF!=0,"",#REF!) ->  | U45: =IF($R$45>=3,(IF($R$45=3,"DS",$R$45))) -> DS | V45: =IF($R$45>=3,$A$45) -> Control Traffic | W45: =IF($R$45>=3,$B$45) -> 33 | X45: =IF($R$45>=3,$C$45) -> On-grade turn lanes for Ag houses; construct a dedicated left-turn lane between Blanco and Foster | Y45: =IF($R$45>=3,$S$45) -> 0
A46: Control Traffic | B46: 34 | C46: Multi-modal bus turn from NB Davis to EB Blanco | D46: + | E46: 0 | F46: 0 | G46: 0 | L46: Improves bus transit oeprations. | N46: Small, additional cost. | O46: – | P46: 0 | Q46: 0 | R46: 5 | T46: =IF(#REF!=0,"",#REF!) ->  | U46: =IF($R$46>=3,(IF($R$46=3,"DS",$R$46))) -> 5 | V46: =IF($R$46>=3,$A$46) -> Control Traffic | W46: =IF($R$46>=3,$B$46) -> 34 | X46: =IF($R$46>=3,$C$46) -> Multi-modal bus turn from NB Davis to EB Blanco | Y46: =IF($R$46>=3,$S$46) -> 0
A47: Control Traffic | B47: 35 | C47: Eliminate private driveways for Ag houses on Davis | D47: + | E47: 0 | F47: 0 | G47: – | L47: Provides greater access control. | N47: May require frontage roads to maintain access to adjacent properties. | O47: – | P47: 0 | Q47: 0 | R47: 3 | T47: =IF(#REF!=0,"",#REF!) ->  | U47: =IF($R$47>=3,(IF($R$47=3,"DS",$R$47))) -> DS | V47: =IF($R$47>=3,$A$47) -> Control Traffic | W47: =IF($R$47>=3,$B$47) -> 35 | X47: =IF($R$47>=3,$C$47) -> Eliminate private driveways for Ag houses on Davis | Y47: =IF($R$47>=3,$S$47) -> 0
A48: Control Traffic | B48: 36 | C48: Construct flyover for EB Reservation to NB Davis movement | D48: + | E48: – | F48: 0 | G48: 0 | L48: Improves LOS at intersection. | N48: Prohibitively expensive. | O48: – | P48: – | Q48: 0 | R48: 1 | T48: =IF(#REF!=0,"",#REF!) ->  | U48: =IF($R$48>=3,(IF($R$48=3,"DS",$R$48))) -> FALSE | V48: =IF($R$48>=3,$A$48) -> FALSE | W48: =IF($R$48>=3,$B$48) -> FALSE | X48: =IF($R$48>=3,$C$48) -> FALSE | Y48: =IF($R$48>=3,$S$48) -> FALSE
A49: Control Traffic | B49: 37 | C49: On-grade turn lanes for Ag houses; construct a dedicated left-turn lane between Blanco and Hitchcock | D49: – | E49: – | F49: 0 | G49: 0 | N49: Increases cost. Encourages use of lane for passing and will likely increase congestion due to farm vehicles on the road. | O49: – | P49: 0 | Q49: 0 | R49: 3 | T49: =IF(#REF!=0,"",#REF!) ->  | U49: =IF($R$49>=3,(IF($R$49=3,"DS",$R$49))) -> DS | V49: =IF($R$49>=3,$A$49) -> Control Traffic | W49: =IF($R$49>=3,$B$49) -> 37 | X49: =IF($R$49>=3,$C$49) -> On-grade turn lanes for Ag houses; construct a dedicated left-turn lane between Blanco and Hitchcock | Y49: =IF($R$49>=3,$S$49) -> 0
T50: =IF(#REF!=0,"",#REF!) ->  | U50: =IF($R$50>=3,(IF($R$50=3,"DS",$R$50))) -> FALSE | V50: =IF($R$50>=3,$A$50) -> FALSE | W50: =IF($R$50>=3,$B$50) -> FALSE | X50: =IF($R$50>=3,$C$50) -> FALSE | Y50: =IF($R$50>=3,$S$50) -> FALSE
T51: =IF(#REF!=0,"",#REF!) ->  | U51: =IF($R$51>=3,(IF($R$51=3,"DS",$R$51))) -> FALSE | V51: =IF($R$51>=3,$A$51) -> FALSE | W51: =IF($R$51>=3,$B$51) -> FALSE | X51: =IF($R$51>=3,$C$51) -> FALSE | Y51: =IF($R$51>=3,$S$51) -> FALSE
T52: =IF(#REF!=0,"",#REF!) ->  | U52: =IF($R$52>=3,(IF($R$52=3,"DS",$R$52))) -> FALSE | V52: =IF($R$52>=3,$A$52) -> FALSE | W52: =IF($R$52>=3,$B$52) -> FALSE | X52: =IF($R$52>=3,$C$52) -> FALSE | Y52: =IF($R$52>=3,$S$52) -> FALSE
T53: =IF(#REF!=0,"",#REF!) ->  | U53: =IF($R$53>=3,(IF($R$53=3,"DS",$R$53))) -> FALSE | V53: =IF($R$53>=3,$A$53) -> FALSE | W53: =IF($R$53>=3,$B$53) -> FALSE | X53: =IF($R$53>=3,$C$53) -> FALSE | Y53: =IF($R$53>=3,$S$53) -> FALSE
U54: =IF($R$54>=3,(IF($R$54=3,"DS",$R$54))) -> FALSE | V54: =IF($R$54>=3,$A$54) -> FALSE | W54: =IF($R$54>=3,$B$54) -> FALSE | X54: =IF($R$54>=3,$C$54) -> FALSE | Y54: =IF($R$54>=3,$S$54) -> FALSE
U55: =IF($R$55>=3,(IF($R$55=3,"DS",$R$55))) -> FALSE | V55: =IF($R$55>=3,$A$55) -> FALSE | W55: =IF($R$55>=3,$B$55) -> FALSE | X55: =IF($R$55>=3,$C$55) -> FALSE | Y55: =IF($R$55>=3,$S$55) -> FALSE
U56: =IF($R$56>=3,(IF($R$56=3,"DS",$R$56))) -> FALSE | V56: =IF($R$56>=3,$A$56) -> FALSE | W56: =IF($R$56>=3,$B$56) -> FALSE | X56: =IF($R$56>=3,$C$56) -> FALSE | Y56: =IF($R$56>=3,$S$56) -> FALSE
U57: =IF($R$57>=3,(IF($R$57=3,"DS",$R$57))) -> FALSE | V57: =IF($R$57>=3,$A$57) -> FALSE | W57: =IF($R$57>=3,$B$57) -> FALSE | X57: =IF($R$57>=3,$C$57) -> FALSE | Y57: =IF($R$57>=3,$S$57) -> FALSE
U58: =IF($R$58>=3,(IF($R$58=3,"DS",$R$58))) -> FALSE | V58: =IF($R$58>=3,$A$58) -> FALSE | W58: =IF($R$58>=3,$B$58) -> FALSE | X58: =IF($R$58>=3,$C$58) -> FALSE | Y58: =IF($R$58>=3,$S$58) -> FALSE
U59: =IF($R$59>=3,(IF($R$59=3,"DS",$R$59))) -> FALSE | V59: =IF($R$59>=3,$A$59) -> FALSE | W59: =IF($R$59>=3,$B$59) -> FALSE | X59: =IF($R$59>=3,$C$59) -> FALSE | Y59: =IF($R$59>=3,$S$59) -> FALSE
U60: =IF($R$60>=3,(IF($R$60=3,"DS",$R$60))) -> FALSE | V60: =IF($R$60>=3,$A$60) -> FALSE | W60: =IF($R$60>=3,$B$60) -> FALSE | X60: =IF($R$60>=3,$C$60) -> FALSE | Y60: =IF($R$60>=3,$S$60) -> FALSE
U61: =IF($R$61>=3,(IF($R$61=3,"DS",$R$61))) -> FALSE | V61: =IF($R$61>=3,$A$61) -> FALSE | W61: =IF($R$61>=3,$B$61) -> FALSE | X61: =IF($R$61>=3,$C$61) -> FALSE | Y61: =IF($R$61>=3,$S$61) -> FALSE
U62: =IF($R$62>=3,(IF($R$62=3,"DS",$R$62))) -> FALSE | V62: =IF($R$62>=3,$A$62) -> FALSE | W62: =IF($R$62>=3,$B$62) -> FALSE | X62: =IF($R$62>=3,$C$62) -> FALSE | Y62: =IF($R$62>=3,$S$62) -> FALSE
U63: =IF($R$63>=3,(IF($R$63=3,"DS",$R$63))) -> FALSE | V63: =IF($R$63>=3,$A$63) -> FALSE | W63: =IF($R$63>=3,$B$63) -> FALSE | X63: =IF($R$63>=3,$C$63) -> FALSE | Y63: =IF($R$63>=3,$S$63) -> FALSE
U64: =IF($R$64>=3,(IF($R$64=3,"DS",$R$64))) -> FALSE | V64: =IF($R$64>=3,$A$64) -> FALSE | W64: =IF($R$64>=3,$B$64) -> FALSE | X64: =IF($R$64>=3,$C$64) -> FALSE | Y64: =IF($R$64>=3,$S$64) -> FALSE
U65: =IF($R$65>=3,(IF($R$65=3,"DS",$R$65))) -> FALSE | V65: =IF($R$65>=3,$A$65) -> FALSE | W65: =IF($R$65>=3,$B$65) -> FALSE | X65: =IF($R$65>=3,$C$65) -> FALSE | Y65: =IF($R$65>=3,$S$65) -> FALSE
U66: =IF($R$66>=3,(IF($R$66=3,"DS",$R$66))) -> FALSE | V66: =IF($R$66>=3,$A$66) -> FALSE | W66: =IF($R$66>=3,$B$66) -> FALSE | X66: =IF($R$66>=3,$C$66) -> FALSE | Y66: =IF($R$66>=3,$S$66) -> FALSE
U67: =IF($R$67>=3,(IF($R$67=3,"DS",$R$67))) -> FALSE | V67: =IF($R$67>=3,$A$67) -> FALSE | W67: =IF($R$67>=3,$B$67) -> FALSE | X67: =IF($R$67>=3,$C$67) -> FALSE | Y67: =IF($R$67>=3,$S$67) -> FALSE
U68: =IF($R$68>=3,(IF($R$68=3,"DS",$R$68))) -> FALSE | V68: =IF($R$68>=3,$A$68) -> FALSE | W68: =IF($R$68>=3,$B$68) -> FALSE | X68: =IF($R$68>=3,$C$68) -> FALSE | Y68: =IF($R$68>=3,$S$68) -> FALSE
U69: =IF($R$69>=3,(IF($R$69=3,"DS",$R$69))) -> FALSE | V69: =IF($R$69>=3,$A$69) -> FALSE | W69: =IF($R$69>=3,$B$69) -> FALSE | X69: =IF($R$69>=3,$C$69) -> FALSE | Y69: =IF($R$69>=3,$S$69) -> FALSE
U70: =IF($R$70>=3,(IF($R$70=3,"DS",$R$70))) -> FALSE | V70: =IF($R$70>=3,$A$70) -> FALSE | W70: =IF($R$70>=3,$B$70) -> FALSE | X70: =IF($R$70>=3,$C$70) -> FALSE | Y70: =IF($R$70>=3,$S$70) -> FALSE
U71: =IF($R$71>=3,(IF($R$71=3,"DS",$R$71))) -> FALSE | V71: =IF($R$71>=3,$A$71) -> FALSE | W71: =IF($R$71>=3,$B$71) -> FALSE | X71: =IF($R$71>=3,$C$71) -> FALSE | Y71: =IF($R$71>=3,$S$71) -> FALSE
U72: =IF($R$72>=3,(IF($R$72=3,"DS",$R$72))) -> FALSE | V72: =IF($R$72>=3,$A$72) -> FALSE | W72: =IF($R$72>=3,$B$72) -> FALSE | X72: =IF($R$72>=3,$C$72) -> FALSE | Y72: =IF($R$72>=3,$S$72) -> FALSE
U73: =IF($R$73>=3,(IF($R$73=3,"DS",$R$73))) -> FALSE | V73: =IF($R$73>=3,$A$73) -> FALSE | W73: =IF($R$73>=3,$B$73) -> FALSE | X73: =IF($R$73>=3,$C$73) -> FALSE | Y73: =IF($R$73>=3,$S$73) -> FALSE
